Organisation Name,Organisation Code,Effective Date,Directorate,Service (Sercop),Sercop URI,Supplier Name,Supplier ID,Company Registration,Charity Registration,VCSE Grant,Payment Date,Transaction Number,Seq No,Net Amount,Irrecoverable VAT,Purpose of Spend,Type,Procurement Classification,Class Code,Procurement Classification,Class Code,Thomson Classification,Thomson Description,P-Card Tran,Contract
Wakefield MDC,E08000036,30/09/2014,CHILDYOU,Children's and Education Services,4,ANGELA SHAW EDUCATION CONSULTANTS LTD,Redacted,Not yet available,Not yet available,Not yet available,28/07/2014,22560432,1,1200,Nil,Activities School Improvement,Revenue,Professional Services,CAT08,Consultancy,SUBCAT0802,12100,Business & Management Consultants,,Not yet available
Wakefield MDC,E08000036,30/09/2014,CHILDYOU,Children's and Education Services,4,KATHERINE MILNER MATHEMATICS CONSULTANCY,Redacted,Not yet available,Not yet available,Not yet available,01/07/2014,22538593,1,1500,Nil,Activities School Improvement,Revenue,Children and Young People,CAT05,Education & Careers,SUBCAT0502,29360,Educational Services,,Not yet available
Wakefield MDC,E08000036,30/09/2014,CHILDYOU,Children's and Education Services,4,MINSTHORPE ACADEMY TRUST,Redacted,Not yet available,Not yet available,Not yet available,21/07/2014,22549994,1,1000,Nil,Activities School Improvement,Revenue,Children and Young People,CAT05,Education & Careers,SUBCAT0502,67860,Schools - Independent & Preparatory,,Not yet available
Wakefield MDC,E08000036,30/09/2014,ADULTS,Adult Social Care,7,BUDDI LIMITED,Redacted,Not yet available,Not yet available,Not yet available,16/07/2014,22544970,1,540,Nil,Adaptations,Revenue,Property & Asset Management,CAT01,Security,SUBCAT0138,11700,Burglar & Intruder Alarm Systems,,Not yet available
Wakefield MDC,E08000036,30/09/2014,ADULTS,Adult Social Care,7,CHUBB SYSTEMS LTD,Redacted,Not yet available,Not yet available,Not yet available,22/07/2014,22549286,1,510,Nil,Adaptations,Revenue,Property & Asset Management,CAT01,Security,SUBCAT0138,69240,Security Services & Equipment,,Not yet available
Wakefield MDC,E08000036,30/09/2014,ADULTS,Adult Social Care,7,WAKEFIELD DISTRICT HOUSING INVOICE PAYMENTS,Redacted,Not yet available,Not yet available,Not yet available,25/09/2014,22600181,1,6252.19,Nil,Adaptations,Revenue,Adult Services,CAT04,to be classified,SUBCATTBC,44166,"Housing Associations, Societies, Trusts & Co-Opera",,Not yet available
Wakefield MDC,E08000036,30/09/2014,ADULTS,Adult Social Care,7,YORKSHIRE HOUSING LTD,Redacted,Not yet available,Not yet available,Not yet available,03/07/2014,22537142,1,2067,Nil,Adaptations,Revenue,Adult Services,CAT04,to be classified,SUBCATTBC,44166,"Housing Associations, Societies, Trusts & Co-Opera",,Not yet available
Wakefield MDC,E08000036,30/09/2014,BUSINESS,Net (Surplus) / Deficit of Trading Operations,A,EDDISONS,Redacted,Not yet available,Not yet available,Not yet available,11/08/2014,22566737,1,750,Nil,Advertising,Revenue,Property & Asset Management,CAT01,Property Management,SUBCAT0137,61896,Property & Estate Management,,Not yet available
Wakefield MDC,E08000036,30/09/2014,ADULTS,Adult Social Care,7,EXTERION MEDIA,Redacted,Not yet available,Not yet available,Not yet available,20/08/2014,22571256,1,880,Nil,Advertising,Revenue,Business Services,CAT02,Advertising Services,SUBCAT0203,1967,Advertising - Media,,Not yet available
Wakefield MDC,E08000036,30/09/2014,REGENCULT,Housing Services,6,JOHNSTON PUBLISHING,Redacted,Not yet available,Not yet available,Not yet available,17/07/2014,22547233,1,833.69,Nil,Advertising,Revenue,Business Services,CAT02,Advertising Services,SUBCAT0203,2100,Advertising Services,,Not yet available
Wakefield MDC,E08000036,30/09/2014,REGENCULT,Planning Services,N,JOHNSTON PUBLISHING,Redacted,Not yet available,Not yet available,Not yet available,15/08/2014,22567456,1,503,Nil,Advertising,Revenue,Business Services,CAT02,Advertising Services,SUBCAT0203,2100,Advertising Services,,Not yet available
Wakefield MDC,E08000036,30/09/2014,REGENCULT,Planning Services,N,JOHNSTON PUBLISHING,Redacted,Not yet available,Not yet available,Not yet available,30/09/2014,22604167,1,2258,Nil,Advertising,Revenue,Business Services,CAT02,Advertising Services,SUBCAT0203,2100,Advertising Services,,Not yet available
Wakefield MDC,E08000036,30/09/2014,REGENCULT,Planning Services,N,JOHNSTON PUBLISHING,Redacted,Not yet available,Not yet available,Not yet available,25/09/2014,22602596,1,503,Nil,Advertising,Revenue,Business Services,CAT02,Advertising Services,SUBCAT0203,2100,Advertising Services,,Not yet available
Wakefield MDC,E08000036,30/09/2014,CHILDYOU,Children's and Education Services,4,TMP (UK) LTD,Redacted,Not yet available,Not yet available,Not yet available,09/07/2014,22519834,1,800,Nil,Advertising,Revenue,Business Services,CAT02,Advertising Services,SUBCAT0203,1961,Advertising - Agencies,,Not yet available
Wakefield MDC,E08000036,30/09/2014,ADULTS,Public Health,P,TMP (UK) LTD,Redacted,Not yet available,Not yet available,Not yet available,01/07/2014,22537897,1,1190.2,Nil,Advertising,Revenue,Business Services,CAT02,Advertising Services,SUBCAT0203,1961,Advertising - Agencies,,Not yet available
Wakefield MDC,E08000036,30/09/2014,REGENCULT,Planning Services,N,TMP (UK) LTD,Redacted,Not yet available,Not yet available,Not yet available,02/07/2014,22527011,1,868.43,Nil,Advertising,Revenue,Business Services,CAT02,Advertising Services,SUBCAT0203,1961,Advertising - Agencies,,Not yet available
Wakefield MDC,E08000036,30/09/2014,REGENCULT,Net (Surplus) / Deficit of Trading Operations,A,TMP (UK) LTD,Redacted,Not yet available,Not yet available,Not yet available,28/08/2014,22581236,1,2075.58,Nil,Advertising,Revenue,Business Services,CAT02,Advertising Services,SUBCAT0203,1961,Advertising - Agencies,,Not yet available
Wakefield MDC,E08000036,30/09/2014,CHILDYOU,Children's and Education Services,4,TMP (UK) LTD,Redacted,Not yet available,Not yet available,Not yet available,18/07/2014,22538454,1,1770,Nil,Advertising,Revenue,Business Services,CAT02,Advertising Services,SUBCAT0203,1961,Advertising - Agencies,,Not yet available
Wakefield MDC,E08000036,30/09/2014,BUSINESS,Net (Surplus) / Deficit of Trading Operations,A,TMP (UK) LTD,Redacted,Not yet available,Not yet available,Not yet available,29/07/2014,22537895,1,526.32,Nil,Advertising,Revenue,Business Services,CAT02,Advertising Services,SUBCAT0203,1961,Advertising - Agencies,,Not yet available
Wakefield MDC,E08000036,30/09/2014,CHILDYOU,Children's and Education Services,4,WAKEFIELD COLLEGE,Redacted,Not yet available,Not yet available,Not yet available,20/08/2014,22571380,1,2000,Nil,Advertising,Revenue,Children and Young People,CAT05,Education & Careers,SUBCAT0502,67330,Schools & Colleges - Further Education,,Not yet available
Wakefield MDC,E08000036,30/09/2014,ADULTS,Adult Social Care,7,TOGETHER,Redacted,Not yet available,Not yet available,Not yet available,29/07/2014,22542443,1,11239.91,Nil,Advocacy,Revenue,Adult Services,CAT04,to be classified,SUBCATTBC,25820,Disability & Special Needs - Services,,Not yet available
Wakefield MDC,E08000036,30/09/2014,CHILDYOU,Children's and Education Services,4,ADOPTION MATTERS NORTHWEST,Redacted,Not yet available,Not yet available,Not yet available,31/07/2014,22563224,1,750,Nil,Agency Placement Adoptions (Other agencies),Revenue,Children and Young People,CAT05,Looked After Children,SUBCAT0503,1880,Adoption & Fostering,,Not yet available
Wakefield MDC,E08000036,30/09/2014,CHILDYOU,Children's and Education Services,4,ADOPTION MATTERS NORTHWEST,Redacted,Not yet available,Not yet available,Not yet available,31/07/2014,22563226,1,1194.42,Nil,Agency Placement Adoptions (Other agencies),Revenue,Children and Young People,CAT05,Looked After Children,SUBCAT0503,1880,Adoption & Fostering,,Not yet available
Wakefield MDC,E08000036,30/09/2014,CHILDYOU,Children's and Education Services,4,ADOPTION MATTERS NORTHWEST,Redacted,Not yet available,Not yet available,Not yet available,18/09/2014,22599071,1,750,Nil,Agency Placement Adoptions (Other agencies),Revenue,Children and Young People,CAT05,Looked After Children,SUBCAT0503,1880,Adoption & Fostering,,Not yet available
Wakefield MDC,E08000036,30/09/2014,CHILDYOU,Children's and Education Services,4,ADOPTION MATTERS NORTHWEST,Redacted,Not yet available,Not yet available,Not yet available,31/07/2014,22563227,1,750,Nil,Agency Placement Adoptions (Other agencies),Revenue,Children and Young People,CAT05,Looked After Children,SUBCAT0503,1880,Adoption & Fostering,,Not yet available
Wakefield MDC,E08000036,30/09/2014,CHILDYOU,Children's and Education Services,4,ADOPTION MATTERS NORTHWEST,Redacted,Not yet available,Not yet available,Not yet available,04/07/2014,22540994,1,750,Nil,Agency Placement Adoptions (Other agencies),Revenue,Children and Young People,CAT05,Looked After Children,SUBCAT0503,1880,Adoption & Fostering,,Not yet available
Wakefield MDC,E08000036,30/09/2014,CHILDYOU,Children's and Education Services,4,ADOPTION MATTERS NORTHWEST,Redacted,Not yet available,Not yet available,Not yet available,04/07/2014,22540996,1,750,Nil,Agency Placement Adoptions (Other agencies),Revenue,Children and Young People,CAT05,Looked After Children,SUBCAT0503,1880,Adoption & Fostering,,Not yet available
Wakefield MDC,E08000036,30/09/2014,CHILDYOU,Children's and Education Services,4,ADOPTION MATTERS NORTHWEST,Redacted,Not yet available,Not yet available,Not yet available,04/07/2014,22541003,1,1194.42,Nil,Agency Placement Adoptions (Other agencies),Revenue,Children and Young People,CAT05,Looked After Children,SUBCAT0503,1880,Adoption & Fostering,,Not yet available
Wakefield MDC,E08000036,30/09/2014,CHILDYOU,Children's and Education Services,4,ADOPTION MATTERS NORTHWEST,Redacted,Not yet available,Not yet available,Not yet available,18/09/2014,22599253,1,4500,Nil,Agency Placement Adoptions (Other agencies),Revenue,Children and Young People,CAT05,Looked After Children,SUBCAT0503,1880,Adoption & Fostering,,Not yet available
Wakefield MDC,E08000036,30/09/2014,CHILDYOU,Children's and Education Services,4,ADOPTION MATTERS NORTHWEST,Redacted,Not yet available,Not yet available,Not yet available,18/09/2014,22599213,1,750,Nil,Agency Placement Adoptions (Other agencies),Revenue,Children and Young People,CAT05,Looked After Children,SUBCAT0503,1880,Adoption & Fostering,,Not yet available
Wakefield MDC,E08000036,30/09/2014,CHILDYOU,Children's and Education Services,4,ADOPTION MATTERS NORTHWEST,Redacted,Not yet available,Not yet available,Not yet available,18/09/2014,22599251,1,1194.42,Nil,Agency Placement Adoptions (Other agencies),Revenue,Children and Young People,CAT05,Looked After Children,SUBCAT0503,1880,Adoption & Fostering,,Not yet available
Wakefield MDC,E08000036,30/09/2014,CHILDYOU,Children's and Education Services,4,CABRINI CHILDREN'S SOCIETY,Redacted,Not yet available,Not yet available,Not yet available,18/09/2014,22599214,1,18000,Nil,Agency Placement Adoptions (Other agencies),Revenue,Children and Young People,CAT05,Childcare & Early Years,SUBCAT0501,17580,Childcare Services,,Not yet available
Wakefield MDC,E08000036,30/09/2014,CHILDYOU,Children's and Education Services,4,DARLINGTON BOROUGH COUNCIL,Redacted,Not yet available,Not yet available,Not yet available,23/07/2014,22551576,1,18000,Nil,Agency Placement Adoptions (Other agencies),Revenue,n/a,CATNA,n/a,SUBCATNA,48583,Local Government,,Not yet available
Wakefield MDC,E08000036,30/09/2014,CHILDYOU,Children's and Education Services,4,FAMILIES FOR CHILDREN ADOPTION,Redacted,Not yet available,Not yet available,Not yet available,02/09/2014,22581834,1,18000,Nil,Agency Placement Adoptions (Other agencies),Revenue,Children and Young People,CAT05,Looked After Children,SUBCAT0503,1880,Adoption & Fostering,,Not yet available
Wakefield MDC,E08000036,30/09/2014,CHILDYOU,Children's and Education Services,4,NUGENT CARE,Redacted,Not yet available,Not yet available,Not yet available,20/08/2014,22571531,1,14333,Nil,Agency Placement Adoptions (Other agencies),Revenue,Children and Young People,CAT05,Looked After Children,SUBCAT0503,1880,Adoption & Fostering,,Not yet available
Wakefield MDC,E08000036,30/09/2014,CHILDYOU,Children's and Education Services,4,PARENTS AND CHILDREN TOGETHER,Redacted,Not yet available,Not yet available,Not yet available,21/08/2014,22579399,1,20000,Nil,Agency Placement Adoptions (Other agencies),Revenue,Children and Young People,CAT05,Looked After Children,SUBCAT0503,71855,Social Services & Welfare Organisations,,Not yet available
Wakefield MDC,E08000036,30/09/2014,CHILDYOU,Children's and Education Services,4,TACT ADOPTION,Redacted,Not yet available,Not yet available,Not yet available,23/07/2014,22551603,1,5254,Nil,Agency Placement Adoptions (Other agencies),Revenue,Children and Young People,CAT05,Looked After Children,SUBCAT0503,1880,Adoption & Fostering,,Not yet available
Wakefield MDC,E08000036,30/09/2014,CHILDYOU,Children's and Education Services,4,YORK COUNCIL,Redacted,Not yet available,Not yet available,Not yet available,15/08/2014,22568857,1,18000,Nil,Agency Placement Adoptions (Other agencies),Revenue,n/a,CATNA,n/a,SUBCATNA,48583,Local Government,,Not yet available
Wakefield MDC,E08000036,30/09/2014,BUSINESS,Net (Surplus) / Deficit of Trading Operations,A,A & O IT SERVICES,Redacted,Not yet available,Not yet available,Not yet available,04/07/2014,22541301,1,3016.18,Nil,Agency Staff,Revenue,Business Services,CAT02,Agency,SUBCAT0204,31230,Employment & Recruitment Agencies,,Not yet available
Wakefield MDC,E08000036,30/09/2014,BUSINESS,Net (Surplus) / Deficit of Trading Operations,A,A & O IT SERVICES,Redacted,Not yet available,Not yet available,Not yet available,11/08/2014,22567303,1,2470.38,Nil,Agency Staff,Revenue,Business Services,CAT02,Agency,SUBCAT0204,31230,Employment & Recruitment Agencies,,Not yet available
Wakefield MDC,E08000036,30/09/2014,BUSINESS,Net (Surplus) / Deficit of Trading Operations,A,A & O IT SERVICES,Redacted,Not yet available,Not yet available,Not yet available,08/09/2014,22586396,1,1977.49,Nil,Agency Staff,Revenue,Business Services,CAT02,Agency,SUBCAT0204,31230,Employment & Recruitment Agencies,,Not yet available
Wakefield MDC,E08000036,30/09/2014,BUSINESS,Net (Surplus) / Deficit of Trading Operations,A,ASSET HEALTH SOLUTIONS,Redacted,Not yet available,Not yet available,Not yet available,08/07/2014,22540791,1,1876.6,Nil,Agency Staff,Revenue,Business Services,CAT02,Agency,SUBCAT0204,31230,Employment & Recruitment Agencies,,Not yet available
Wakefield MDC,E08000036,30/09/2014,BUSINESS,Net (Surplus) / Deficit of Trading Operations,A,ASSET HEALTH SOLUTIONS,Redacted,Not yet available,Not yet available,Not yet available,08/07/2014,22537207,1,929.8,Nil,Agency Staff,Revenue,Business Services,CAT02,Agency,SUBCAT0204,31230,Employment & Recruitment Agencies,,Not yet available
Wakefield MDC,E08000036,30/09/2014,BUSINESS,Net (Surplus) / Deficit of Trading Operations,A,ASSET HEALTH SOLUTIONS,Redacted,Not yet available,Not yet available,Not yet available,22/08/2014,22570296,1,1900.4,Nil,Agency Staff,Revenue,Business Services,CAT02,Agency,SUBCAT0204,31230,Employment & Recruitment Agencies,,Not yet available
Wakefield MDC,E08000036,30/09/2014,BUSINESS,Net (Surplus) / Deficit of Trading Operations,A,ASSET HEALTH SOLUTIONS,Redacted,Not yet available,Not yet available,Not yet available,22/09/2014,22589282,1,1294,Nil,Agency Staff,Revenue,Business Services,CAT02,Agency,SUBCAT0204,31230,Employment & Recruitment Agencies,,Not yet available
Wakefield MDC,E08000036,30/09/2014,ADULTS,Adult Social Care,7,BIG FISH LITTLE FISH,Redacted,Not yet available,Not yet available,Not yet available,05/08/2014,22536595,1,548.34,Nil,Agency Staff,Revenue,Business Services,CAT02,Agency,SUBCAT0204,31230,Employment & Recruitment Agencies,,Not yet available
Wakefield MDC,E08000036,30/09/2014,ADULTS,Adult Social Care,7,BIG FISH LITTLE FISH,Redacted,Not yet available,Not yet available,Not yet available,09/09/2014,22585994,1,548.34,Nil,Agency Staff,Revenue,Business Services,CAT02,Agency,SUBCAT0204,31230,Employment & Recruitment Agencies,,Not yet available
Wakefield MDC,E08000036,30/09/2014,CHILDYOU,Children's and Education Services,4,CARITAS RECRUITMENT LTD,Redacted,Not yet available,Not yet available,Not yet available,02/07/2014,22526857,1,1080,Nil,Agency Staff,Revenue,Business Services,CAT02,Agency,SUBCAT0204,31230,Employment & Recruitment Agencies,,Not yet available
Wakefield MDC,E08000036,30/09/2014,CHILDYOU,Children's and Education Services,4,CARITAS RECRUITMENT LTD,Redacted,Not yet available,Not yet available,Not yet available,01/07/2014,22482549,1,1080,Nil,Agency Staff,Revenue,Business Services,CAT02,Agency,SUBCAT0204,31230,Employment & Recruitment Agencies,,Not yet available
Wakefield MDC,E08000036,30/09/2014,CHILDYOU,Children's and Education Services,4,CARITAS RECRUITMENT LTD,Redacted,Not yet available,Not yet available,Not yet available,01/07/2014,22501617,1,1080,Nil,Agency Staff,Revenue,Business Services,CAT02,Agency,SUBCAT0204,31230,Employment & Recruitment Agencies,,Not yet available
Wakefield MDC,E08000036,30/09/2014,CHILDYOU,Children's and Education Services,4,CARITAS RECRUITMENT LTD,Redacted,Not yet available,Not yet available,Not yet available,01/07/2014,22537748,1,1140.75,Nil,Agency Staff,Revenue,Business Services,CAT02,Agency,SUBCAT0204,31230,Employment & Recruitment Agencies,,Not yet available
Wakefield MDC,E08000036,30/09/2014,CHILDYOU,Children's and Education Services,4,CARITAS RECRUITMENT LTD,Redacted,Not yet available,Not yet available,Not yet available,17/07/2014,22539897,1,1125.9,Nil,Agency Staff,Revenue,Business Services,CAT02,Agency,SUBCAT0204,31230,Employment & Recruitment Agencies,,Not yet available
Wakefield MDC,E08000036,30/09/2014,CHILDYOU,Children's and Education Services,4,CARITAS RECRUITMENT LTD,Redacted,Not yet available,Not yet available,Not yet available,17/07/2014,22545628,1,1134.45,Nil,Agency Staff,Revenue,Business Services,CAT02,Agency,SUBCAT0204,31230,Employment & Recruitment Agencies,,Not yet available
Wakefield MDC,E08000036,30/09/2014,CHILDYOU,Children's and Education Services,4,CARITAS RECRUITMENT LTD,Redacted,Not yet available,Not yet available,Not yet available,22/07/2014,22549657,1,1408.95,Nil,Agency Staff,Revenue,Business Services,CAT02,Agency,SUBCAT0204,31230,Employment & Recruitment Agencies,,Not yet available
Wakefield MDC,E08000036,30/09/2014,CHILDYOU,Children's and Education Services,4,CARITAS RECRUITMENT LTD,Redacted,Not yet available,Not yet available,Not yet available,18/08/2014,22568926,1,2156.4,Nil,Agency Staff,Revenue,Business Services,CAT02,Agency,SUBCAT0204,31230,Employment & Recruitment Agencies,,Not yet available
Wakefield MDC,E08000036,30/09/2014,CHILDYOU,Children's and Education Services,4,CARITAS RECRUITMENT LTD,Redacted,Not yet available,Not yet available,Not yet available,15/09/2014,22587736,1,723.15,Nil,Agency Staff,Revenue,Business Services,CAT02,Agency,SUBCAT0204,31230,Employment & Recruitment Agencies,,Not yet available
Wakefield MDC,E08000036,30/09/2014,CHILDYOU,Children's and Education Services,4,CARITAS RECRUITMENT LTD,Redacted,Not yet available,Not yet available,Not yet available,01/09/2014,22582407,1,2299.5,Nil,Agency Staff,Revenue,Business Services,CAT02,Agency,SUBCAT0204,31230,Employment & Recruitment Agencies,,Not yet available
Wakefield MDC,E08000036,30/09/2014,CHILDYOU,Children's and Education Services,4,CARITAS RECRUITMENT LTD,Redacted,Not yet available,Not yet available,Not yet available,03/09/2014,22583031,1,1080,Nil,Agency Staff,Revenue,Business Services,CAT02,Agency,SUBCAT0204,31230,Employment & Recruitment Agencies,,Not yet available
Wakefield MDC,E08000036,30/09/2014,CHILDYOU,Children's and Education Services,4,CARITAS RECRUITMENT LTD,Redacted,Not yet available,Not yet available,Not yet available,23/07/2014,22549656,1,594,Nil,Agency Staff,Revenue,Business Services,CAT02,Agency,SUBCAT0204,31230,Employment & Recruitment Agencies,,Not yet available
Wakefield MDC,E08000036,30/09/2014,BUSINESS,Net (Surplus) / Deficit of Trading Operations,A,CHEVIOT RECRUITMENT,Redacted,Not yet available,Not yet available,Not yet available,08/07/2014,22537144,1,584.25,Nil,Agency Staff,Revenue,Business Services,CAT02,Agency,SUBCAT0204,31230,Employment & Recruitment Agencies,,Not yet available
Wakefield MDC,E08000036,30/09/2014,BUSINESS,Net (Surplus) / Deficit of Trading Operations,A,CHEVIOT RECRUITMENT,Redacted,Not yet available,Not yet available,Not yet available,08/07/2014,22537145,1,876.38,Nil,Agency Staff,Revenue,Business Services,CAT02,Agency,SUBCAT0204,31230,Employment & Recruitment Agencies,,Not yet available
Wakefield MDC,E08000036,30/09/2014,BUSINESS,Net (Surplus) / Deficit of Trading Operations,A,CHEVIOT RECRUITMENT,Redacted,Not yet available,Not yet available,Not yet available,28/07/2014,22549612,1,584.25,Nil,Agency Staff,Revenue,Business Services,CAT02,Agency,SUBCAT0204,31230,Employment & Recruitment Agencies,,Not yet available
Wakefield MDC,E08000036,30/09/2014,BUSINESS,Net (Surplus) / Deficit of Trading Operations,A,CHEVIOT RECRUITMENT,Redacted,Not yet available,Not yet available,Not yet available,28/07/2014,22549614,1,837.43,Nil,Agency Staff,Revenue,Business Services,CAT02,Agency,SUBCAT0204,31230,Employment & Recruitment Agencies,,Not yet available
Wakefield MDC,E08000036,30/09/2014,BUSINESS,Net (Surplus) / Deficit of Trading Operations,A,CHEVIOT RECRUITMENT,Redacted,Not yet available,Not yet available,Not yet available,28/07/2014,22549611,1,892.13,Nil,Agency Staff,Revenue,Business Services,CAT02,Agency,SUBCAT0204,31230,Employment & Recruitment Agencies,,Not yet available
Wakefield MDC,E08000036,30/09/2014,BUSINESS,Net (Surplus) / Deficit of Trading Operations,A,CHEVIOT RECRUITMENT,Redacted,Not yet available,Not yet available,Not yet available,22/09/2014,22589106,1,876.38,Nil,Agency Staff,Revenue,Business Services,CAT02,Agency,SUBCAT0204,31230,Employment & Recruitment Agencies,,Not yet available
Wakefield MDC,E08000036,30/09/2014,BUSINESS,Net (Surplus) / Deficit of Trading Operations,A,CHEVIOT RECRUITMENT,Redacted,Not yet available,Not yet available,Not yet available,22/09/2014,22589109,1,759.53,Nil,Agency Staff,Revenue,Business Services,CAT02,Agency,SUBCAT0204,31230,Employment & Recruitment Agencies,,Not yet available
Wakefield MDC,E08000036,30/09/2014,BUSINESS,Net (Surplus) / Deficit of Trading Operations,A,CHEVIOT RECRUITMENT,Redacted,Not yet available,Not yet available,Not yet available,22/09/2014,22589119,1,1402.2,Nil,Agency Staff,Revenue,Business Services,CAT02,Agency,SUBCAT0204,31230,Employment & Recruitment Agencies,,Not yet available
Wakefield MDC,E08000036,30/09/2014,BUSINESS,Net (Surplus) / Deficit of Trading Operations,A,CHEVIOT RECRUITMENT,Redacted,Not yet available,Not yet available,Not yet available,22/09/2014,22589121,1,584.25,Nil,Agency Staff,Revenue,Business Services,CAT02,Agency,SUBCAT0204,31230,Employment & Recruitment Agencies,,Not yet available
Wakefield MDC,E08000036,30/09/2014,BUSINESS,Net (Surplus) / Deficit of Trading Operations,A,CHEVIOT RECRUITMENT,Redacted,Not yet available,Not yet available,Not yet available,22/08/2014,22570297,1,564.78,Nil,Agency Staff,Revenue,Business Services,CAT02,Agency,SUBCAT0204,31230,Employment & Recruitment Agencies,,Not yet available
Wakefield MDC,E08000036,30/09/2014,BUSINESS,Net (Surplus) / Deficit of Trading Operations,A,CHEVIOT RECRUITMENT,Redacted,Not yet available,Not yet available,Not yet available,22/08/2014,22570301,1,856.9,Nil,Agency Staff,Revenue,Business Services,CAT02,Agency,SUBCAT0204,31230,Employment & Recruitment Agencies,,Not yet available
Wakefield MDC,E08000036,30/09/2014,BUSINESS,Net (Surplus) / Deficit of Trading Operations,A,CHEVIOT RECRUITMENT,Redacted,Not yet available,Not yet available,Not yet available,05/08/2014,22560517,1,876.38,Nil,Agency Staff,Revenue,Business Services,CAT02,Agency,SUBCAT0204,31230,Employment & Recruitment Agencies,,Not yet available
Wakefield MDC,E08000036,30/09/2014,BUSINESS,Net (Surplus) / Deficit of Trading Operations,A,CHEVIOT RECRUITMENT,Redacted,Not yet available,Not yet available,Not yet available,25/09/2014,22599561,1,545.3,Nil,Agency Staff,Revenue,Business Services,CAT02,Agency,SUBCAT0204,31230,Employment & Recruitment Agencies,,Not yet available
Wakefield MDC,E08000036,30/09/2014,BUSINESS,Net (Surplus) / Deficit of Trading Operations,A,CHEVIOT RECRUITMENT,Redacted,Not yet available,Not yet available,Not yet available,25/09/2014,22599564,1,1149.03,Nil,Agency Staff,Revenue,Business Services,CAT02,Agency,SUBCAT0204,31230,Employment & Recruitment Agencies,,Not yet available
Wakefield MDC,E08000036,30/09/2014,BUSINESS,Net (Surplus) / Deficit of Trading Operations,A,CHEVIOT RECRUITMENT,Redacted,Not yet available,Not yet available,Not yet available,22/09/2014,22581835,1,876.38,Nil,Agency Staff,Revenue,Business Services,CAT02,Agency,SUBCAT0204,31230,Employment & Recruitment Agencies,,Not yet available
Wakefield MDC,E08000036,30/09/2014,BUSINESS,Net (Surplus) / Deficit of Trading Operations,A,CHEVIOT RECRUITMENT,Redacted,Not yet available,Not yet available,Not yet available,22/09/2014,22581837,1,584.25,Nil,Agency Staff,Revenue,Business Services,CAT02,Agency,SUBCAT0204,31230,Employment & Recruitment Agencies,,Not yet available
Wakefield MDC,E08000036,30/09/2014,BUSINESS,Net (Surplus) / Deficit of Trading Operations,A,D & A CARTWRIGHT ASSOCIATES LTD,Redacted,Not yet available,Not yet available,Not yet available,11/08/2014,22563557,1,4400,Nil,Agency Staff,Revenue,Professional Services,CAT08,Consultancy,SUBCAT0802,42230,Health & Safety Consultants,,Not yet available
Wakefield MDC,E08000036,30/09/2014,BUSINESS,Net (Surplus) / Deficit of Trading Operations,A,D & A CARTWRIGHT ASSOCIATES LTD,Redacted,Not yet available,Not yet available,Not yet available,02/09/2014,22582628,1,4800,Nil,Agency Staff,Revenue,Professional Services,CAT08,Consultancy,SUBCAT0802,42230,Health & Safety Consultants,,Not yet available
Wakefield MDC,E08000036,30/09/2014,BUSINESS,Net (Surplus) / Deficit of Trading Operations,A,D & A CARTWRIGHT ASSOCIATES LTD,Redacted,Not yet available,Not yet available,Not yet available,23/07/2014,22551621,1,4000,Nil,Agency Staff,Revenue,Professional Services,CAT08,Consultancy,SUBCAT0802,42230,Health & Safety Consultants,,Not yet available
Wakefield MDC,E08000036,30/09/2014,CHILDYOU,Children's and Education Services,4,DETAILS REDACTED,Redacted,Not yet available,Not yet available,Not yet available,10/07/2014,22544110,1,952.5,Nil,Agency Staff,Revenue,Business Services,CAT02,Agency,SUBCAT0204,31230,Employment & Recruitment Agencies,,Not yet available
Wakefield MDC,E08000036,30/09/2014,CHILDYOU,Children's and Education Services,4,DETAILS REDACTED,Redacted,Not yet available,Not yet available,Not yet available,14/07/2014,22545622,1,1040,Nil,Agency Staff,Revenue,Business Services,CAT02,Agency,SUBCAT0204,31230,Employment & Recruitment Agencies,,Not yet available
Wakefield MDC,E08000036,30/09/2014,BUSINESS,Net (Surplus) / Deficit of Trading Operations,A,DETAILS REDACTED,Redacted,Not yet available,Not yet available,Not yet available,01/08/2014,22562590,1,1110,Nil,Agency Staff,Revenue,Business Services,CAT02,Agency,SUBCAT0204,31230,Employment & Recruitment Agencies,,Not yet available
Wakefield MDC,E08000036,30/09/2014,BUSINESS,Net (Surplus) / Deficit of Trading Operations,A,DETAILS REDACTED,Redacted,Not yet available,Not yet available,Not yet available,01/08/2014,22562589,1,1110,Nil,Agency Staff,Revenue,Business Services,CAT02,Agency,SUBCAT0204,31230,Employment & Recruitment Agencies,,Not yet available
Wakefield MDC,E08000036,30/09/2014,BUSINESS,Net (Surplus) / Deficit of Trading Operations,A,DETAILS REDACTED,Redacted,Not yet available,Not yet available,Not yet available,01/08/2014,22562591,1,1110,Nil,Agency Staff,Revenue,Business Services,CAT02,Agency,SUBCAT0204,31230,Employment & Recruitment Agencies,,Not yet available
Wakefield MDC,E08000036,30/09/2014,BUSINESS,Net (Surplus) / Deficit of Trading Operations,A,DETAILS REDACTED,Redacted,Not yet available,Not yet available,Not yet available,01/08/2014,22562592,1,1110,Nil,Agency Staff,Revenue,Business Services,CAT02,Agency,SUBCAT0204,31230,Employment & Recruitment Agencies,,Not yet available
Wakefield MDC,E08000036,30/09/2014,BUSINESS,Net (Surplus) / Deficit of Trading Operations,A,DETAILS REDACTED,Redacted,Not yet available,Not yet available,Not yet available,10/07/2014,22544109,1,1110,Nil,Agency Staff,Revenue,Business Services,CAT02,Agency,SUBCAT0204,31230,Employment & Recruitment Agencies,,Not yet available
Wakefield MDC,E08000036,30/09/2014,BUSINESS,Net (Surplus) / Deficit of Trading Operations,A,DETAILS REDACTED,Redacted,Not yet available,Not yet available,Not yet available,17/09/2014,22598867,1,960,Nil,Agency Staff,Revenue,Business Services,CAT02,Agency,SUBCAT0204,31230,Employment & Recruitment Agencies,,Not yet available
Wakefield MDC,E08000036,30/09/2014,BUSINESS,Net (Surplus) / Deficit of Trading Operations,A,DETAILS REDACTED,Redacted,Not yet available,Not yet available,Not yet available,02/09/2014,22583194,1,1110,Nil,Agency Staff,Revenue,Business Services,CAT02,Agency,SUBCAT0204,31230,Employment & Recruitment Agencies,,Not yet available
Wakefield MDC,E08000036,30/09/2014,BUSINESS,Net (Surplus) / Deficit of Trading Operations,A,DETAILS REDACTED,Redacted,Not yet available,Not yet available,Not yet available,02/09/2014,22583195,1,1110,Nil,Agency Staff,Revenue,Business Services,CAT02,Agency,SUBCAT0204,31230,Employment & Recruitment Agencies,,Not yet available
Wakefield MDC,E08000036,30/09/2014,BUSINESS,Net (Surplus) / Deficit of Trading Operations,A,DETAILS REDACTED,Redacted,Not yet available,Not yet available,Not yet available,02/09/2014,22583142,1,1110,Nil,Agency Staff,Revenue,Business Services,CAT02,Agency,SUBCAT0204,31230,Employment & Recruitment Agencies,,Not yet available
Wakefield MDC,E08000036,30/09/2014,BUSINESS,Net (Surplus) / Deficit of Trading Operations,A,DETAILS REDACTED,Redacted,Not yet available,Not yet available,Not yet available,17/09/2014,22598865,1,1110,Nil,Agency Staff,Revenue,Business Services,CAT02,Agency,SUBCAT0204,31230,Employment & Recruitment Agencies,,Not yet available
Wakefield MDC,E08000036,30/09/2014,BUSINESS,Net (Surplus) / Deficit of Trading Operations,A,DETAILS REDACTED,Redacted,Not yet available,Not yet available,Not yet available,17/09/2014,22598866,1,1110,Nil,Agency Staff,Revenue,Business Services,CAT02,Agency,SUBCAT0204,31230,Employment & Recruitment Agencies,,Not yet available
Wakefield MDC,E08000036,30/09/2014,BUSINESS,Net (Surplus) / Deficit of Trading Operations,A,DETAILS REDACTED,Redacted,Not yet available,Not yet available,Not yet available,26/09/2014,22604479,1,1103.5,Nil,Agency Staff,Revenue,Business Services,CAT02,Agency,SUBCAT0204,31230,Employment & Recruitment Agencies,,Not yet available
Wakefield MDC,E08000036,30/09/2014,BUSINESS,Net (Surplus) / Deficit of Trading Operations,A,DETAILS REDACTED,Redacted,Not yet available,Not yet available,Not yet available,02/09/2014,22583049,,969.75,Nil,Agency Staff,Revenue,Business Services,CAT02,Agency,SUBCAT0204,31230,Employment & Recruitment Agencies,,Not yet available
Wakefield MDC,E08000036,30/09/2014,BUSINESS,Net (Surplus) / Deficit of Trading Operations,A,DETAILS REDACTED,Redacted,Not yet available,Not yet available,Not yet available,31/07/2014,22563100,1,1353.25,Nil,Agency Staff,Revenue,Business Services,CAT02,Agency,SUBCAT0204,31230,Employment & Recruitment Agencies,,Not yet available
Wakefield MDC,E08000036,30/09/2014,BUSINESS,Net (Surplus) / Deficit of Trading Operations,A,DETAILS REDACTED,Redacted,Not yet available,Not yet available,Not yet available,02/07/2014,22538505,1,1031,Nil,Agency Staff,Revenue,Business Services,CAT02,Agency,SUBCAT0204,31230,Employment & Recruitment Agencies,,Not yet available
Wakefield MDC,E08000036,30/09/2014,BUSINESS,Net (Surplus) / Deficit of Trading Operations,A,DETAILS REDACTED,Redacted,Not yet available,Not yet available,Not yet available,04/09/2014,22584639,1,549.5,Nil,Agency Staff,Revenue,Business Services,CAT02,Agency,SUBCAT0204,31230,Employment & Recruitment Agencies,,Not yet available
Wakefield MDC,E08000036,30/09/2014,BUSINESS,Net (Surplus) / Deficit of Trading Operations,A,HEWITT OCCUPATIONAL SERVICES LTD,Redacted,Not yet available,Not yet available,Not yet available,22/09/2014,22589263,1,1530,Nil,Agency Staff,Revenue,Business Services,CAT02,Agency,SUBCAT0204,31230,Employment & Recruitment Agencies,,Not yet available
Wakefield MDC,E08000036,30/09/2014,REGENCULT,Highways & Transport Services,5,HORWICH LTD,Redacted,Not yet available,Not yet available,Not yet available,01/07/2014,22537169,1,1426.5,Nil,Agency Staff,Revenue,Highways,CAT07,Highways Schemes,SUBCAT0702,65200,Road Construction Contractors,,Not yet available
Wakefield MDC,E08000036,30/09/2014,REGENCULT,Highways & Transport Services,5,HORWICH LTD,Redacted,Not yet available,Not yet available,Not yet available,04/07/2014,22538389,1,1619,Nil,Agency Staff,Revenue,Highways,CAT07,Highways Schemes,SUBCAT0702,65200,Road Construction Contractors,,Not yet available
Wakefield MDC,E08000036,30/09/2014,REGENCULT,Highways & Transport Services,5,HORWICH LTD,Redacted,Not yet available,Not yet available,Not yet available,23/09/2014,22591768,1,1598.5,Nil,Agency Staff,Revenue,Highways,CAT07,Highways Schemes,SUBCAT0702,65200,Road Construction Contractors,,Not yet available
Wakefield MDC,E08000036,30/09/2014,REGENCULT,Highways & Transport Services,5,HORWICH LTD,Redacted,Not yet available,Not yet available,Not yet available,29/09/2014,22603822,1,1761.5,Nil,Agency Staff,Revenue,Highways,CAT07,Highways Schemes,SUBCAT0702,65200,Road Construction Contractors,,Not yet available
Wakefield MDC,E08000036,30/09/2014,REGENCULT,Highways & Transport Services,5,HORWICH LTD,Redacted,Not yet available,Not yet available,Not yet available,04/09/2014,22583286,1,1368.75,Nil,Agency Staff,Revenue,Highways,CAT07,Highways Schemes,SUBCAT0702,65200,Road Construction Contractors,,Not yet available
Wakefield MDC,E08000036,30/09/2014,REGENCULT,Highways & Transport Services,5,HORWICH LTD,Redacted,Not yet available,Not yet available,Not yet available,02/09/2014,22582661,1,1646,Nil,Agency Staff,Revenue,Highways,CAT07,Highways Schemes,SUBCAT0702,65200,Road Construction Contractors,,Not yet available
Wakefield MDC,E08000036,30/09/2014,REGENCULT,Highways & Transport Services,5,HORWICH LTD,Redacted,Not yet available,Not yet available,Not yet available,29/09/2014,22604610,1,1497.75,Nil,Agency Staff,Revenue,Highways,CAT07,Highways Schemes,SUBCAT0702,65200,Road Construction Contractors,,Not yet available
Wakefield MDC,E08000036,30/09/2014,REGENCULT,Highways & Transport Services,5,HORWICH LTD,Redacted,Not yet available,Not yet available,Not yet available,11/09/2014,22588033,1,1684.5,Nil,Agency Staff,Revenue,Highways,CAT07,Highways Schemes,SUBCAT0702,65200,Road Construction Contractors,,Not yet available
Wakefield MDC,E08000036,30/09/2014,REGENCULT,Highways & Transport Services,5,HORWICH LTD,Redacted,Not yet available,Not yet available,Not yet available,02/09/2014,22582660,1,1634.5,Nil,Agency Staff,Revenue,Highways,CAT07,Highways Schemes,SUBCAT0702,65200,Road Construction Contractors,,Not yet available
Wakefield MDC,E08000036,30/09/2014,REGENCULT,Highways & Transport Services,5,HORWICH LTD,Redacted,Not yet available,Not yet available,Not yet available,11/07/2014,22543349,1,1684.5,Nil,Agency Staff,Revenue,Highways,CAT07,Highways Schemes,SUBCAT0702,65200,Road Construction Contractors,,Not yet available
Wakefield MDC,E08000036,30/09/2014,REGENCULT,Highways & Transport Services,5,HORWICH LTD,Redacted,Not yet available,Not yet available,Not yet available,18/07/2014,22548775,1,1646,Nil,Agency Staff,Revenue,Highways,CAT07,Highways Schemes,SUBCAT0702,65200,Road Construction Contractors,,Not yet available
Wakefield MDC,E08000036,30/09/2014,REGENCULT,Highways & Transport Services,5,HORWICH LTD,Redacted,Not yet available,Not yet available,Not yet available,11/08/2014,22564005,1,1607.5,Nil,Agency Staff,Revenue,Highways,CAT07,Highways Schemes,SUBCAT0702,65200,Road Construction Contractors,,Not yet available
Wakefield MDC,E08000036,30/09/2014,REGENCULT,Highways & Transport Services,5,HORWICH LTD,Redacted,Not yet available,Not yet available,Not yet available,11/08/2014,22564017,1,1605.25,Nil,Agency Staff,Revenue,Highways,CAT07,Highways Schemes,SUBCAT0702,65200,Road Construction Contractors,,Not yet available
Wakefield MDC,E08000036,30/09/2014,REGENCULT,Highways & Transport Services,5,HORWICH LTD,Redacted,Not yet available,Not yet available,Not yet available,11/08/2014,22564039,1,1607.5,Nil,Agency Staff,Revenue,Highways,CAT07,Highways Schemes,SUBCAT0702,65200,Road Construction Contractors,,Not yet available
Wakefield MDC,E08000036,30/09/2014,REGENCULT,Highways & Transport Services,5,HORWICH LTD,Redacted,Not yet available,Not yet available,Not yet available,04/08/2014,22559316,1,1925.13,Nil,Agency Staff,Revenue,Highways,CAT07,Highways Schemes,SUBCAT0702,65200,Road Construction Contractors,,Not yet available
Wakefield MDC,E08000036,30/09/2014,BUSINESS,Net (Surplus) / Deficit of Trading Operations,A,JJ OCCUPATIONAL HEALTH,Redacted,Not yet available,Not yet available,Not yet available,22/09/2014,22589237,1,1500,Nil,Agency Staff,Revenue,Business Services,CAT02,Agency,SUBCAT0204,31230,Employment & Recruitment Agencies,,Not yet available
Wakefield MDC,E08000036,30/09/2014,BUSINESS,Net (Surplus) / Deficit of Trading Operations,A,JJ OCCUPATIONAL HEALTH,Redacted,Not yet available,Not yet available,Not yet available,08/07/2014,22540981,1,1220,Nil,Agency Staff,Revenue,Business Services,CAT02,Agency,SUBCAT0204,31230,Employment & Recruitment Agencies,,Not yet available
Wakefield MDC,E08000036,30/09/2014,BUSINESS,Net (Surplus) / Deficit of Trading Operations,A,JJ OCCUPATIONAL HEALTH,Redacted,Not yet available,Not yet available,Not yet available,19/08/2014,22564960,1,2120,Nil,Agency Staff,Revenue,Business Services,CAT02,Agency,SUBCAT0204,31230,Employment & Recruitment Agencies,,Not yet available
Wakefield MDC,E08000036,30/09/2014,REGENCULT,Highways & Transport Services,5,KINGFISHER CONSTRUCTION (WAKEFIELD) LTD,Redacted,Not yet available,Not yet available,Not yet available,04/08/2014,22559330,1,934.2,Nil,Agency Staff,Revenue,Property & Asset Management,CAT01,Construction,SUBCAT0130,21555,Construction Contractors - General,,Not yet available
Wakefield MDC,E08000036,30/09/2014,REGENCULT,Highways & Transport Services,5,KINGFISHER CONSTRUCTION (WAKEFIELD) LTD,Redacted,Not yet available,Not yet available,Not yet available,26/08/2014,22580268,1,934.2,Nil,Agency Staff,Revenue,Property & Asset Management,CAT01,Construction,SUBCAT0130,21555,Construction Contractors - General,,Not yet available
Wakefield MDC,E08000036,30/09/2014,REGENCULT,Highways & Transport Services,5,KINGFISHER CONSTRUCTION (WAKEFIELD) LTD,Redacted,Not yet available,Not yet available,Not yet available,22/09/2014,22589921,1,934.2,Nil,Agency Staff,Revenue,Property & Asset Management,CAT01,Construction,SUBCAT0130,21555,Construction Contractors - General,,Not yet available
Wakefield MDC,E08000036,30/09/2014,REGENCULT,Highways & Transport Services,5,KINGFISHER CONSTRUCTION (WAKEFIELD) LTD,Redacted,Not yet available,Not yet available,Not yet available,26/08/2014,22579701,1,934.2,Nil,Agency Staff,Revenue,Property & Asset Management,CAT01,Construction,SUBCAT0130,21555,Construction Contractors - General,,Not yet available
Wakefield MDC,E08000036,30/09/2014,REGENCULT,Highways & Transport Services,5,KINGFISHER CONSTRUCTION (WAKEFIELD) LTD,Redacted,Not yet available,Not yet available,Not yet available,21/07/2014,22549275,1,934.2,Nil,Agency Staff,Revenue,Property & Asset Management,CAT01,Construction,SUBCAT0130,21555,Construction Contractors - General,,Not yet available
Wakefield MDC,E08000036,30/09/2014,REGENCULT,Highways & Transport Services,5,KINGFISHER CONSTRUCTION (WAKEFIELD) LTD,Redacted,Not yet available,Not yet available,Not yet available,11/08/2014,22564002,1,1868.4,Nil,Agency Staff,Revenue,Property & Asset Management,CAT01,Construction,SUBCAT0130,21555,Construction Contractors - General,,Not yet available
Wakefield MDC,E08000036,30/09/2014,REGENCULT,Highways & Transport Services,5,KINGFISHER CONSTRUCTION (WAKEFIELD) LTD,Redacted,Not yet available,Not yet available,Not yet available,09/07/2014,22541411,1,934.2,Nil,Agency Staff,Revenue,Property & Asset Management,CAT01,Construction,SUBCAT0130,21555,Construction Contractors - General,,Not yet available
Wakefield MDC,E08000036,30/09/2014,REGENCULT,Highways & Transport Services,5,KINGFISHER CONSTRUCTION (WAKEFIELD) LTD,Redacted,Not yet available,Not yet available,Not yet available,01/07/2014,22537182,1,924.3,Nil,Agency Staff,Revenue,Property & Asset Management,CAT01,Construction,SUBCAT0130,21555,Construction Contractors - General,,Not yet available
Wakefield MDC,E08000036,30/09/2014,REGENCULT,Highways & Transport Services,5,KINGFISHER CONSTRUCTION (WAKEFIELD) LTD,Redacted,Not yet available,Not yet available,Not yet available,11/09/2014,22588042,1,934.2,Nil,Agency Staff,Revenue,Property & Asset Management,CAT01,Construction,SUBCAT0130,21555,Construction Contractors - General,,Not yet available
Wakefield MDC,E08000036,30/09/2014,REGENCULT,Highways & Transport Services,5,KINGFISHER CONSTRUCTION (WAKEFIELD) LTD,Redacted,Not yet available,Not yet available,Not yet available,02/09/2014,22582925,1,934.2,Nil,Agency Staff,Revenue,Property & Asset Management,CAT01,Construction,SUBCAT0130,21555,Construction Contractors - General,,Not yet available
Wakefield MDC,E08000036,30/09/2014,REGENCULT,Highways & Transport Services,5,KINGFISHER CONSTRUCTION (WAKEFIELD) LTD,Redacted,Not yet available,Not yet available,Not yet available,29/09/2014,22604597,1,934.2,Nil,Agency Staff,Revenue,Property & Asset Management,CAT01,Construction,SUBCAT0130,21555,Construction Contractors - General,,Not yet available
Wakefield MDC,E08000036,30/09/2014,REGENCULT,Highways & Transport Services,5,KINGFISHER CONSTRUCTION (WAKEFIELD) LTD,Redacted,Not yet available,Not yet available,Not yet available,29/09/2014,22603730,1,934.2,Nil,Agency Staff,Revenue,Property & Asset Management,CAT01,Construction,SUBCAT0130,21555,Construction Contractors - General,,Not yet available
Wakefield MDC,E08000036,30/09/2014,REGENCULT,Highways & Transport Services,5,KINGFISHER CONSTRUCTION (WAKEFIELD) LTD,Redacted,Not yet available,Not yet available,Not yet available,18/07/2014,22545002,1,934.2,Nil,Agency Staff,Revenue,Property & Asset Management,CAT01,Construction,SUBCAT0130,21555,Construction Contractors - General,,Not yet available
Wakefield MDC,E08000036,30/09/2014,ADULTS,Adult Social Care,7,MATRIX SCM LTD,Redacted,Not yet available,Not yet available,Not yet available,30/07/2014,170278,80,1246.9,Nil,Agency Staff,Revenue,Business Services,CAT02,Agency,SUBCAT0204,31230,Employment & Recruitment Agencies,,Not yet available
Wakefield MDC,E08000036,30/09/2014,ADULTS,Adult Social Care,7,MATRIX SCM LTD,Redacted,Not yet available,Not yet available,Not yet available,06/08/2014,170279,82,1255.44,Nil,Agency Staff,Revenue,Business Services,CAT02,Agency,SUBCAT0204,31230,Employment & Recruitment Agencies,,Not yet available
Wakefield MDC,E08000036,30/09/2014,ADULTS,Adult Social Care,7,MATRIX SCM LTD,Redacted,Not yet available,Not yet available,Not yet available,01/10/2014,170287,119,1292.04,Nil,Agency Staff,Revenue,Business Services,CAT02,Agency,SUBCAT0204,31230,Employment & Recruitment Agencies,,Not yet available
Wakefield MDC,E08000036,30/09/2014,ADULTS,Adult Social Care,7,MATRIX SCM LTD,Redacted,Not yet available,Not yet available,Not yet available,24/09/2014,170286,74,1292.04,Nil,Agency Staff,Revenue,Business Services,CAT02,Agency,SUBCAT0204,31230,Employment & Recruitment Agencies,,Not yet available
Wakefield MDC,E08000036,30/09/2014,ADULTS,Adult Social Care,7,MATRIX SCM LTD,Redacted,Not yet available,Not yet available,Not yet available,10/09/2014,170284,75,1152.36,Nil,Agency Staff,Revenue,Business Services,CAT02,Agency,SUBCAT0204,31230,Employment & Recruitment Agencies,,Not yet available
Wakefield MDC,E08000036,30/09/2014,ADULTS,Adult Social Care,7,MATRIX SCM LTD,Redacted,Not yet available,Not yet available,Not yet available,02/07/2014,170274,49,1295,Nil,Agency Staff,Revenue,Business Services,CAT02,Agency,SUBCAT0204,31230,Employment & Recruitment Agencies,,Not yet available
Wakefield MDC,E08000036,30/09/2014,ADULTS,Adult Social Care,7,MATRIX SCM LTD,Redacted,Not yet available,Not yet available,Not yet available,03/09/2014,170283,86,1239.66,Nil,Agency Staff,Revenue,Business Services,CAT02,Agency,SUBCAT0204,31230,Employment & Recruitment Agencies,,Not yet available
Wakefield MDC,E08000036,30/09/2014,ADULTS,Adult Social Care,7,MATRIX SCM LTD,Redacted,Not yet available,Not yet available,Not yet available,09/07/2014,170275,66,1055.24,Nil,Agency Staff,Revenue,Business Services,CAT02,Agency,SUBCAT0204,31230,Employment & Recruitment Agencies,,Not yet available
Wakefield MDC,E08000036,30/09/2014,ADULTS,Adult Social Care,7,MATRIX SCM LTD,Redacted,Not yet available,Not yet available,Not yet available,16/07/2014,170276,29,1341.62,Nil,Agency Staff,Revenue,Business Services,CAT02,Agency,SUBCAT0204,31230,Employment & Recruitment Agencies,,Not yet available
Wakefield MDC,E08000036,30/09/2014,ADULTS,Adult Social Care,7,MATRIX SCM LTD,Redacted,Not yet available,Not yet available,Not yet available,13/08/2014,170280,78,1292.04,Nil,Agency Staff,Revenue,Business Services,CAT02,Agency,SUBCAT0204,31230,Employment & Recruitment Agencies,,Not yet available
Wakefield MDC,E08000036,30/09/2014,ADULTS,Adult Social Care,7,MATRIX SCM LTD,Redacted,Not yet available,Not yet available,Not yet available,17/09/2014,170285,75,1292.04,Nil,Agency Staff,Revenue,Business Services,CAT02,Agency,SUBCAT0204,31230,Employment & Recruitment Agencies,,Not yet available
Wakefield MDC,E08000036,30/09/2014,ADULTS,Adult Social Care,7,MATRIX SCM LTD,Redacted,Not yet available,Not yet available,Not yet available,23/07/2014,170277,68,1085.05,Nil,Agency Staff,Revenue,Business Services,CAT02,Agency,SUBCAT0204,31230,Employment & Recruitment Agencies,,Not yet available
Wakefield MDC,E08000036,30/09/2014,ADULTS,Adult Social Care,7,MATRIX SCM LTD,Redacted,Not yet available,Not yet available,Not yet available,02/07/2014,170274,75,1055.24,Nil,Agency Staff,Revenue,Business Services,CAT02,Agency,SUBCAT0204,31230,Employment & Recruitment Agencies,,Not yet available
Wakefield MDC,E08000036,30/09/2014,ADULTS,Adult Social Care,7,MATRIX SCM LTD,Redacted,Not yet available,Not yet available,Not yet available,30/07/2014,170278,73,1092.63,Nil,Agency Staff,Revenue,Business Services,CAT02,Agency,SUBCAT0204,31230,Employment & Recruitment Agencies,,Not yet available
Wakefield MDC,E08000036,30/09/2014,ADULTS,Adult Social Care,7,MATRIX SCM LTD,Redacted,Not yet available,Not yet available,Not yet available,06/08/2014,170279,76,1092.63,Nil,Agency Staff,Revenue,Business Services,CAT02,Agency,SUBCAT0204,31230,Employment & Recruitment Agencies,,Not yet available
Wakefield MDC,E08000036,30/09/2014,ADULTS,Adult Social Care,7,MATRIX SCM LTD,Redacted,Not yet available,Not yet available,Not yet available,03/09/2014,170283,9,1292.04,Nil,Agency Staff,Revenue,Business Services,CAT02,Agency,SUBCAT0204,31230,Employment & Recruitment Agencies,,Not yet available
Wakefield MDC,E08000036,30/09/2014,ADULTS,Adult Social Care,7,MATRIX SCM LTD,Redacted,Not yet available,Not yet available,Not yet available,09/07/2014,170275,51,1044.7,Nil,Agency Staff,Revenue,Business Services,CAT02,Agency,SUBCAT0204,31230,Employment & Recruitment Agencies,,Not yet available
Wakefield MDC,E08000036,30/09/2014,ADULTS,Adult Social Care,7,MATRIX SCM LTD,Redacted,Not yet available,Not yet available,Not yet available,16/07/2014,170276,75,1246.9,Nil,Agency Staff,Revenue,Business Services,CAT02,Agency,SUBCAT0204,31230,Employment & Recruitment Agencies,,Not yet available
Wakefield MDC,E08000036,30/09/2014,ADULTS,Adult Social Care,7,MATRIX SCM LTD,Redacted,Not yet available,Not yet available,Not yet available,23/07/2014,170277,69,1246.9,Nil,Agency Staff,Revenue,Business Services,CAT02,Agency,SUBCAT0204,31230,Employment & Recruitment Agencies,,Not yet available
Wakefield MDC,E08000036,30/09/2014,ADULTS,Adult Social Care,7,MATRIX SCM LTD,Redacted,Not yet available,Not yet available,Not yet available,23/07/2014,170277,12,1055.24,Nil,Agency Staff,Revenue,Business Services,CAT02,Agency,SUBCAT0204,31230,Employment & Recruitment Agencies,,Not yet available
Wakefield MDC,E08000036,30/09/2014,ADULTS,Adult Social Care,7,MATRIX SCM LTD,Redacted,Not yet available,Not yet available,Not yet available,27/08/2014,170282,5,1292.04,Nil,Agency Staff,Revenue,Business Services,CAT02,Agency,SUBCAT0204,31230,Employment & Recruitment Agencies,,Not yet available
Wakefield MDC,E08000036,30/09/2014,ADULTS,Adult Social Care,7,MATRIX SCM LTD,Redacted,Not yet available,Not yet available,Not yet available,09/07/2014,170275,46,1295,Nil,Agency Staff,Revenue,Business Services,CAT02,Agency,SUBCAT0204,31230,Employment & Recruitment Agencies,,Not yet available
Wakefield MDC,E08000036,30/09/2014,CHILDYOU,Children's and Education Services,4,MATRIX SCM LTD,Redacted,Not yet available,Not yet available,Not yet available,30/07/2014,170278,50,1092.63,Nil,Agency Staff,Revenue,Business Services,CAT02,Agency,SUBCAT0204,31230,Employment & Recruitment Agencies,,Not yet available
Wakefield MDC,E08000036,30/09/2014,CHILDYOU,Children's and Education Services,4,MATRIX SCM LTD,Redacted,Not yet available,Not yet available,Not yet available,06/08/2014,170279,42,1092.63,Nil,Agency Staff,Revenue,Business Services,CAT02,Agency,SUBCAT0204,31230,Employment & Recruitment Agencies,,Not yet available
Wakefield MDC,E08000036,30/09/2014,CHILDYOU,Children's and Education Services,4,MATRIX SCM LTD,Redacted,Not yet available,Not yet available,Not yet available,02/07/2014,170274,33,1092.63,Nil,Agency Staff,Revenue,Business Services,CAT02,Agency,SUBCAT0204,31230,Employment & Recruitment Agencies,,Not yet available
Wakefield MDC,E08000036,30/09/2014,CHILDYOU,Children's and Education Services,4,MATRIX SCM LTD,Redacted,Not yet available,Not yet available,Not yet available,16/07/2014,170276,33,885.92,Nil,Agency Staff,Revenue,Business Services,CAT02,Agency,SUBCAT0204,31230,Employment & Recruitment Agencies,,Not yet available
Wakefield MDC,E08000036,30/09/2014,CHILDYOU,Children's and Education Services,4,MATRIX SCM LTD,Redacted,Not yet available,Not yet available,Not yet available,02/07/2014,170274,28,1004.04,Nil,Agency Staff,Revenue,Business Services,CAT02,Agency,SUBCAT0204,31230,Employment & Recruitment Agencies,,Not yet available
Wakefield MDC,E08000036,30/09/2014,CHILDYOU,Children's and Education Services,4,MATRIX SCM LTD,Redacted,Not yet available,Not yet available,Not yet available,30/07/2014,170278,79,1092.63,Nil,Agency Staff,Revenue,Business Services,CAT02,Agency,SUBCAT0204,31230,Employment & Recruitment Agencies,,Not yet available
Wakefield MDC,E08000036,30/09/2014,CHILDYOU,Children's and Education Services,4,MATRIX SCM LTD,Redacted,Not yet available,Not yet available,Not yet available,02/07/2014,170274,46,1092.63,Nil,Agency Staff,Revenue,Business Services,CAT02,Agency,SUBCAT0204,31230,Employment & Recruitment Agencies,,Not yet available
Wakefield MDC,E08000036,30/09/2014,CHILDYOU,Children's and Education Services,4,MATRIX SCM LTD,Redacted,Not yet available,Not yet available,Not yet available,06/08/2014,170279,60,664.44,Nil,Agency Staff,Revenue,Business Services,CAT02,Agency,SUBCAT0204,31230,Employment & Recruitment Agencies,,Not yet available
Wakefield MDC,E08000036,30/09/2014,CHILDYOU,Children's and Education Services,4,MATRIX SCM LTD,Redacted,Not yet available,Not yet available,Not yet available,09/07/2014,170275,25,1092.63,Nil,Agency Staff,Revenue,Business Services,CAT02,Agency,SUBCAT0204,31230,Employment & Recruitment Agencies,,Not yet available
Wakefield MDC,E08000036,30/09/2014,CHILDYOU,Children's and Education Services,4,MATRIX SCM LTD,Redacted,Not yet available,Not yet available,Not yet available,06/08/2014,170279,58,944.96,Nil,Agency Staff,Revenue,Business Services,CAT02,Agency,SUBCAT0204,31230,Employment & Recruitment Agencies,,Not yet available
Wakefield MDC,E08000036,30/09/2014,CHILDYOU,Children's and Education Services,4,MATRIX SCM LTD,Redacted,Not yet available,Not yet available,Not yet available,23/07/2014,170277,66,1092.63,Nil,Agency Staff,Revenue,Business Services,CAT02,Agency,SUBCAT0204,31230,Employment & Recruitment Agencies,,Not yet available
Wakefield MDC,E08000036,30/09/2014,CHILDYOU,Children's and Education Services,4,MATRIX SCM LTD,Redacted,Not yet available,Not yet available,Not yet available,16/07/2014,170276,59,871.15,Nil,Agency Staff,Revenue,Business Services,CAT02,Agency,SUBCAT0204,31230,Employment & Recruitment Agencies,,Not yet available
Wakefield MDC,E08000036,30/09/2014,CHILDYOU,Children's and Education Services,4,MATRIX SCM LTD,Redacted,Not yet available,Not yet available,Not yet available,30/07/2014,170278,12,1092.63,Nil,Agency Staff,Revenue,Business Services,CAT02,Agency,SUBCAT0204,31230,Employment & Recruitment Agencies,,Not yet available
Wakefield MDC,E08000036,30/09/2014,CHILDYOU,Children's and Education Services,4,MATRIX SCM LTD,Redacted,Not yet available,Not yet available,Not yet available,09/07/2014,170275,29,1092.63,Nil,Agency Staff,Revenue,Business Services,CAT02,Agency,SUBCAT0204,31230,Employment & Recruitment Agencies,,Not yet available
Wakefield MDC,E08000036,30/09/2014,CHILDYOU,Children's and Education Services,4,MATRIX SCM LTD,Redacted,Not yet available,Not yet available,Not yet available,23/07/2014,170277,45,1092.63,Nil,Agency Staff,Revenue,Business Services,CAT02,Agency,SUBCAT0204,31230,Employment & Recruitment Agencies,,Not yet available
Wakefield MDC,E08000036,30/09/2014,CHILDYOU,Children's and Education Services,4,MATRIX SCM LTD,Redacted,Not yet available,Not yet available,Not yet available,30/07/2014,170278,63,679.2,Nil,Agency Staff,Revenue,Business Services,CAT02,Agency,SUBCAT0204,31230,Employment & Recruitment Agencies,,Not yet available
Wakefield MDC,E08000036,30/09/2014,CHILDYOU,Children's and Education Services,4,MATRIX SCM LTD,Redacted,Not yet available,Not yet available,Not yet available,16/07/2014,170276,67,1092.63,Nil,Agency Staff,Revenue,Business Services,CAT02,Agency,SUBCAT0204,31230,Employment & Recruitment Agencies,,Not yet available
Wakefield MDC,E08000036,30/09/2014,REGENCULT,Environmental and Regulatory Services,M,MATRIX SCM LTD,Redacted,Not yet available,Not yet available,Not yet available,03/09/2014,170283,29,557.56,Nil,Agency Staff,Revenue,Business Services,CAT02,Agency,SUBCAT0204,31230,Employment & Recruitment Agencies,,Not yet available
Wakefield MDC,E08000036,30/09/2014,BUSINESS,Net (Surplus) / Deficit of Trading Operations,A,MATRIX SCM LTD,Redacted,Not yet available,Not yet available,Not yet available,09/07/2014,170275,56,543.01,Nil,Agency Staff,Revenue,Business Services,CAT02,Agency,SUBCAT0204,31230,Employment & Recruitment Agencies,,Not yet available
Wakefield MDC,E08000036,30/09/2014,BUSINESS,Net (Surplus) / Deficit of Trading Operations,A,MATRIX SCM LTD,Redacted,Not yet available,Not yet available,Not yet available,23/07/2014,170277,54,556.59,Nil,Agency Staff,Revenue,Business Services,CAT02,Agency,SUBCAT0204,31230,Employment & Recruitment Agencies,,Not yet available
Wakefield MDC,E08000036,30/09/2014,BUSINESS,Net (Surplus) / Deficit of Trading Operations,A,MATRIX SCM LTD,Redacted,Not yet available,Not yet available,Not yet available,27/08/2014,170282,72,552.06,Nil,Agency Staff,Revenue,Business Services,CAT02,Agency,SUBCAT0204,31230,Employment & Recruitment Agencies,,Not yet available
Wakefield MDC,E08000036,30/09/2014,BUSINESS,Net (Surplus) / Deficit of Trading Operations,A,MATRIX SCM LTD,Redacted,Not yet available,Not yet available,Not yet available,06/08/2014,170279,25,552.05,Nil,Agency Staff,Revenue,Business Services,CAT02,Agency,SUBCAT0204,31230,Employment & Recruitment Agencies,,Not yet available
Wakefield MDC,E08000036,30/09/2014,BUSINESS,Net (Surplus) / Deficit of Trading Operations,A,MATRIX SCM LTD,Redacted,Not yet available,Not yet available,Not yet available,01/10/2014,170287,121,543,Nil,Agency Staff,Revenue,Business Services,CAT02,Agency,SUBCAT0204,31230,Employment & Recruitment Agencies,,Not yet available
Wakefield MDC,E08000036,30/09/2014,BUSINESS,Net (Surplus) / Deficit of Trading Operations,A,MATRIX SCM LTD,Redacted,Not yet available,Not yet available,Not yet available,24/09/2014,170286,60,502.28,Nil,Agency Staff,Revenue,Business Services,CAT02,Agency,SUBCAT0204,31230,Employment & Recruitment Agencies,,Not yet available
Wakefield MDC,E08000036,30/09/2014,BUSINESS,Net (Surplus) / Deficit of Trading Operations,A,MATRIX SCM LTD,Redacted,Not yet available,Not yet available,Not yet available,24/09/2014,170286,11,543.01,Nil,Agency Staff,Revenue,Business Services,CAT02,Agency,SUBCAT0204,31230,Employment & Recruitment Agencies,,Not yet available
Wakefield MDC,E08000036,30/09/2014,ADULTS,Adult Social Care,7,MATRIX SCM LTD,Redacted,Not yet available,Not yet available,Not yet available,27/08/2014,170282,8,693.96,Nil,Agency Staff,Revenue,Business Services,CAT02,Agency,SUBCAT0204,31230,Employment & Recruitment Agencies,,Not yet available
Wakefield MDC,E08000036,30/09/2014,ADULTS,Adult Social Care,7,MATRIX SCM LTD,Redacted,Not yet available,Not yet available,Not yet available,27/08/2014,170282,73,1299.34,Nil,Agency Staff,Revenue,Business Services,CAT02,Agency,SUBCAT0204,31230,Employment & Recruitment Agencies,,Not yet available
Wakefield MDC,E08000036,30/09/2014,ADULTS,Adult Social Care,7,MATRIX SCM LTD,Redacted,Not yet available,Not yet available,Not yet available,30/07/2014,170278,81,1373.16,Nil,Agency Staff,Revenue,Business Services,CAT02,Agency,SUBCAT0204,31230,Employment & Recruitment Agencies,,Not yet available
Wakefield MDC,E08000036,30/09/2014,ADULTS,Adult Social Care,7,MATRIX SCM LTD,Redacted,Not yet available,Not yet available,Not yet available,16/07/2014,170276,88,841.62,Nil,Agency Staff,Revenue,Business Services,CAT02,Agency,SUBCAT0204,31230,Employment & Recruitment Agencies,,Not yet available
Wakefield MDC,E08000036,30/09/2014,ADULTS,Adult Social Care,7,MATRIX SCM LTD,Redacted,Not yet available,Not yet available,Not yet available,13/08/2014,170280,71,1284.57,Nil,Agency Staff,Revenue,Business Services,CAT02,Agency,SUBCAT0204,31230,Employment & Recruitment Agencies,,Not yet available
Wakefield MDC,E08000036,30/09/2014,ADULTS,Adult Social Care,7,MATRIX SCM LTD,Redacted,Not yet available,Not yet available,Not yet available,09/07/2014,170275,67,1373.16,Nil,Agency Staff,Revenue,Business Services,CAT02,Agency,SUBCAT0204,31230,Employment & Recruitment Agencies,,Not yet available
Wakefield MDC,E08000036,30/09/2014,ADULTS,Adult Social Care,7,MATRIX SCM LTD,Redacted,Not yet available,Not yet available,Not yet available,24/09/2014,170286,70,1240.28,Nil,Agency Staff,Revenue,Business Services,CAT02,Agency,SUBCAT0204,31230,Employment & Recruitment Agencies,,Not yet available
Wakefield MDC,E08000036,30/09/2014,ADULTS,Adult Social Care,7,MATRIX SCM LTD,Redacted,Not yet available,Not yet available,Not yet available,01/10/2014,170287,128,1195.97,Nil,Agency Staff,Revenue,Business Services,CAT02,Agency,SUBCAT0204,31230,Employment & Recruitment Agencies,,Not yet available
Wakefield MDC,E08000036,30/09/2014,ADULTS,Adult Social Care,7,MATRIX SCM LTD,Redacted,Not yet available,Not yet available,Not yet available,17/09/2014,170285,81,708.72,Nil,Agency Staff,Revenue,Business Services,CAT02,Agency,SUBCAT0204,31230,Employment & Recruitment Agencies,,Not yet available
Wakefield MDC,E08000036,30/09/2014,ADULTS,Adult Social Care,7,MATRIX SCM LTD,Redacted,Not yet available,Not yet available,Not yet available,06/08/2014,170279,77,1255.04,Nil,Agency Staff,Revenue,Business Services,CAT02,Agency,SUBCAT0204,31230,Employment & Recruitment Agencies,,Not yet available
Wakefield MDC,E08000036,30/09/2014,ADULTS,Adult Social Care,7,MATRIX SCM LTD,Redacted,Not yet available,Not yet available,Not yet available,03/09/2014,170283,78,1218.12,Nil,Agency Staff,Revenue,Business Services,CAT02,Agency,SUBCAT0204,31230,Employment & Recruitment Agencies,,Not yet available
Wakefield MDC,E08000036,30/09/2014,ADULTS,Adult Social Care,7,MATRIX SCM LTD,Redacted,Not yet available,Not yet available,Not yet available,02/07/2014,170274,55,1018.79,Nil,Agency Staff,Revenue,Business Services,CAT02,Agency,SUBCAT0204,31230,Employment & Recruitment Agencies,,Not yet available
Wakefield MDC,E08000036,30/09/2014,REGENCULT,Highways & Transport Services,5,MATRIX SCM LTD,Redacted,Not yet available,Not yet available,Not yet available,24/09/2014,170286,12,830.85,Nil,Agency Staff,Revenue,Business Services,CAT02,Agency,SUBCAT0204,31230,Employment & Recruitment Agencies,,Not yet available
Wakefield MDC,E08000036,30/09/2014,REGENCULT,Highways & Transport Services,5,MATRIX SCM LTD,Redacted,Not yet available,Not yet available,Not yet available,13/08/2014,170280,2,836.25,Nil,Agency Staff,Revenue,Business Services,CAT02,Agency,SUBCAT0204,31230,Employment & Recruitment Agencies,,Not yet available
Wakefield MDC,E08000036,30/09/2014,REGENCULT,Highways & Transport Services,5,MATRIX SCM LTD,Redacted,Not yet available,Not yet available,Not yet available,01/10/2014,170287,7,776.9,Nil,Agency Staff,Revenue,Business Services,CAT02,Agency,SUBCAT0204,31230,Employment & Recruitment Agencies,,Not yet available
Wakefield MDC,E08000036,30/09/2014,REGENCULT,Highways & Transport Services,5,MATRIX SCM LTD,Redacted,Not yet available,Not yet available,Not yet available,30/07/2014,170278,4,852.43,Nil,Agency Staff,Revenue,Business Services,CAT02,Agency,SUBCAT0204,31230,Employment & Recruitment Agencies,,Not yet available
Wakefield MDC,E08000036,30/09/2014,REGENCULT,Highways & Transport Services,5,MATRIX SCM LTD,Redacted,Not yet available,Not yet available,Not yet available,30/07/2014,170278,2,561.1,Nil,Agency Staff,Revenue,Business Services,CAT02,Agency,SUBCAT0204,31230,Employment & Recruitment Agencies,,Not yet available
Wakefield MDC,E08000036,30/09/2014,REGENCULT,Highways & Transport Services,5,MATRIX SCM LTD,Redacted,Not yet available,Not yet available,Not yet available,13/08/2014,170280,9,679.79,Nil,Agency Staff,Revenue,Business Services,CAT02,Agency,SUBCAT0204,31230,Employment & Recruitment Agencies,,Not yet available
Wakefield MDC,E08000036,30/09/2014,REGENCULT,Highways & Transport Services,5,MATRIX SCM LTD,Redacted,Not yet available,Not yet available,Not yet available,17/09/2014,170285,22,841.64,Nil,Agency Staff,Revenue,Business Services,CAT02,Agency,SUBCAT0204,31230,Employment & Recruitment Agencies,,Not yet available
Wakefield MDC,E08000036,30/09/2014,REGENCULT,Highways & Transport Services,5,MATRIX SCM LTD,Redacted,Not yet available,Not yet available,Not yet available,30/07/2014,170278,9,852.42,Nil,Agency Staff,Revenue,Business Services,CAT02,Agency,SUBCAT0204,31230,Employment & Recruitment Agencies,,Not yet available
Wakefield MDC,E08000036,30/09/2014,REGENCULT,Highways & Transport Services,5,MATRIX SCM LTD,Redacted,Not yet available,Not yet available,Not yet available,01/10/2014,170287,110,836.25,Nil,Agency Staff,Revenue,Business Services,CAT02,Agency,SUBCAT0204,31230,Employment & Recruitment Agencies,,Not yet available
Wakefield MDC,E08000036,30/09/2014,CHILDYOU,Children's and Education Services,4,MATRIX SCM LTD,Redacted,Not yet available,Not yet available,Not yet available,01/10/2014,170287,105,1092.63,Nil,Agency Staff,Revenue,Business Services,CAT02,Agency,SUBCAT0204,31230,Employment & Recruitment Agencies,,Not yet available
Wakefield MDC,E08000036,30/09/2014,CHILDYOU,Children's and Education Services,4,MATRIX SCM LTD,Redacted,Not yet available,Not yet available,Not yet available,03/09/2014,170283,60,1092.62,Nil,Agency Staff,Revenue,Business Services,CAT02,Agency,SUBCAT0204,31230,Employment & Recruitment Agencies,,Not yet available
Wakefield MDC,E08000036,30/09/2014,CHILDYOU,Children's and Education Services,4,MATRIX SCM LTD,Redacted,Not yet available,Not yet available,Not yet available,17/09/2014,170285,55,1092.63,Nil,Agency Staff,Revenue,Business Services,CAT02,Agency,SUBCAT0204,31230,Employment & Recruitment Agencies,,Not yet available
Wakefield MDC,E08000036,30/09/2014,CHILDYOU,Children's and Education Services,4,MATRIX SCM LTD,Redacted,Not yet available,Not yet available,Not yet available,23/07/2014,170277,76,1092.63,Nil,Agency Staff,Revenue,Business Services,CAT02,Agency,SUBCAT0204,31230,Employment & Recruitment Agencies,,Not yet available
Wakefield MDC,E08000036,30/09/2014,CHILDYOU,Children's and Education Services,4,MATRIX SCM LTD,Redacted,Not yet available,Not yet available,Not yet available,24/09/2014,170286,36,1092.63,Nil,Agency Staff,Revenue,Business Services,CAT02,Agency,SUBCAT0204,31230,Employment & Recruitment Agencies,,Not yet available
Wakefield MDC,E08000036,30/09/2014,CHILDYOU,Children's and Education Services,4,MATRIX SCM LTD,Redacted,Not yet available,Not yet available,Not yet available,20/08/2014,170281,51,1092.63,Nil,Agency Staff,Revenue,Business Services,CAT02,Agency,SUBCAT0204,31230,Employment & Recruitment Agencies,,Not yet available
Wakefield MDC,E08000036,30/09/2014,CHILDYOU,Children's and Education Services,4,MATRIX SCM LTD,Redacted,Not yet available,Not yet available,Not yet available,06/08/2014,170279,50,1077.87,Nil,Agency Staff,Revenue,Business Services,CAT02,Agency,SUBCAT0204,31230,Employment & Recruitment Agencies,,Not yet available
Wakefield MDC,E08000036,30/09/2014,CHILDYOU,Children's and Education Services,4,MATRIX SCM LTD,Redacted,Not yet available,Not yet available,Not yet available,13/08/2014,170280,63,1107.39,Nil,Agency Staff,Revenue,Business Services,CAT02,Agency,SUBCAT0204,31230,Employment & Recruitment Agencies,,Not yet available
Wakefield MDC,E08000036,30/09/2014,CHILDYOU,Children's and Education Services,4,MATRIX SCM LTD,Redacted,Not yet available,Not yet available,Not yet available,27/08/2014,170282,64,1092.63,Nil,Agency Staff,Revenue,Business Services,CAT02,Agency,SUBCAT0204,31230,Employment & Recruitment Agencies,,Not yet available
Wakefield MDC,E08000036,30/09/2014,CHILDYOU,Children's and Education Services,4,MATRIX SCM LTD,Redacted,Not yet available,Not yet available,Not yet available,02/07/2014,170274,26,1092.63,Nil,Agency Staff,Revenue,Business Services,CAT02,Agency,SUBCAT0204,31230,Employment & Recruitment Agencies,,Not yet available
Wakefield MDC,E08000036,30/09/2014,CHILDYOU,Children's and Education Services,4,MATRIX SCM LTD,Redacted,Not yet available,Not yet available,Not yet available,30/07/2014,170278,57,738.26,Nil,Agency Staff,Revenue,Business Services,CAT02,Agency,SUBCAT0204,31230,Employment & Recruitment Agencies,,Not yet available
Wakefield MDC,E08000036,30/09/2014,CHILDYOU,Children's and Education Services,4,MATRIX SCM LTD,Redacted,Not yet available,Not yet available,Not yet available,10/09/2014,170284,49,1092.63,Nil,Agency Staff,Revenue,Business Services,CAT02,Agency,SUBCAT0204,31230,Employment & Recruitment Agencies,,Not yet available
Wakefield MDC,E08000036,30/09/2014,CHILDYOU,Children's and Education Services,4,MATRIX SCM LTD,Redacted,Not yet available,Not yet available,Not yet available,10/09/2014,170284,58,1166.44,Nil,Agency Staff,Revenue,Business Services,CAT02,Agency,SUBCAT0204,31230,Employment & Recruitment Agencies,,Not yet available
Wakefield MDC,E08000036,30/09/2014,CHILDYOU,Children's and Education Services,4,MATRIX SCM LTD,Redacted,Not yet available,Not yet available,Not yet available,27/08/2014,170282,55,1151.67,Nil,Agency Staff,Revenue,Business Services,CAT02,Agency,SUBCAT0204,31230,Employment & Recruitment Agencies,,Not yet available
Wakefield MDC,E08000036,30/09/2014,CHILDYOU,Children's and Education Services,4,MATRIX SCM LTD,Redacted,Not yet available,Not yet available,Not yet available,02/07/2014,170274,38,1337.92,Nil,Agency Staff,Revenue,Business Services,CAT02,Agency,SUBCAT0204,31230,Employment & Recruitment Agencies,,Not yet available
Wakefield MDC,E08000036,30/09/2014,CHILDYOU,Children's and Education Services,4,MATRIX SCM LTD,Redacted,Not yet available,Not yet available,Not yet available,13/08/2014,170280,96,590.6,Nil,Agency Staff,Revenue,Business Services,CAT02,Agency,SUBCAT0204,31230,Employment & Recruitment Agencies,,Not yet available
Wakefield MDC,E08000036,30/09/2014,CHILDYOU,Children's and Education Services,4,MATRIX SCM LTD,Redacted,Not yet available,Not yet available,Not yet available,09/07/2014,170275,20,1181.2,Nil,Agency Staff,Revenue,Business Services,CAT02,Agency,SUBCAT0204,31230,Employment & Recruitment Agencies,,Not yet available
Wakefield MDC,E08000036,30/09/2014,CHILDYOU,Children's and Education Services,4,MATRIX SCM LTD,Redacted,Not yet available,Not yet available,Not yet available,20/08/2014,170281,14,994.4,Nil,Agency Staff,Revenue,Business Services,CAT02,Agency,SUBCAT0204,31230,Employment & Recruitment Agencies,,Not yet available
Wakefield MDC,E08000036,30/09/2014,CHILDYOU,Children's and Education Services,4,MATRIX SCM LTD,Redacted,Not yet available,Not yet available,Not yet available,09/07/2014,170275,61,1921.95,Nil,Agency Staff,Revenue,Business Services,CAT02,Agency,SUBCAT0204,31230,Employment & Recruitment Agencies,,Not yet available
Wakefield MDC,E08000036,30/09/2014,CHILDYOU,Children's and Education Services,4,MATRIX SCM LTD,Redacted,Not yet available,Not yet available,Not yet available,17/09/2014,170285,70,1166.44,Nil,Agency Staff,Revenue,Business Services,CAT02,Agency,SUBCAT0204,31230,Employment & Recruitment Agencies,,Not yet available
Wakefield MDC,E08000036,30/09/2014,CHILDYOU,Children's and Education Services,4,MATRIX SCM LTD,Redacted,Not yet available,Not yet available,Not yet available,13/08/2014,170280,89,1921.95,Nil,Agency Staff,Revenue,Business Services,CAT02,Agency,SUBCAT0204,31230,Employment & Recruitment Agencies,,Not yet available
Wakefield MDC,E08000036,30/09/2014,CHILDYOU,Children's and Education Services,4,MATRIX SCM LTD,Redacted,Not yet available,Not yet available,Not yet available,03/09/2014,170283,51,994.4,Nil,Agency Staff,Revenue,Business Services,CAT02,Agency,SUBCAT0204,31230,Employment & Recruitment Agencies,,Not yet available
Wakefield MDC,E08000036,30/09/2014,CHILDYOU,Children's and Education Services,4,MATRIX SCM LTD,Redacted,Not yet available,Not yet available,Not yet available,30/07/2014,170278,68,1166.44,Nil,Agency Staff,Revenue,Business Services,CAT02,Agency,SUBCAT0204,31230,Employment & Recruitment Agencies,,Not yet available
Wakefield MDC,E08000036,30/09/2014,CHILDYOU,Children's and Education Services,4,MATRIX SCM LTD,Redacted,Not yet available,Not yet available,Not yet available,23/07/2014,170277,8,1181.2,Nil,Agency Staff,Revenue,Business Services,CAT02,Agency,SUBCAT0204,31230,Employment & Recruitment Agencies,,Not yet available
Wakefield MDC,E08000036,30/09/2014,CHILDYOU,Children's and Education Services,4,MATRIX SCM LTD,Redacted,Not yet available,Not yet available,Not yet available,24/09/2014,170286,55,1708.4,Nil,Agency Staff,Revenue,Business Services,CAT02,Agency,SUBCAT0204,31230,Employment & Recruitment Agencies,,Not yet available
Wakefield MDC,E08000036,30/09/2014,CHILDYOU,Children's and Education Services,4,MATRIX SCM LTD,Redacted,Not yet available,Not yet available,Not yet available,02/07/2014,170274,65,1708.4,Nil,Agency Staff,Revenue,Business Services,CAT02,Agency,SUBCAT0204,31230,Employment & Recruitment Agencies,,Not yet available
Wakefield MDC,E08000036,30/09/2014,CHILDYOU,Children's and Education Services,4,MATRIX SCM LTD,Redacted,Not yet available,Not yet available,Not yet available,10/09/2014,170284,50,1665.69,Nil,Agency Staff,Revenue,Business Services,CAT02,Agency,SUBCAT0204,31230,Employment & Recruitment Agencies,,Not yet available
Wakefield MDC,E08000036,30/09/2014,CHILDYOU,Children's and Education Services,4,MATRIX SCM LTD,Redacted,Not yet available,Not yet available,Not yet available,06/08/2014,170279,29,1066.72,Nil,Agency Staff,Revenue,Business Services,CAT02,Agency,SUBCAT0204,31230,Employment & Recruitment Agencies,,Not yet available
Wakefield MDC,E08000036,30/09/2014,CHILDYOU,Children's and Education Services,4,MATRIX SCM LTD,Redacted,Not yet available,Not yet available,Not yet available,30/07/2014,170278,36,1337.92,Nil,Agency Staff,Revenue,Business Services,CAT02,Agency,SUBCAT0204,31230,Employment & Recruitment Agencies,,Not yet available
Wakefield MDC,E08000036,30/09/2014,CHILDYOU,Children's and Education Services,4,MATRIX SCM LTD,Redacted,Not yet available,Not yet available,Not yet available,24/09/2014,170286,34,605.37,Nil,Agency Staff,Revenue,Business Services,CAT02,Agency,SUBCAT0204,31230,Employment & Recruitment Agencies,,Not yet available
Wakefield MDC,E08000036,30/09/2014,CHILDYOU,Children's and Education Services,4,MATRIX SCM LTD,Redacted,Not yet available,Not yet available,Not yet available,03/09/2014,170283,77,1181.2,Nil,Agency Staff,Revenue,Business Services,CAT02,Agency,SUBCAT0204,31230,Employment & Recruitment Agencies,,Not yet available
Wakefield MDC,E08000036,30/09/2014,CHILDYOU,Children's and Education Services,4,MATRIX SCM LTD,Redacted,Not yet available,Not yet available,Not yet available,16/07/2014,170276,27,1337.92,Nil,Agency Staff,Revenue,Business Services,CAT02,Agency,SUBCAT0204,31230,Employment & Recruitment Agencies,,Not yet available
Wakefield MDC,E08000036,30/09/2014,CHILDYOU,Children's and Education Services,4,MATRIX SCM LTD,Redacted,Not yet available,Not yet available,Not yet available,24/09/2014,170286,46,1337.92,Nil,Agency Staff,Revenue,Business Services,CAT02,Agency,SUBCAT0204,31230,Employment & Recruitment Agencies,,Not yet available
Wakefield MDC,E08000036,30/09/2014,CHILDYOU,Children's and Education Services,4,MATRIX SCM LTD,Redacted,Not yet available,Not yet available,Not yet available,30/07/2014,170278,13,1921.95,Nil,Agency Staff,Revenue,Business Services,CAT02,Agency,SUBCAT0204,31230,Employment & Recruitment Agencies,,Not yet available
Wakefield MDC,E08000036,30/09/2014,CHILDYOU,Children's and Education Services,4,MATRIX SCM LTD,Redacted,Not yet available,Not yet available,Not yet available,02/07/2014,170274,78,1151.67,Nil,Agency Staff,Revenue,Business Services,CAT02,Agency,SUBCAT0204,31230,Employment & Recruitment Agencies,,Not yet available
Wakefield MDC,E08000036,30/09/2014,CHILDYOU,Children's and Education Services,4,MATRIX SCM LTD,Redacted,Not yet available,Not yet available,Not yet available,03/09/2014,170283,30,1708.4,Nil,Agency Staff,Revenue,Business Services,CAT02,Agency,SUBCAT0204,31230,Employment & Recruitment Agencies,,Not yet available
Wakefield MDC,E08000036,30/09/2014,CHILDYOU,Children's and Education Services,4,MATRIX SCM LTD,Redacted,Not yet available,Not yet available,Not yet available,24/09/2014,170286,41,930.2,Nil,Agency Staff,Revenue,Business Services,CAT02,Agency,SUBCAT0204,31230,Employment & Recruitment Agencies,,Not yet available
Wakefield MDC,E08000036,30/09/2014,CHILDYOU,Children's and Education Services,4,MATRIX SCM LTD,Redacted,Not yet available,Not yet available,Not yet available,30/07/2014,170278,8,1166.44,Nil,Agency Staff,Revenue,Business Services,CAT02,Agency,SUBCAT0204,31230,Employment & Recruitment Agencies,,Not yet available
Wakefield MDC,E08000036,30/09/2014,CHILDYOU,Children's and Education Services,4,MATRIX SCM LTD,Redacted,Not yet available,Not yet available,Not yet available,17/09/2014,170285,29,1708.4,Nil,Agency Staff,Revenue,Business Services,CAT02,Agency,SUBCAT0204,31230,Employment & Recruitment Agencies,,Not yet available
Wakefield MDC,E08000036,30/09/2014,CHILDYOU,Children's and Education Services,4,MATRIX SCM LTD,Redacted,Not yet available,Not yet available,Not yet available,23/07/2014,170277,4,1921.95,Nil,Agency Staff,Revenue,Business Services,CAT02,Agency,SUBCAT0204,31230,Employment & Recruitment Agencies,,Not yet available
Wakefield MDC,E08000036,30/09/2014,CHILDYOU,Children's and Education Services,4,MATRIX SCM LTD,Redacted,Not yet available,Not yet available,Not yet available,13/08/2014,170280,97,590.6,Nil,Agency Staff,Revenue,Business Services,CAT02,Agency,SUBCAT0204,31230,Employment & Recruitment Agencies,,Not yet available
Wakefield MDC,E08000036,30/09/2014,CHILDYOU,Children's and Education Services,4,MATRIX SCM LTD,Redacted,Not yet available,Not yet available,Not yet available,20/08/2014,170281,32,1921.95,Nil,Agency Staff,Revenue,Business Services,CAT02,Agency,SUBCAT0204,31230,Employment & Recruitment Agencies,,Not yet available
Wakefield MDC,E08000036,30/09/2014,CHILDYOU,Children's and Education Services,4,MATRIX SCM LTD,Redacted,Not yet available,Not yet available,Not yet available,09/07/2014,170275,50,1337.92,Nil,Agency Staff,Revenue,Business Services,CAT02,Agency,SUBCAT0204,31230,Employment & Recruitment Agencies,,Not yet available
Wakefield MDC,E08000036,30/09/2014,CHILDYOU,Children's and Education Services,4,MATRIX SCM LTD,Redacted,Not yet available,Not yet available,Not yet available,23/07/2014,170277,14,1337.92,Nil,Agency Staff,Revenue,Business Services,CAT02,Agency,SUBCAT0204,31230,Employment & Recruitment Agencies,,Not yet available
Wakefield MDC,E08000036,30/09/2014,CHILDYOU,Children's and Education Services,4,MATRIX SCM LTD,Redacted,Not yet available,Not yet available,Not yet available,06/08/2014,170279,61,1921.95,Nil,Agency Staff,Revenue,Business Services,CAT02,Agency,SUBCAT0204,31230,Employment & Recruitment Agencies,,Not yet available
Wakefield MDC,E08000036,30/09/2014,CHILDYOU,Children's and Education Services,4,MATRIX SCM LTD,Redacted,Not yet available,Not yet available,Not yet available,17/09/2014,170285,73,1337.92,Nil,Agency Staff,Revenue,Business Services,CAT02,Agency,SUBCAT0204,31230,Employment & Recruitment Agencies,,Not yet available
Wakefield MDC,E08000036,30/09/2014,CHILDYOU,Children's and Education Services,4,MATRIX SCM LTD,Redacted,Not yet available,Not yet available,Not yet available,27/08/2014,170282,58,915.43,Nil,Agency Staff,Revenue,Business Services,CAT02,Agency,SUBCAT0204,31230,Employment & Recruitment Agencies,,Not yet available
Wakefield MDC,E08000036,30/09/2014,CHILDYOU,Children's and Education Services,4,MATRIX SCM LTD,Redacted,Not yet available,Not yet available,Not yet available,20/08/2014,170281,42,885.9,Nil,Agency Staff,Revenue,Business Services,CAT02,Agency,SUBCAT0204,31230,Employment & Recruitment Agencies,,Not yet available
Wakefield MDC,E08000036,30/09/2014,CHILDYOU,Children's and Education Services,4,MATRIX SCM LTD,Redacted,Not yet available,Not yet available,Not yet available,10/09/2014,170284,27,1337.92,Nil,Agency Staff,Revenue,Business Services,CAT02,Agency,SUBCAT0204,31230,Employment & Recruitment Agencies,,Not yet available
Wakefield MDC,E08000036,30/09/2014,CHILDYOU,Children's and Education Services,4,MATRIX SCM LTD,Redacted,Not yet available,Not yet available,Not yet available,27/08/2014,170282,77,1265.6,Nil,Agency Staff,Revenue,Business Services,CAT02,Agency,SUBCAT0204,31230,Employment & Recruitment Agencies,,Not yet available
Wakefield MDC,E08000036,30/09/2014,CHILDYOU,Children's and Education Services,4,MATRIX SCM LTD,Redacted,Not yet available,Not yet available,Not yet available,01/10/2014,170287,62,1708.4,Nil,Agency Staff,Revenue,Business Services,CAT02,Agency,SUBCAT0204,31230,Employment & Recruitment Agencies,,Not yet available
Wakefield MDC,E08000036,30/09/2014,CHILDYOU,Children's and Education Services,4,MATRIX SCM LTD,Redacted,Not yet available,Not yet available,Not yet available,30/07/2014,170278,70,1921.95,Nil,Agency Staff,Revenue,Business Services,CAT02,Agency,SUBCAT0204,31230,Employment & Recruitment Agencies,,Not yet available
Wakefield MDC,E08000036,30/09/2014,CHILDYOU,Children's and Education Services,4,MATRIX SCM LTD,Redacted,Not yet available,Not yet available,Not yet available,13/08/2014,170280,95,590.6,Nil,Agency Staff,Revenue,Business Services,CAT02,Agency,SUBCAT0204,31230,Employment & Recruitment Agencies,,Not yet available
Wakefield MDC,E08000036,30/09/2014,CHILDYOU,Children's and Education Services,4,MATRIX SCM LTD,Redacted,Not yet available,Not yet available,Not yet available,03/09/2014,170283,68,1708.4,Nil,Agency Staff,Revenue,Business Services,CAT02,Agency,SUBCAT0204,31230,Employment & Recruitment Agencies,,Not yet available
Wakefield MDC,E08000036,30/09/2014,CHILDYOU,Children's and Education Services,4,MATRIX SCM LTD,Redacted,Not yet available,Not yet available,Not yet available,01/10/2014,170287,65,1337.92,Nil,Agency Staff,Revenue,Business Services,CAT02,Agency,SUBCAT0204,31230,Employment & Recruitment Agencies,,Not yet available
Wakefield MDC,E08000036,30/09/2014,CHILDYOU,Children's and Education Services,4,MATRIX SCM LTD,Redacted,Not yet available,Not yet available,Not yet available,13/08/2014,170280,74,1195.97,Nil,Agency Staff,Revenue,Business Services,CAT02,Agency,SUBCAT0204,31230,Employment & Recruitment Agencies,,Not yet available
Wakefield MDC,E08000036,30/09/2014,CHILDYOU,Children's and Education Services,4,MATRIX SCM LTD,Redacted,Not yet available,Not yet available,Not yet available,09/07/2014,170275,3,908.05,Nil,Agency Staff,Revenue,Business Services,CAT02,Agency,SUBCAT0204,31230,Employment & Recruitment Agencies,,Not yet available
Wakefield MDC,E08000036,30/09/2014,CHILDYOU,Children's and Education Services,4,MATRIX SCM LTD,Redacted,Not yet available,Not yet available,Not yet available,01/10/2014,170287,97,1410.39,Nil,Agency Staff,Revenue,Business Services,CAT02,Agency,SUBCAT0204,31230,Employment & Recruitment Agencies,,Not yet available
Wakefield MDC,E08000036,30/09/2014,CHILDYOU,Children's and Education Services,4,MATRIX SCM LTD,Redacted,Not yet available,Not yet available,Not yet available,27/08/2014,170282,66,1292.04,Nil,Agency Staff,Revenue,Business Services,CAT02,Agency,SUBCAT0204,31230,Employment & Recruitment Agencies,,Not yet available
Wakefield MDC,E08000036,30/09/2014,CHILDYOU,Children's and Education Services,4,MATRIX SCM LTD,Redacted,Not yet available,Not yet available,Not yet available,24/09/2014,170286,56,1494.85,Nil,Agency Staff,Revenue,Business Services,CAT02,Agency,SUBCAT0204,31230,Employment & Recruitment Agencies,,Not yet available
Wakefield MDC,E08000036,30/09/2014,CHILDYOU,Children's and Education Services,4,MATRIX SCM LTD,Redacted,Not yet available,Not yet available,Not yet available,23/07/2014,170277,6,1391.59,Nil,Agency Staff,Revenue,Business Services,CAT02,Agency,SUBCAT0204,31230,Employment & Recruitment Agencies,,Not yet available
Wakefield MDC,E08000036,30/09/2014,CHILDYOU,Children's and Education Services,4,MATRIX SCM LTD,Redacted,Not yet available,Not yet available,Not yet available,30/07/2014,170278,71,1606.32,Nil,Agency Staff,Revenue,Business Services,CAT02,Agency,SUBCAT0204,31230,Employment & Recruitment Agencies,,Not yet available
Wakefield MDC,E08000036,30/09/2014,CHILDYOU,Children's and Education Services,4,MATRIX SCM LTD,Redacted,Not yet available,Not yet available,Not yet available,27/08/2014,170282,65,1292.04,Nil,Agency Staff,Revenue,Business Services,CAT02,Agency,SUBCAT0204,31230,Employment & Recruitment Agencies,,Not yet available
Wakefield MDC,E08000036,30/09/2014,CHILDYOU,Children's and Education Services,4,MATRIX SCM LTD,Redacted,Not yet available,Not yet available,Not yet available,06/08/2014,170279,22,1391.59,Nil,Agency Staff,Revenue,Business Services,CAT02,Agency,SUBCAT0204,31230,Employment & Recruitment Agencies,,Not yet available
Wakefield MDC,E08000036,30/09/2014,CHILDYOU,Children's and Education Services,4,MATRIX SCM LTD,Redacted,Not yet available,Not yet available,Not yet available,20/08/2014,170281,31,1372.78,Nil,Agency Staff,Revenue,Business Services,CAT02,Agency,SUBCAT0204,31230,Employment & Recruitment Agencies,,Not yet available
Wakefield MDC,E08000036,30/09/2014,CHILDYOU,Children's and Education Services,4,MATRIX SCM LTD,Redacted,Not yet available,Not yet available,Not yet available,13/08/2014,170280,90,1708.4,Nil,Agency Staff,Revenue,Business Services,CAT02,Agency,SUBCAT0204,31230,Employment & Recruitment Agencies,,Not yet available
Wakefield MDC,E08000036,30/09/2014,CHILDYOU,Children's and Education Services,4,MATRIX SCM LTD,Redacted,Not yet available,Not yet available,Not yet available,23/07/2014,170277,2,752.21,Nil,Agency Staff,Revenue,Business Services,CAT02,Agency,SUBCAT0204,31230,Employment & Recruitment Agencies,,Not yet available
Wakefield MDC,E08000036,30/09/2014,CHILDYOU,Children's and Education Services,4,MATRIX SCM LTD,Redacted,Not yet available,Not yet available,Not yet available,13/08/2014,170280,61,1391.59,Nil,Agency Staff,Revenue,Business Services,CAT02,Agency,SUBCAT0204,31230,Employment & Recruitment Agencies,,Not yet available
Wakefield MDC,E08000036,30/09/2014,CHILDYOU,Children's and Education Services,4,MATRIX SCM LTD,Redacted,Not yet available,Not yet available,Not yet available,09/07/2014,170275,64,1921.95,Nil,Agency Staff,Revenue,Business Services,CAT02,Agency,SUBCAT0204,31230,Employment & Recruitment Agencies,,Not yet available
Wakefield MDC,E08000036,30/09/2014,CHILDYOU,Children's and Education Services,4,MATRIX SCM LTD,Redacted,Not yet available,Not yet available,Not yet available,03/09/2014,170283,87,1187.28,Nil,Agency Staff,Revenue,Business Services,CAT02,Agency,SUBCAT0204,31230,Employment & Recruitment Agencies,,Not yet available
Wakefield MDC,E08000036,30/09/2014,CHILDYOU,Children's and Education Services,4,MATRIX SCM LTD,Redacted,Not yet available,Not yet available,Not yet available,02/07/2014,170274,63,1571.4,Nil,Agency Staff,Revenue,Business Services,CAT02,Agency,SUBCAT0204,31230,Employment & Recruitment Agencies,,Not yet available
Wakefield MDC,E08000036,30/09/2014,CHILDYOU,Children's and Education Services,4,MATRIX SCM LTD,Redacted,Not yet available,Not yet available,Not yet available,06/08/2014,170279,78,1071.9,Nil,Agency Staff,Revenue,Business Services,CAT02,Agency,SUBCAT0204,31230,Employment & Recruitment Agencies,,Not yet available
Wakefield MDC,E08000036,30/09/2014,CHILDYOU,Children's and Education Services,4,MATRIX SCM LTD,Redacted,Not yet available,Not yet available,Not yet available,30/07/2014,170278,93,1751.11,Nil,Agency Staff,Revenue,Business Services,CAT02,Agency,SUBCAT0204,31230,Employment & Recruitment Agencies,,Not yet available
Wakefield MDC,E08000036,30/09/2014,CHILDYOU,Children's and Education Services,4,MATRIX SCM LTD,Redacted,Not yet available,Not yet available,Not yet available,17/09/2014,170285,56,1391.59,Nil,Agency Staff,Revenue,Business Services,CAT02,Agency,SUBCAT0204,31230,Employment & Recruitment Agencies,,Not yet available
Wakefield MDC,E08000036,30/09/2014,CHILDYOU,Children's and Education Services,4,MATRIX SCM LTD,Redacted,Not yet available,Not yet available,Not yet available,02/07/2014,170274,77,1259.95,Nil,Agency Staff,Revenue,Business Services,CAT02,Agency,SUBCAT0204,31230,Employment & Recruitment Agencies,,Not yet available
Wakefield MDC,E08000036,30/09/2014,CHILDYOU,Children's and Education Services,4,MATRIX SCM LTD,Redacted,Not yet available,Not yet available,Not yet available,30/07/2014,170278,10,1484.1,Nil,Agency Staff,Revenue,Business Services,CAT02,Agency,SUBCAT0204,31230,Employment & Recruitment Agencies,,Not yet available
Wakefield MDC,E08000036,30/09/2014,CHILDYOU,Children's and Education Services,4,MATRIX SCM LTD,Redacted,Not yet available,Not yet available,Not yet available,20/08/2014,170281,2,1292.04,Nil,Agency Staff,Revenue,Business Services,CAT02,Agency,SUBCAT0204,31230,Employment & Recruitment Agencies,,Not yet available
Wakefield MDC,E08000036,30/09/2014,CHILDYOU,Children's and Education Services,4,MATRIX SCM LTD,Redacted,Not yet available,Not yet available,Not yet available,01/10/2014,170287,6,1326.96,Nil,Agency Staff,Revenue,Business Services,CAT02,Agency,SUBCAT0204,31230,Employment & Recruitment Agencies,,Not yet available
Wakefield MDC,E08000036,30/09/2014,CHILDYOU,Children's and Education Services,4,MATRIX SCM LTD,Redacted,Not yet available,Not yet available,Not yet available,17/09/2014,170285,77,1326.96,Nil,Agency Staff,Revenue,Business Services,CAT02,Agency,SUBCAT0204,31230,Employment & Recruitment Agencies,,Not yet available
Wakefield MDC,E08000036,30/09/2014,CHILDYOU,Children's and Education Services,4,MATRIX SCM LTD,Redacted,Not yet available,Not yet available,Not yet available,16/07/2014,170276,26,1396.8,Nil,Agency Staff,Revenue,Business Services,CAT02,Agency,SUBCAT0204,31230,Employment & Recruitment Agencies,,Not yet available
Wakefield MDC,E08000036,30/09/2014,CHILDYOU,Children's and Education Services,4,MATRIX SCM LTD,Redacted,Not yet available,Not yet available,Not yet available,10/09/2014,170284,51,1708.4,Nil,Agency Staff,Revenue,Business Services,CAT02,Agency,SUBCAT0204,31230,Employment & Recruitment Agencies,,Not yet available
Wakefield MDC,E08000036,30/09/2014,CHILDYOU,Children's and Education Services,4,MATRIX SCM LTD,Redacted,Not yet available,Not yet available,Not yet available,23/07/2014,170277,7,1466.64,Nil,Agency Staff,Revenue,Business Services,CAT02,Agency,SUBCAT0204,31230,Employment & Recruitment Agencies,,Not yet available
Wakefield MDC,E08000036,30/09/2014,CHILDYOU,Children's and Education Services,4,MATRIX SCM LTD,Redacted,Not yet available,Not yet available,Not yet available,10/09/2014,170284,38,1292.04,Nil,Agency Staff,Revenue,Business Services,CAT02,Agency,SUBCAT0204,31230,Employment & Recruitment Agencies,,Not yet available
Wakefield MDC,E08000036,30/09/2014,CHILDYOU,Children's and Education Services,4,MATRIX SCM LTD,Redacted,Not yet available,Not yet available,Not yet available,02/07/2014,170274,71,1772.47,Nil,Agency Staff,Revenue,Business Services,CAT02,Agency,SUBCAT0204,31230,Employment & Recruitment Agencies,,Not yet available
Wakefield MDC,E08000036,30/09/2014,CHILDYOU,Children's and Education Services,4,MATRIX SCM LTD,Redacted,Not yet available,Not yet available,Not yet available,10/09/2014,170284,78,771.01,Nil,Agency Staff,Revenue,Business Services,CAT02,Agency,SUBCAT0204,31230,Employment & Recruitment Agencies,,Not yet available
Wakefield MDC,E08000036,30/09/2014,CHILDYOU,Children's and Education Services,4,MATRIX SCM LTD,Redacted,Not yet available,Not yet available,Not yet available,17/09/2014,170285,76,1708.4,Nil,Agency Staff,Revenue,Business Services,CAT02,Agency,SUBCAT0204,31230,Employment & Recruitment Agencies,,Not yet available
Wakefield MDC,E08000036,30/09/2014,CHILDYOU,Children's and Education Services,4,MATRIX SCM LTD,Redacted,Not yet available,Not yet available,Not yet available,27/08/2014,170282,46,1644.34,Nil,Agency Staff,Revenue,Business Services,CAT02,Agency,SUBCAT0204,31230,Employment & Recruitment Agencies,,Not yet available
Wakefield MDC,E08000036,30/09/2014,CHILDYOU,Children's and Education Services,4,MATRIX SCM LTD,Redacted,Not yet available,Not yet available,Not yet available,20/08/2014,170281,35,1921.95,Nil,Agency Staff,Revenue,Business Services,CAT02,Agency,SUBCAT0204,31230,Employment & Recruitment Agencies,,Not yet available
Wakefield MDC,E08000036,30/09/2014,CHILDYOU,Children's and Education Services,4,MATRIX SCM LTD,Redacted,Not yet available,Not yet available,Not yet available,30/07/2014,170278,18,1815.18,Nil,Agency Staff,Revenue,Business Services,CAT02,Agency,SUBCAT0204,31230,Employment & Recruitment Agencies,,Not yet available
Wakefield MDC,E08000036,30/09/2014,CHILDYOU,Children's and Education Services,4,MATRIX SCM LTD,Redacted,Not yet available,Not yet available,Not yet available,01/10/2014,170287,93,1772.47,Nil,Agency Staff,Revenue,Business Services,CAT02,Agency,SUBCAT0204,31230,Employment & Recruitment Agencies,,Not yet available
Wakefield MDC,E08000036,30/09/2014,CHILDYOU,Children's and Education Services,4,MATRIX SCM LTD,Redacted,Not yet available,Not yet available,Not yet available,23/07/2014,170277,5,1494.85,Nil,Agency Staff,Revenue,Business Services,CAT02,Agency,SUBCAT0204,31230,Employment & Recruitment Agencies,,Not yet available
Wakefield MDC,E08000036,30/09/2014,CHILDYOU,Children's and Education Services,4,MATRIX SCM LTD,Redacted,Not yet available,Not yet available,Not yet available,24/09/2014,170286,78,1353.98,Nil,Agency Staff,Revenue,Business Services,CAT02,Agency,SUBCAT0204,31230,Employment & Recruitment Agencies,,Not yet available
Wakefield MDC,E08000036,30/09/2014,CHILDYOU,Children's and Education Services,4,MATRIX SCM LTD,Redacted,Not yet available,Not yet available,Not yet available,23/07/2014,170277,55,1391.59,Nil,Agency Staff,Revenue,Business Services,CAT02,Agency,SUBCAT0204,31230,Employment & Recruitment Agencies,,Not yet available
Wakefield MDC,E08000036,30/09/2014,CHILDYOU,Children's and Education Services,4,MATRIX SCM LTD,Redacted,Not yet available,Not yet available,Not yet available,06/08/2014,170279,51,1571.4,Nil,Agency Staff,Revenue,Business Services,CAT02,Agency,SUBCAT0204,31230,Employment & Recruitment Agencies,,Not yet available
Wakefield MDC,E08000036,30/09/2014,CHILDYOU,Children's and Education Services,4,MATRIX SCM LTD,Redacted,Not yet available,Not yet available,Not yet available,06/08/2014,170279,62,1708.4,Nil,Agency Staff,Revenue,Business Services,CAT02,Agency,SUBCAT0204,31230,Employment & Recruitment Agencies,,Not yet available
Wakefield MDC,E08000036,30/09/2014,CHILDYOU,Children's and Education Services,4,MATRIX SCM LTD,Redacted,Not yet available,Not yet available,Not yet available,03/09/2014,170283,69,1708.4,Nil,Agency Staff,Revenue,Business Services,CAT02,Agency,SUBCAT0204,31230,Employment & Recruitment Agencies,,Not yet available
Wakefield MDC,E08000036,30/09/2014,CHILDYOU,Children's and Education Services,4,MATRIX SCM LTD,Redacted,Not yet available,Not yet available,Not yet available,02/07/2014,170274,62,1467.08,Nil,Agency Staff,Revenue,Business Services,CAT02,Agency,SUBCAT0204,31230,Employment & Recruitment Agencies,,Not yet available
Wakefield MDC,E08000036,30/09/2014,ADULTS,Housing Services,6,MATRIX SCM LTD,Redacted,Not yet available,Not yet available,Not yet available,06/08/2014,170279,57,605.71,Nil,Agency Staff,Revenue,Business Services,CAT02,Agency,SUBCAT0204,31230,Employment & Recruitment Agencies,,Not yet available
Wakefield MDC,E08000036,30/09/2014,ADULTS,Housing Services,6,MATRIX SCM LTD,Redacted,Not yet available,Not yet available,Not yet available,13/08/2014,170280,75,605.71,Nil,Agency Staff,Revenue,Business Services,CAT02,Agency,SUBCAT0204,31230,Employment & Recruitment Agencies,,Not yet available
Wakefield MDC,E08000036,30/09/2014,ADULTS,Housing Services,6,MATRIX SCM LTD,Redacted,Not yet available,Not yet available,Not yet available,30/07/2014,170278,61,613.9,Nil,Agency Staff,Revenue,Business Services,CAT02,Agency,SUBCAT0204,31230,Employment & Recruitment Agencies,,Not yet available
Wakefield MDC,E08000036,30/09/2014,ADULTS,Housing Services,6,MATRIX SCM LTD,Redacted,Not yet available,Not yet available,Not yet available,20/08/2014,170281,41,605.71,Nil,Agency Staff,Revenue,Business Services,CAT02,Agency,SUBCAT0204,31230,Employment & Recruitment Agencies,,Not yet available
Wakefield MDC,E08000036,30/09/2014,ADULTS,Housing Services,6,MATRIX SCM LTD,Redacted,Not yet available,Not yet available,Not yet available,27/08/2014,170282,71,605.69,Nil,Agency Staff,Revenue,Business Services,CAT02,Agency,SUBCAT0204,31230,Employment & Recruitment Agencies,,Not yet available
Wakefield MDC,E08000036,30/09/2014,REGENCULT,Environmental and Regulatory Services,M,MATRIX SCM LTD,Redacted,Not yet available,Not yet available,Not yet available,16/07/2014,170276,8,601.02,Nil,Agency Staff,Revenue,Business Services,CAT02,Agency,SUBCAT0204,31230,Employment & Recruitment Agencies,,Not yet available
Wakefield MDC,E08000036,30/09/2014,REGENCULT,Environmental and Regulatory Services,M,MATRIX SCM LTD,Redacted,Not yet available,Not yet available,Not yet available,30/07/2014,170278,25,712,Nil,Agency Staff,Revenue,Business Services,CAT02,Agency,SUBCAT0204,31230,Employment & Recruitment Agencies,,Not yet available
Wakefield MDC,E08000036,30/09/2014,REGENCULT,Environmental and Regulatory Services,M,MATRIX SCM LTD,Redacted,Not yet available,Not yet available,Not yet available,30/07/2014,170278,29,556.5,Nil,Agency Staff,Revenue,Business Services,CAT02,Agency,SUBCAT0204,31230,Employment & Recruitment Agencies,,Not yet available
Wakefield MDC,E08000036,30/09/2014,REGENCULT,Environmental and Regulatory Services,M,MATRIX SCM LTD,Redacted,Not yet available,Not yet available,Not yet available,17/09/2014,170285,17,569.6,Nil,Agency Staff,Revenue,Business Services,CAT02,Agency,SUBCAT0204,31230,Employment & Recruitment Agencies,,Not yet available
Wakefield MDC,E08000036,30/09/2014,REGENCULT,Environmental and Regulatory Services,M,MATRIX SCM LTD,Redacted,Not yet available,Not yet available,Not yet available,01/10/2014,170287,45,569.6,Nil,Agency Staff,Revenue,Business Services,CAT02,Agency,SUBCAT0204,31230,Employment & Recruitment Agencies,,Not yet available
Wakefield MDC,E08000036,30/09/2014,REGENCULT,Environmental and Regulatory Services,M,MATRIX SCM LTD,Redacted,Not yet available,Not yet available,Not yet available,01/10/2014,170287,43,583.84,Nil,Agency Staff,Revenue,Business Services,CAT02,Agency,SUBCAT0204,31230,Employment & Recruitment Agencies,,Not yet available
Wakefield MDC,E08000036,30/09/2014,REGENCULT,Environmental and Regulatory Services,M,MATRIX SCM LTD,Redacted,Not yet available,Not yet available,Not yet available,30/07/2014,170278,31,514.75,Nil,Agency Staff,Revenue,Business Services,CAT02,Agency,SUBCAT0204,31230,Employment & Recruitment Agencies,,Not yet available
Wakefield MDC,E08000036,30/09/2014,REGENCULT,Environmental and Regulatory Services,M,MATRIX SCM LTD,Redacted,Not yet available,Not yet available,Not yet available,01/10/2014,170287,47,569.6,Nil,Agency Staff,Revenue,Business Services,CAT02,Agency,SUBCAT0204,31230,Employment & Recruitment Agencies,,Not yet available
Wakefield MDC,E08000036,30/09/2014,REGENCULT,Environmental and Regulatory Services,M,MATRIX SCM LTD,Redacted,Not yet available,Not yet available,Not yet available,30/07/2014,170278,27,556.5,Nil,Agency Staff,Revenue,Business Services,CAT02,Agency,SUBCAT0204,31230,Employment & Recruitment Agencies,,Not yet available
Wakefield MDC,E08000036,30/09/2014,REGENCULT,Environmental and Regulatory Services,M,MATRIX SCM LTD,Redacted,Not yet available,Not yet available,Not yet available,01/10/2014,170287,46,569.6,Nil,Agency Staff,Revenue,Business Services,CAT02,Agency,SUBCAT0204,31230,Employment & Recruitment Agencies,,Not yet available
Wakefield MDC,E08000036,30/09/2014,REGENCULT,Environmental and Regulatory Services,M,MATRIX SCM LTD,Redacted,Not yet available,Not yet available,Not yet available,30/07/2014,170278,20,573.05,Nil,Agency Staff,Revenue,Business Services,CAT02,Agency,SUBCAT0204,31230,Employment & Recruitment Agencies,,Not yet available
Wakefield MDC,E08000036,30/09/2014,REGENCULT,Environmental and Regulatory Services,M,MATRIX SCM LTD,Redacted,Not yet available,Not yet available,Not yet available,01/10/2014,170287,44,569.6,Nil,Agency Staff,Revenue,Business Services,CAT02,Agency,SUBCAT0204,31230,Employment & Recruitment Agencies,,Not yet available
Wakefield MDC,E08000036,30/09/2014,REGENCULT,Environmental and Regulatory Services,M,MATRIX SCM LTD,Redacted,Not yet available,Not yet available,Not yet available,01/10/2014,170287,42,569.6,Nil,Agency Staff,Revenue,Business Services,CAT02,Agency,SUBCAT0204,31230,Employment & Recruitment Agencies,,Not yet available
Wakefield MDC,E08000036,30/09/2014,CHILDYOU,Children's and Education Services,4,MATRIX SCM LTD,Redacted,Not yet available,Not yet available,Not yet available,27/08/2014,170282,3,1092.63,Nil,Agency Staff,Revenue,Business Services,CAT02,Agency,SUBCAT0204,31230,Employment & Recruitment Agencies,,Not yet available
Wakefield MDC,E08000036,30/09/2014,CHILDYOU,Children's and Education Services,4,MATRIX SCM LTD,Redacted,Not yet available,Not yet available,Not yet available,02/07/2014,170274,23,1092.63,Nil,Agency Staff,Revenue,Business Services,CAT02,Agency,SUBCAT0204,31230,Employment & Recruitment Agencies,,Not yet available
Wakefield MDC,E08000036,30/09/2014,CHILDYOU,Children's and Education Services,4,MATRIX SCM LTD,Redacted,Not yet available,Not yet available,Not yet available,10/09/2014,170284,54,885.92,Nil,Agency Staff,Revenue,Business Services,CAT02,Agency,SUBCAT0204,31230,Employment & Recruitment Agencies,,Not yet available
Wakefield MDC,E08000036,30/09/2014,CHILDYOU,Children's and Education Services,4,MATRIX SCM LTD,Redacted,Not yet available,Not yet available,Not yet available,27/08/2014,170282,52,1092.63,Nil,Agency Staff,Revenue,Business Services,CAT02,Agency,SUBCAT0204,31230,Employment & Recruitment Agencies,,Not yet available
Wakefield MDC,E08000036,30/09/2014,CHILDYOU,Children's and Education Services,4,MATRIX SCM LTD,Redacted,Not yet available,Not yet available,Not yet available,30/07/2014,170278,47,1092.63,Nil,Agency Staff,Revenue,Business Services,CAT02,Agency,SUBCAT0204,31230,Employment & Recruitment Agencies,,Not yet available
Wakefield MDC,E08000036,30/09/2014,CHILDYOU,Children's and Education Services,4,MATRIX SCM LTD,Redacted,Not yet available,Not yet available,Not yet available,13/08/2014,170280,73,1092.63,Nil,Agency Staff,Revenue,Business Services,CAT02,Agency,SUBCAT0204,31230,Employment & Recruitment Agencies,,Not yet available
Wakefield MDC,E08000036,30/09/2014,CHILDYOU,Children's and Education Services,4,MATRIX SCM LTD,Redacted,Not yet available,Not yet available,Not yet available,24/09/2014,170286,18,1092.63,Nil,Agency Staff,Revenue,Business Services,CAT02,Agency,SUBCAT0204,31230,Employment & Recruitment Agencies,,Not yet available
Wakefield MDC,E08000036,30/09/2014,CHILDYOU,Children's and Education Services,4,MATRIX SCM LTD,Redacted,Not yet available,Not yet available,Not yet available,03/09/2014,170283,39,1092.6,Nil,Agency Staff,Revenue,Business Services,CAT02,Agency,SUBCAT0204,31230,Employment & Recruitment Agencies,,Not yet available
Wakefield MDC,E08000036,30/09/2014,CHILDYOU,Children's and Education Services,4,MATRIX SCM LTD,Redacted,Not yet available,Not yet available,Not yet available,01/10/2014,170287,64,1092.63,Nil,Agency Staff,Revenue,Business Services,CAT02,Agency,SUBCAT0204,31230,Employment & Recruitment Agencies,,Not yet available
Wakefield MDC,E08000036,30/09/2014,CHILDYOU,Children's and Education Services,4,MATRIX SCM LTD,Redacted,Not yet available,Not yet available,Not yet available,24/09/2014,170286,33,1092.63,Nil,Agency Staff,Revenue,Business Services,CAT02,Agency,SUBCAT0204,31230,Employment & Recruitment Agencies,,Not yet available
Wakefield MDC,E08000036,30/09/2014,CHILDYOU,Children's and Education Services,4,MATRIX SCM LTD,Redacted,Not yet available,Not yet available,Not yet available,27/08/2014,170282,35,1092.63,Nil,Agency Staff,Revenue,Business Services,CAT02,Agency,SUBCAT0204,31230,Employment & Recruitment Agencies,,Not yet available
Wakefield MDC,E08000036,30/09/2014,CHILDYOU,Children's and Education Services,4,MATRIX SCM LTD,Redacted,Not yet available,Not yet available,Not yet available,16/07/2014,170276,61,797.32,Nil,Agency Staff,Revenue,Business Services,CAT02,Agency,SUBCAT0204,31230,Employment & Recruitment Agencies,,Not yet available
Wakefield MDC,E08000036,30/09/2014,CHILDYOU,Children's and Education Services,4,MATRIX SCM LTD,Redacted,Not yet available,Not yet available,Not yet available,13/08/2014,170280,72,630.36,Nil,Agency Staff,Revenue,Business Services,CAT02,Agency,SUBCAT0204,31230,Employment & Recruitment Agencies,,Not yet available
Wakefield MDC,E08000036,30/09/2014,CHILDYOU,Children's and Education Services,4,MATRIX SCM LTD,Redacted,Not yet available,Not yet available,Not yet available,10/09/2014,170284,55,1092.63,Nil,Agency Staff,Revenue,Business Services,CAT02,Agency,SUBCAT0204,31230,Employment & Recruitment Agencies,,Not yet available
Wakefield MDC,E08000036,30/09/2014,CHILDYOU,Children's and Education Services,4,MATRIX SCM LTD,Redacted,Not yet available,Not yet available,Not yet available,23/07/2014,170277,51,1092.63,Nil,Agency Staff,Revenue,Business Services,CAT02,Agency,SUBCAT0204,31230,Employment & Recruitment Agencies,,Not yet available
Wakefield MDC,E08000036,30/09/2014,CHILDYOU,Children's and Education Services,4,MATRIX SCM LTD,Redacted,Not yet available,Not yet available,Not yet available,01/10/2014,170287,73,1092.63,Nil,Agency Staff,Revenue,Business Services,CAT02,Agency,SUBCAT0204,31230,Employment & Recruitment Agencies,,Not yet available
Wakefield MDC,E08000036,30/09/2014,CHILDYOU,Children's and Education Services,4,MATRIX SCM LTD,Redacted,Not yet available,Not yet available,Not yet available,06/08/2014,170279,40,974.51,Nil,Agency Staff,Revenue,Business Services,CAT02,Agency,SUBCAT0204,31230,Employment & Recruitment Agencies,,Not yet available
Wakefield MDC,E08000036,30/09/2014,CHILDYOU,Children's and Education Services,4,MATRIX SCM LTD,Redacted,Not yet available,Not yet available,Not yet available,13/08/2014,170280,38,1092.63,Nil,Agency Staff,Revenue,Business Services,CAT02,Agency,SUBCAT0204,31230,Employment & Recruitment Agencies,,Not yet available
Wakefield MDC,E08000036,30/09/2014,CHILDYOU,Children's and Education Services,4,MATRIX SCM LTD,Redacted,Not yet available,Not yet available,Not yet available,09/07/2014,170275,36,1092.63,Nil,Agency Staff,Revenue,Business Services,CAT02,Agency,SUBCAT0204,31230,Employment & Recruitment Agencies,,Not yet available
Wakefield MDC,E08000036,30/09/2014,CHILDYOU,Children's and Education Services,4,MATRIX SCM LTD,Redacted,Not yet available,Not yet available,Not yet available,09/07/2014,170275,73,1092.63,Nil,Agency Staff,Revenue,Business Services,CAT02,Agency,SUBCAT0204,31230,Employment & Recruitment Agencies,,Not yet available
Wakefield MDC,E08000036,30/09/2014,CHILDYOU,Children's and Education Services,4,MATRIX SCM LTD,Redacted,Not yet available,Not yet available,Not yet available,27/08/2014,170282,57,546.32,Nil,Agency Staff,Revenue,Business Services,CAT02,Agency,SUBCAT0204,31230,Employment & Recruitment Agencies,,Not yet available
Wakefield MDC,E08000036,30/09/2014,CHILDYOU,Children's and Education Services,4,MATRIX SCM LTD,Redacted,Not yet available,Not yet available,Not yet available,23/07/2014,170277,50,546.32,Nil,Agency Staff,Revenue,Business Services,CAT02,Agency,SUBCAT0204,31230,Employment & Recruitment Agencies,,Not yet available
Wakefield MDC,E08000036,30/09/2014,CHILDYOU,Children's and Education Services,4,MATRIX SCM LTD,Redacted,Not yet available,Not yet available,Not yet available,02/07/2014,170274,59,546.31,Nil,Agency Staff,Revenue,Business Services,CAT02,Agency,SUBCAT0204,31230,Employment & Recruitment Agencies,,Not yet available
Wakefield MDC,E08000036,30/09/2014,CHILDYOU,Children's and Education Services,4,MATRIX SCM LTD,Redacted,Not yet available,Not yet available,Not yet available,03/09/2014,170283,84,797.31,Nil,Agency Staff,Revenue,Business Services,CAT02,Agency,SUBCAT0204,31230,Employment & Recruitment Agencies,,Not yet available
Wakefield MDC,E08000036,30/09/2014,CHILDYOU,Children's and Education Services,4,MATRIX SCM LTD,Redacted,Not yet available,Not yet available,Not yet available,20/08/2014,170281,53,1092.63,Nil,Agency Staff,Revenue,Business Services,CAT02,Agency,SUBCAT0204,31230,Employment & Recruitment Agencies,,Not yet available
Wakefield MDC,E08000036,30/09/2014,CHILDYOU,Children's and Education Services,4,MATRIX SCM LTD,Redacted,Not yet available,Not yet available,Not yet available,09/07/2014,170275,40,546.31,Nil,Agency Staff,Revenue,Business Services,CAT02,Agency,SUBCAT0204,31230,Employment & Recruitment Agencies,,Not yet available
Wakefield MDC,E08000036,30/09/2014,CHILDYOU,Children's and Education Services,4,MATRIX SCM LTD,Redacted,Not yet available,Not yet available,Not yet available,01/10/2014,170287,71,1092.63,Nil,Agency Staff,Revenue,Business Services,CAT02,Agency,SUBCAT0204,31230,Employment & Recruitment Agencies,,Not yet available
Wakefield MDC,E08000036,30/09/2014,CHILDYOU,Children's and Education Services,4,MATRIX SCM LTD,Redacted,Not yet available,Not yet available,Not yet available,23/07/2014,170277,32,1092.63,Nil,Agency Staff,Revenue,Business Services,CAT02,Agency,SUBCAT0204,31230,Employment & Recruitment Agencies,,Not yet available
Wakefield MDC,E08000036,30/09/2014,CHILDYOU,Children's and Education Services,4,MATRIX SCM LTD,Redacted,Not yet available,Not yet available,Not yet available,17/09/2014,170285,69,1092.63,Nil,Agency Staff,Revenue,Business Services,CAT02,Agency,SUBCAT0204,31230,Employment & Recruitment Agencies,,Not yet available
Wakefield MDC,E08000036,30/09/2014,CHILDYOU,Children's and Education Services,4,MATRIX SCM LTD,Redacted,Not yet available,Not yet available,Not yet available,17/09/2014,170285,51,546.32,Nil,Agency Staff,Revenue,Business Services,CAT02,Agency,SUBCAT0204,31230,Employment & Recruitment Agencies,,Not yet available
Wakefield MDC,E08000036,30/09/2014,CHILDYOU,Children's and Education Services,4,MATRIX SCM LTD,Redacted,Not yet available,Not yet available,Not yet available,10/09/2014,170284,77,561.08,Nil,Agency Staff,Revenue,Business Services,CAT02,Agency,SUBCAT0204,31230,Employment & Recruitment Agencies,,Not yet available
Wakefield MDC,E08000036,30/09/2014,CHILDYOU,Children's and Education Services,4,MATRIX SCM LTD,Redacted,Not yet available,Not yet available,Not yet available,16/07/2014,170276,37,1092.63,Nil,Agency Staff,Revenue,Business Services,CAT02,Agency,SUBCAT0204,31230,Employment & Recruitment Agencies,,Not yet available
Wakefield MDC,E08000036,30/09/2014,CHILDYOU,Children's and Education Services,4,MATRIX SCM LTD,Redacted,Not yet available,Not yet available,Not yet available,09/07/2014,170275,32,1092.63,Nil,Agency Staff,Revenue,Business Services,CAT02,Agency,SUBCAT0204,31230,Employment & Recruitment Agencies,,Not yet available
Wakefield MDC,E08000036,30/09/2014,CHILDYOU,Children's and Education Services,4,MATRIX SCM LTD,Redacted,Not yet available,Not yet available,Not yet available,13/08/2014,170280,53,1092.63,Nil,Agency Staff,Revenue,Business Services,CAT02,Agency,SUBCAT0204,31230,Employment & Recruitment Agencies,,Not yet available
Wakefield MDC,E08000036,30/09/2014,CHILDYOU,Children's and Education Services,4,MATRIX SCM LTD,Redacted,Not yet available,Not yet available,Not yet available,23/07/2014,170277,37,1092.63,Nil,Agency Staff,Revenue,Business Services,CAT02,Agency,SUBCAT0204,31230,Employment & Recruitment Agencies,,Not yet available
Wakefield MDC,E08000036,30/09/2014,CHILDYOU,Children's and Education Services,4,MATRIX SCM LTD,Redacted,Not yet available,Not yet available,Not yet available,20/08/2014,170281,10,1092.63,Nil,Agency Staff,Revenue,Business Services,CAT02,Agency,SUBCAT0204,31230,Employment & Recruitment Agencies,,Not yet available
Wakefield MDC,E08000036,30/09/2014,CHILDYOU,Children's and Education Services,4,MATRIX SCM LTD,Redacted,Not yet available,Not yet available,Not yet available,20/08/2014,170281,9,531.55,Nil,Agency Staff,Revenue,Business Services,CAT02,Agency,SUBCAT0204,31230,Employment & Recruitment Agencies,,Not yet available
Wakefield MDC,E08000036,30/09/2014,CHILDYOU,Children's and Education Services,4,MATRIX SCM LTD,Redacted,Not yet available,Not yet available,Not yet available,01/10/2014,170287,96,1092.63,Nil,Agency Staff,Revenue,Business Services,CAT02,Agency,SUBCAT0204,31230,Employment & Recruitment Agencies,,Not yet available
Wakefield MDC,E08000036,30/09/2014,CHILDYOU,Children's and Education Services,4,MATRIX SCM LTD,Redacted,Not yet available,Not yet available,Not yet available,03/09/2014,170283,66,546.31,Nil,Agency Staff,Revenue,Business Services,CAT02,Agency,SUBCAT0204,31230,Employment & Recruitment Agencies,,Not yet available
Wakefield MDC,E08000036,30/09/2014,CHILDYOU,Children's and Education Services,4,MATRIX SCM LTD,Redacted,Not yet available,Not yet available,Not yet available,27/08/2014,170282,54,1092.63,Nil,Agency Staff,Revenue,Business Services,CAT02,Agency,SUBCAT0204,31230,Employment & Recruitment Agencies,,Not yet available
Wakefield MDC,E08000036,30/09/2014,CHILDYOU,Children's and Education Services,4,MATRIX SCM LTD,Redacted,Not yet available,Not yet available,Not yet available,06/08/2014,170279,80,1092.63,Nil,Agency Staff,Revenue,Business Services,CAT02,Agency,SUBCAT0204,31230,Employment & Recruitment Agencies,,Not yet available
Wakefield MDC,E08000036,30/09/2014,CHILDYOU,Children's and Education Services,4,MATRIX SCM LTD,Redacted,Not yet available,Not yet available,Not yet available,02/07/2014,170274,22,1092.63,Nil,Agency Staff,Revenue,Business Services,CAT02,Agency,SUBCAT0204,31230,Employment & Recruitment Agencies,,Not yet available
Wakefield MDC,E08000036,30/09/2014,CHILDYOU,Children's and Education Services,4,MATRIX SCM LTD,Redacted,Not yet available,Not yet available,Not yet available,27/08/2014,170282,50,1092.63,Nil,Agency Staff,Revenue,Business Services,CAT02,Agency,SUBCAT0204,31230,Employment & Recruitment Agencies,,Not yet available
Wakefield MDC,E08000036,30/09/2014,CHILDYOU,Children's and Education Services,4,MATRIX SCM LTD,Redacted,Not yet available,Not yet available,Not yet available,17/09/2014,170285,36,1092.63,Nil,Agency Staff,Revenue,Business Services,CAT02,Agency,SUBCAT0204,31230,Employment & Recruitment Agencies,,Not yet available
Wakefield MDC,E08000036,30/09/2014,CHILDYOU,Children's and Education Services,4,MATRIX SCM LTD,Redacted,Not yet available,Not yet available,Not yet available,24/09/2014,170286,43,1092.63,Nil,Agency Staff,Revenue,Business Services,CAT02,Agency,SUBCAT0204,31230,Employment & Recruitment Agencies,,Not yet available
Wakefield MDC,E08000036,30/09/2014,CHILDYOU,Children's and Education Services,4,MATRIX SCM LTD,Redacted,Not yet available,Not yet available,Not yet available,10/09/2014,170284,40,546.32,Nil,Agency Staff,Revenue,Business Services,CAT02,Agency,SUBCAT0204,31230,Employment & Recruitment Agencies,,Not yet available
Wakefield MDC,E08000036,30/09/2014,CHILDYOU,Children's and Education Services,4,MATRIX SCM LTD,Redacted,Not yet available,Not yet available,Not yet available,30/07/2014,170278,90,546.31,Nil,Agency Staff,Revenue,Business Services,CAT02,Agency,SUBCAT0204,31230,Employment & Recruitment Agencies,,Not yet available
Wakefield MDC,E08000036,30/09/2014,CHILDYOU,Children's and Education Services,4,MATRIX SCM LTD,Redacted,Not yet available,Not yet available,Not yet available,10/09/2014,170284,57,1092.63,Nil,Agency Staff,Revenue,Business Services,CAT02,Agency,SUBCAT0204,31230,Employment & Recruitment Agencies,,Not yet available
Wakefield MDC,E08000036,30/09/2014,CHILDYOU,Children's and Education Services,4,MATRIX SCM LTD,Redacted,Not yet available,Not yet available,Not yet available,13/08/2014,170280,40,546.31,Nil,Agency Staff,Revenue,Business Services,CAT02,Agency,SUBCAT0204,31230,Employment & Recruitment Agencies,,Not yet available
Wakefield MDC,E08000036,30/09/2014,CHILDYOU,Children's and Education Services,4,MATRIX SCM LTD,Redacted,Not yet available,Not yet available,Not yet available,06/08/2014,170279,53,546.32,Nil,Agency Staff,Revenue,Business Services,CAT02,Agency,SUBCAT0204,31230,Employment & Recruitment Agencies,,Not yet available
Wakefield MDC,E08000036,30/09/2014,CHILDYOU,Children's and Education Services,4,MATRIX SCM LTD,Redacted,Not yet available,Not yet available,Not yet available,17/09/2014,170285,39,1092.63,Nil,Agency Staff,Revenue,Business Services,CAT02,Agency,SUBCAT0204,31230,Employment & Recruitment Agencies,,Not yet available
Wakefield MDC,E08000036,30/09/2014,CHILDYOU,Children's and Education Services,4,MATRIX SCM LTD,Redacted,Not yet available,Not yet available,Not yet available,24/09/2014,170286,82,1092.63,Nil,Agency Staff,Revenue,Business Services,CAT02,Agency,SUBCAT0204,31230,Employment & Recruitment Agencies,,Not yet available
Wakefield MDC,E08000036,30/09/2014,CHILDYOU,Children's and Education Services,4,MATRIX SCM LTD,Redacted,Not yet available,Not yet available,Not yet available,27/08/2014,170282,13,1092.63,Nil,Agency Staff,Revenue,Business Services,CAT02,Agency,SUBCAT0204,31230,Employment & Recruitment Agencies,,Not yet available
Wakefield MDC,E08000036,30/09/2014,CHILDYOU,Children's and Education Services,4,MATRIX SCM LTD,Redacted,Not yet available,Not yet available,Not yet available,03/09/2014,170283,71,856.39,Nil,Agency Staff,Revenue,Business Services,CAT02,Agency,SUBCAT0204,31230,Employment & Recruitment Agencies,,Not yet available
Wakefield MDC,E08000036,30/09/2014,CHILDYOU,Children's and Education Services,4,MATRIX SCM LTD,Redacted,Not yet available,Not yet available,Not yet available,01/10/2014,170287,67,1092.63,Nil,Agency Staff,Revenue,Business Services,CAT02,Agency,SUBCAT0204,31230,Employment & Recruitment Agencies,,Not yet available
Wakefield MDC,E08000036,30/09/2014,CHILDYOU,Children's and Education Services,4,MATRIX SCM LTD,Redacted,Not yet available,Not yet available,Not yet available,30/07/2014,170278,96,1092.63,Nil,Agency Staff,Revenue,Business Services,CAT02,Agency,SUBCAT0204,31230,Employment & Recruitment Agencies,,Not yet available
Wakefield MDC,E08000036,30/09/2014,CHILDYOU,Children's and Education Services,4,MATRIX SCM LTD,Redacted,Not yet available,Not yet available,Not yet available,01/10/2014,170287,88,546.3,Nil,Agency Staff,Revenue,Business Services,CAT02,Agency,SUBCAT0204,31230,Employment & Recruitment Agencies,,Not yet available
Wakefield MDC,E08000036,30/09/2014,CHILDYOU,Children's and Education Services,4,MATRIX SCM LTD,Redacted,Not yet available,Not yet available,Not yet available,13/08/2014,170280,49,1092.63,Nil,Agency Staff,Revenue,Business Services,CAT02,Agency,SUBCAT0204,31230,Employment & Recruitment Agencies,,Not yet available
Wakefield MDC,E08000036,30/09/2014,CHILDYOU,Children's and Education Services,4,MATRIX SCM LTD,Redacted,Not yet available,Not yet available,Not yet available,02/07/2014,170274,29,1092.63,Nil,Agency Staff,Revenue,Business Services,CAT02,Agency,SUBCAT0204,31230,Employment & Recruitment Agencies,,Not yet available
Wakefield MDC,E08000036,30/09/2014,CHILDYOU,Children's and Education Services,4,MATRIX SCM LTD,Redacted,Not yet available,Not yet available,Not yet available,16/07/2014,170276,79,546.31,Nil,Agency Staff,Revenue,Business Services,CAT02,Agency,SUBCAT0204,31230,Employment & Recruitment Agencies,,Not yet available
Wakefield MDC,E08000036,30/09/2014,CHILDYOU,Children's and Education Services,4,MATRIX SCM LTD,Redacted,Not yet available,Not yet available,Not yet available,24/09/2014,170286,50,1092.63,Nil,Agency Staff,Revenue,Business Services,CAT02,Agency,SUBCAT0204,31230,Employment & Recruitment Agencies,,Not yet available
Wakefield MDC,E08000036,30/09/2014,CHILDYOU,Children's and Education Services,4,MATRIX SCM LTD,Redacted,Not yet available,Not yet available,Not yet available,16/07/2014,170276,64,885.92,Nil,Agency Staff,Revenue,Business Services,CAT02,Agency,SUBCAT0204,31230,Employment & Recruitment Agencies,,Not yet available
Wakefield MDC,E08000036,30/09/2014,CHILDYOU,Children's and Education Services,4,MATRIX SCM LTD,Redacted,Not yet available,Not yet available,Not yet available,24/09/2014,170286,54,546.32,Nil,Agency Staff,Revenue,Business Services,CAT02,Agency,SUBCAT0204,31230,Employment & Recruitment Agencies,,Not yet available
Wakefield MDC,E08000036,30/09/2014,CHILDYOU,Children's and Education Services,4,MATRIX SCM LTD,Redacted,Not yet available,Not yet available,Not yet available,10/09/2014,170284,22,1092.63,Nil,Agency Staff,Revenue,Business Services,CAT02,Agency,SUBCAT0204,31230,Employment & Recruitment Agencies,,Not yet available
Wakefield MDC,E08000036,30/09/2014,CHILDYOU,Children's and Education Services,4,MATRIX SCM LTD,Redacted,Not yet available,Not yet available,Not yet available,01/10/2014,170287,75,580.72,Nil,Agency Staff,Revenue,Business Services,CAT02,Agency,SUBCAT0204,31230,Employment & Recruitment Agencies,,Not yet available
Wakefield MDC,E08000036,30/09/2014,CHILDYOU,Children's and Education Services,4,MATRIX SCM LTD,Redacted,Not yet available,Not yet available,Not yet available,27/08/2014,170282,36,787.5,Nil,Agency Staff,Revenue,Business Services,CAT02,Agency,SUBCAT0204,31230,Employment & Recruitment Agencies,,Not yet available
Wakefield MDC,E08000036,30/09/2014,CHILDYOU,Children's and Education Services,4,MATRIX SCM LTD,Redacted,Not yet available,Not yet available,Not yet available,23/07/2014,170277,24,1055.24,Nil,Agency Staff,Revenue,Business Services,CAT02,Agency,SUBCAT0204,31230,Employment & Recruitment Agencies,,Not yet available
Wakefield MDC,E08000036,30/09/2014,CHILDYOU,Children's and Education Services,4,MATRIX SCM LTD,Redacted,Not yet available,Not yet available,Not yet available,24/09/2014,170286,79,1055.24,Nil,Agency Staff,Revenue,Business Services,CAT02,Agency,SUBCAT0204,31230,Employment & Recruitment Agencies,,Not yet available
Wakefield MDC,E08000036,30/09/2014,CHILDYOU,Children's and Education Services,4,MATRIX SCM LTD,Redacted,Not yet available,Not yet available,Not yet available,02/07/2014,170274,34,1092.63,Nil,Agency Staff,Revenue,Business Services,CAT02,Agency,SUBCAT0204,31230,Employment & Recruitment Agencies,,Not yet available
Wakefield MDC,E08000036,30/09/2014,CHILDYOU,Children's and Education Services,4,MATRIX SCM LTD,Redacted,Not yet available,Not yet available,Not yet available,09/07/2014,170275,11,1055.63,Nil,Agency Staff,Revenue,Business Services,CAT02,Agency,SUBCAT0204,31230,Employment & Recruitment Agencies,,Not yet available
Wakefield MDC,E08000036,30/09/2014,CHILDYOU,Children's and Education Services,4,MATRIX SCM LTD,Redacted,Not yet available,Not yet available,Not yet available,09/07/2014,170275,7,1055.24,Nil,Agency Staff,Revenue,Business Services,CAT02,Agency,SUBCAT0204,31230,Employment & Recruitment Agencies,,Not yet available
Wakefield MDC,E08000036,30/09/2014,CHILDYOU,Children's and Education Services,4,MATRIX SCM LTD,Redacted,Not yet available,Not yet available,Not yet available,02/07/2014,170274,20,1069.5,Nil,Agency Staff,Revenue,Business Services,CAT02,Agency,SUBCAT0204,31230,Employment & Recruitment Agencies,,Not yet available
Wakefield MDC,E08000036,30/09/2014,CHILDYOU,Children's and Education Services,4,MATRIX SCM LTD,Redacted,Not yet available,Not yet available,Not yet available,16/07/2014,170276,18,1055.24,Nil,Agency Staff,Revenue,Business Services,CAT02,Agency,SUBCAT0204,31230,Employment & Recruitment Agencies,,Not yet available
Wakefield MDC,E08000036,30/09/2014,CHILDYOU,Children's and Education Services,4,MATRIX SCM LTD,Redacted,Not yet available,Not yet available,Not yet available,03/09/2014,170283,47,1223.66,Nil,Agency Staff,Revenue,Business Services,CAT02,Agency,SUBCAT0204,31230,Employment & Recruitment Agencies,,Not yet available
Wakefield MDC,E08000036,30/09/2014,CHILDYOU,Children's and Education Services,4,MATRIX SCM LTD,Redacted,Not yet available,Not yet available,Not yet available,01/10/2014,170287,102,1055.24,Nil,Agency Staff,Revenue,Business Services,CAT02,Agency,SUBCAT0204,31230,Employment & Recruitment Agencies,,Not yet available
Wakefield MDC,E08000036,30/09/2014,CHILDYOU,Children's and Education Services,4,MATRIX SCM LTD,Redacted,Not yet available,Not yet available,Not yet available,17/09/2014,170285,42,1092.98,Nil,Agency Staff,Revenue,Business Services,CAT02,Agency,SUBCAT0204,31230,Employment & Recruitment Agencies,,Not yet available
Wakefield MDC,E08000036,30/09/2014,CHILDYOU,Children's and Education Services,4,MATRIX SCM LTD,Redacted,Not yet available,Not yet available,Not yet available,23/07/2014,170277,13,787.5,Nil,Agency Staff,Revenue,Business Services,CAT02,Agency,SUBCAT0204,31230,Employment & Recruitment Agencies,,Not yet available
Wakefield MDC,E08000036,30/09/2014,CHILDYOU,Children's and Education Services,4,MATRIX SCM LTD,Redacted,Not yet available,Not yet available,Not yet available,23/07/2014,170277,43,941.51,Nil,Agency Staff,Revenue,Business Services,CAT02,Agency,SUBCAT0204,31230,Employment & Recruitment Agencies,,Not yet available
Wakefield MDC,E08000036,30/09/2014,CHILDYOU,Children's and Education Services,4,MATRIX SCM LTD,Redacted,Not yet available,Not yet available,Not yet available,09/07/2014,170275,9,1055.24,Nil,Agency Staff,Revenue,Business Services,CAT02,Agency,SUBCAT0204,31230,Employment & Recruitment Agencies,,Not yet available
Wakefield MDC,E08000036,30/09/2014,CHILDYOU,Children's and Education Services,4,MATRIX SCM LTD,Redacted,Not yet available,Not yet available,Not yet available,16/07/2014,170276,74,1055.24,Nil,Agency Staff,Revenue,Business Services,CAT02,Agency,SUBCAT0204,31230,Employment & Recruitment Agencies,,Not yet available
Wakefield MDC,E08000036,30/09/2014,CHILDYOU,Children's and Education Services,4,MATRIX SCM LTD,Redacted,Not yet available,Not yet available,Not yet available,09/07/2014,170275,57,1295,Nil,Agency Staff,Revenue,Business Services,CAT02,Agency,SUBCAT0204,31230,Employment & Recruitment Agencies,,Not yet available
Wakefield MDC,E08000036,30/09/2014,CHILDYOU,Children's and Education Services,4,MATRIX SCM LTD,Redacted,Not yet available,Not yet available,Not yet available,06/08/2014,170279,84,1055.24,Nil,Agency Staff,Revenue,Business Services,CAT02,Agency,SUBCAT0204,31230,Employment & Recruitment Agencies,,Not yet available
Wakefield MDC,E08000036,30/09/2014,CHILDYOU,Children's and Education Services,4,MATRIX SCM LTD,Redacted,Not yet available,Not yet available,Not yet available,13/08/2014,170280,86,1055.24,Nil,Agency Staff,Revenue,Business Services,CAT02,Agency,SUBCAT0204,31230,Employment & Recruitment Agencies,,Not yet available
Wakefield MDC,E08000036,30/09/2014,CHILDYOU,Children's and Education Services,4,MATRIX SCM LTD,Redacted,Not yet available,Not yet available,Not yet available,27/08/2014,170282,17,995.52,Nil,Agency Staff,Revenue,Business Services,CAT02,Agency,SUBCAT0204,31230,Employment & Recruitment Agencies,,Not yet available
Wakefield MDC,E08000036,30/09/2014,CHILDYOU,Children's and Education Services,4,MATRIX SCM LTD,Redacted,Not yet available,Not yet available,Not yet available,17/09/2014,170285,64,855.6,Nil,Agency Staff,Revenue,Business Services,CAT02,Agency,SUBCAT0204,31230,Employment & Recruitment Agencies,,Not yet available
Wakefield MDC,E08000036,30/09/2014,CHILDYOU,Children's and Education Services,4,MATRIX SCM LTD,Redacted,Not yet available,Not yet available,Not yet available,10/09/2014,170284,82,1295,Nil,Agency Staff,Revenue,Business Services,CAT02,Agency,SUBCAT0204,31230,Employment & Recruitment Agencies,,Not yet available
Wakefield MDC,E08000036,30/09/2014,CHILDYOU,Children's and Education Services,4,MATRIX SCM LTD,Redacted,Not yet available,Not yet available,Not yet available,16/07/2014,170276,49,1055.24,Nil,Agency Staff,Revenue,Business Services,CAT02,Agency,SUBCAT0204,31230,Employment & Recruitment Agencies,,Not yet available
Wakefield MDC,E08000036,30/09/2014,CHILDYOU,Children's and Education Services,4,MATRIX SCM LTD,Redacted,Not yet available,Not yet available,Not yet available,09/07/2014,170275,19,1055.24,Nil,Agency Staff,Revenue,Business Services,CAT02,Agency,SUBCAT0204,31230,Employment & Recruitment Agencies,,Not yet available
Wakefield MDC,E08000036,30/09/2014,CHILDYOU,Children's and Education Services,4,MATRIX SCM LTD,Redacted,Not yet available,Not yet available,Not yet available,17/09/2014,170285,40,1534.76,Nil,Agency Staff,Revenue,Business Services,CAT02,Agency,SUBCAT0204,31230,Employment & Recruitment Agencies,,Not yet available
Wakefield MDC,E08000036,30/09/2014,CHILDYOU,Children's and Education Services,4,MATRIX SCM LTD,Redacted,Not yet available,Not yet available,Not yet available,23/07/2014,170277,41,1033.57,Nil,Agency Staff,Revenue,Business Services,CAT02,Agency,SUBCAT0204,31230,Employment & Recruitment Agencies,,Not yet available
Wakefield MDC,E08000036,30/09/2014,CHILDYOU,Children's and Education Services,4,MATRIX SCM LTD,Redacted,Not yet available,Not yet available,Not yet available,30/07/2014,170278,84,1055.63,Nil,Agency Staff,Revenue,Business Services,CAT02,Agency,SUBCAT0204,31230,Employment & Recruitment Agencies,,Not yet available
Wakefield MDC,E08000036,30/09/2014,CHILDYOU,Children's and Education Services,4,MATRIX SCM LTD,Redacted,Not yet available,Not yet available,Not yet available,27/08/2014,170282,25,1055.24,Nil,Agency Staff,Revenue,Business Services,CAT02,Agency,SUBCAT0204,31230,Employment & Recruitment Agencies,,Not yet available
Wakefield MDC,E08000036,30/09/2014,CHILDYOU,Children's and Education Services,4,MATRIX SCM LTD,Redacted,Not yet available,Not yet available,Not yet available,06/08/2014,170279,33,1055.24,Nil,Agency Staff,Revenue,Business Services,CAT02,Agency,SUBCAT0204,31230,Employment & Recruitment Agencies,,Not yet available
Wakefield MDC,E08000036,30/09/2014,CHILDYOU,Children's and Education Services,4,MATRIX SCM LTD,Redacted,Not yet available,Not yet available,Not yet available,23/07/2014,170277,23,1055.24,Nil,Agency Staff,Revenue,Business Services,CAT02,Agency,SUBCAT0204,31230,Employment & Recruitment Agencies,,Not yet available
Wakefield MDC,E08000036,30/09/2014,CHILDYOU,Children's and Education Services,4,MATRIX SCM LTD,Redacted,Not yet available,Not yet available,Not yet available,06/08/2014,170279,73,1055.24,Nil,Agency Staff,Revenue,Business Services,CAT02,Agency,SUBCAT0204,31230,Employment & Recruitment Agencies,,Not yet available
Wakefield MDC,E08000036,30/09/2014,CHILDYOU,Children's and Education Services,4,MATRIX SCM LTD,Redacted,Not yet available,Not yet available,Not yet available,06/08/2014,170279,23,513.36,Nil,Agency Staff,Revenue,Business Services,CAT02,Agency,SUBCAT0204,31230,Employment & Recruitment Agencies,,Not yet available
Wakefield MDC,E08000036,30/09/2014,CHILDYOU,Children's and Education Services,4,MATRIX SCM LTD,Redacted,Not yet available,Not yet available,Not yet available,09/07/2014,170275,74,1092.63,Nil,Agency Staff,Revenue,Business Services,CAT02,Agency,SUBCAT0204,31230,Employment & Recruitment Agencies,,Not yet available
Wakefield MDC,E08000036,30/09/2014,CHILDYOU,Children's and Education Services,4,MATRIX SCM LTD,Redacted,Not yet available,Not yet available,Not yet available,02/07/2014,170274,36,1055.24,Nil,Agency Staff,Revenue,Business Services,CAT02,Agency,SUBCAT0204,31230,Employment & Recruitment Agencies,,Not yet available
Wakefield MDC,E08000036,30/09/2014,CHILDYOU,Children's and Education Services,4,MATRIX SCM LTD,Redacted,Not yet available,Not yet available,Not yet available,24/09/2014,170286,37,1295,Nil,Agency Staff,Revenue,Business Services,CAT02,Agency,SUBCAT0204,31230,Employment & Recruitment Agencies,,Not yet available
Wakefield MDC,E08000036,30/09/2014,CHILDYOU,Children's and Education Services,4,MATRIX SCM LTD,Redacted,Not yet available,Not yet available,Not yet available,09/07/2014,170275,15,1069.5,Nil,Agency Staff,Revenue,Business Services,CAT02,Agency,SUBCAT0204,31230,Employment & Recruitment Agencies,,Not yet available
Wakefield MDC,E08000036,30/09/2014,CHILDYOU,Children's and Education Services,4,MATRIX SCM LTD,Redacted,Not yet available,Not yet available,Not yet available,20/08/2014,170281,40,1055.24,Nil,Agency Staff,Revenue,Business Services,CAT02,Agency,SUBCAT0204,31230,Employment & Recruitment Agencies,,Not yet available
Wakefield MDC,E08000036,30/09/2014,CHILDYOU,Children's and Education Services,4,MATRIX SCM LTD,Redacted,Not yet available,Not yet available,Not yet available,10/09/2014,170284,19,1055.24,Nil,Agency Staff,Revenue,Business Services,CAT02,Agency,SUBCAT0204,31230,Employment & Recruitment Agencies,,Not yet available
Wakefield MDC,E08000036,30/09/2014,CHILDYOU,Children's and Education Services,4,MATRIX SCM LTD,Redacted,Not yet available,Not yet available,Not yet available,27/08/2014,170282,19,954.04,Nil,Agency Staff,Revenue,Business Services,CAT02,Agency,SUBCAT0204,31230,Employment & Recruitment Agencies,,Not yet available
Wakefield MDC,E08000036,30/09/2014,CHILDYOU,Children's and Education Services,4,MATRIX SCM LTD,Redacted,Not yet available,Not yet available,Not yet available,06/08/2014,170279,31,962.55,Nil,Agency Staff,Revenue,Business Services,CAT02,Agency,SUBCAT0204,31230,Employment & Recruitment Agencies,,Not yet available
Wakefield MDC,E08000036,30/09/2014,CHILDYOU,Children's and Education Services,4,MATRIX SCM LTD,Redacted,Not yet available,Not yet available,Not yet available,10/09/2014,170284,65,1055.24,Nil,Agency Staff,Revenue,Business Services,CAT02,Agency,SUBCAT0204,31230,Employment & Recruitment Agencies,,Not yet available
Wakefield MDC,E08000036,30/09/2014,CHILDYOU,Children's and Education Services,4,MATRIX SCM LTD,Redacted,Not yet available,Not yet available,Not yet available,16/07/2014,170276,80,855.6,Nil,Agency Staff,Revenue,Business Services,CAT02,Agency,SUBCAT0204,31230,Employment & Recruitment Agencies,,Not yet available
Wakefield MDC,E08000036,30/09/2014,CHILDYOU,Children's and Education Services,4,MATRIX SCM LTD,Redacted,Not yet available,Not yet available,Not yet available,17/09/2014,170285,32,1493.28,Nil,Agency Staff,Revenue,Business Services,CAT02,Agency,SUBCAT0204,31230,Employment & Recruitment Agencies,,Not yet available
Wakefield MDC,E08000036,30/09/2014,CHILDYOU,Children's and Education Services,4,MATRIX SCM LTD,Redacted,Not yet available,Not yet available,Not yet available,23/07/2014,170277,19,1055.24,Nil,Agency Staff,Revenue,Business Services,CAT02,Agency,SUBCAT0204,31230,Employment & Recruitment Agencies,,Not yet available
Wakefield MDC,E08000036,30/09/2014,CHILDYOU,Children's and Education Services,4,MATRIX SCM LTD,Redacted,Not yet available,Not yet available,Not yet available,13/08/2014,170280,103,1055.24,Nil,Agency Staff,Revenue,Business Services,CAT02,Agency,SUBCAT0204,31230,Employment & Recruitment Agencies,,Not yet available
Wakefield MDC,E08000036,30/09/2014,CHILDYOU,Children's and Education Services,4,MATRIX SCM LTD,Redacted,Not yet available,Not yet available,Not yet available,03/09/2014,170283,79,527.62,Nil,Agency Staff,Revenue,Business Services,CAT02,Agency,SUBCAT0204,31230,Employment & Recruitment Agencies,,Not yet available
Wakefield MDC,E08000036,30/09/2014,CHILDYOU,Children's and Education Services,4,MATRIX SCM LTD,Redacted,Not yet available,Not yet available,Not yet available,10/09/2014,170284,44,1534.76,Nil,Agency Staff,Revenue,Business Services,CAT02,Agency,SUBCAT0204,31230,Employment & Recruitment Agencies,,Not yet available
Wakefield MDC,E08000036,30/09/2014,CHILDYOU,Children's and Education Services,4,MATRIX SCM LTD,Redacted,Not yet available,Not yet available,Not yet available,16/07/2014,170276,39,855.92,Nil,Agency Staff,Revenue,Business Services,CAT02,Agency,SUBCAT0204,31230,Employment & Recruitment Agencies,,Not yet available
Wakefield MDC,E08000036,30/09/2014,CHILDYOU,Children's and Education Services,4,MATRIX SCM LTD,Redacted,Not yet available,Not yet available,Not yet available,17/09/2014,170285,63,1055.24,Nil,Agency Staff,Revenue,Business Services,CAT02,Agency,SUBCAT0204,31230,Employment & Recruitment Agencies,,Not yet available
Wakefield MDC,E08000036,30/09/2014,CHILDYOU,Children's and Education Services,4,MATRIX SCM LTD,Redacted,Not yet available,Not yet available,Not yet available,16/07/2014,170276,41,1055.24,Nil,Agency Staff,Revenue,Business Services,CAT02,Agency,SUBCAT0204,31230,Employment & Recruitment Agencies,,Not yet available
Wakefield MDC,E08000036,30/09/2014,CHILDYOU,Children's and Education Services,4,MATRIX SCM LTD,Redacted,Not yet available,Not yet available,Not yet available,10/09/2014,170284,11,1295,Nil,Agency Staff,Revenue,Business Services,CAT02,Agency,SUBCAT0204,31230,Employment & Recruitment Agencies,,Not yet available
Wakefield MDC,E08000036,30/09/2014,CHILDYOU,Children's and Education Services,4,MATRIX SCM LTD,Redacted,Not yet available,Not yet available,Not yet available,30/07/2014,170278,52,1055.24,Nil,Agency Staff,Revenue,Business Services,CAT02,Agency,SUBCAT0204,31230,Employment & Recruitment Agencies,,Not yet available
Wakefield MDC,E08000036,30/09/2014,CHILDYOU,Children's and Education Services,4,MATRIX SCM LTD,Redacted,Not yet available,Not yet available,Not yet available,16/07/2014,170276,51,1092.63,Nil,Agency Staff,Revenue,Business Services,CAT02,Agency,SUBCAT0204,31230,Employment & Recruitment Agencies,,Not yet available
Wakefield MDC,E08000036,30/09/2014,CHILDYOU,Children's and Education Services,4,MATRIX SCM LTD,Redacted,Not yet available,Not yet available,Not yet available,23/07/2014,170277,26,1055.24,Nil,Agency Staff,Revenue,Business Services,CAT02,Agency,SUBCAT0204,31230,Employment & Recruitment Agencies,,Not yet available
Wakefield MDC,E08000036,30/09/2014,CHILDYOU,Children's and Education Services,4,MATRIX SCM LTD,Redacted,Not yet available,Not yet available,Not yet available,23/07/2014,170277,39,1055.24,Nil,Agency Staff,Revenue,Business Services,CAT02,Agency,SUBCAT0204,31230,Employment & Recruitment Agencies,,Not yet available
Wakefield MDC,E08000036,30/09/2014,CHILDYOU,Children's and Education Services,4,MATRIX SCM LTD,Redacted,Not yet available,Not yet available,Not yet available,06/08/2014,170279,2,525,Nil,Agency Staff,Revenue,Business Services,CAT02,Agency,SUBCAT0204,31230,Employment & Recruitment Agencies,,Not yet available
Wakefield MDC,E08000036,30/09/2014,CHILDYOU,Children's and Education Services,4,MATRIX SCM LTD,Redacted,Not yet available,Not yet available,Not yet available,10/09/2014,170284,24,1534.76,Nil,Agency Staff,Revenue,Business Services,CAT02,Agency,SUBCAT0204,31230,Employment & Recruitment Agencies,,Not yet available
Wakefield MDC,E08000036,30/09/2014,CHILDYOU,Children's and Education Services,4,MATRIX SCM LTD,Redacted,Not yet available,Not yet available,Not yet available,27/08/2014,170282,4,1055.24,Nil,Agency Staff,Revenue,Business Services,CAT02,Agency,SUBCAT0204,31230,Employment & Recruitment Agencies,,Not yet available
Wakefield MDC,E08000036,30/09/2014,CHILDYOU,Children's and Education Services,4,MATRIX SCM LTD,Redacted,Not yet available,Not yet available,Not yet available,06/08/2014,170279,3,1050,Nil,Agency Staff,Revenue,Business Services,CAT02,Agency,SUBCAT0204,31230,Employment & Recruitment Agencies,,Not yet available
Wakefield MDC,E08000036,30/09/2014,CHILDYOU,Children's and Education Services,4,MATRIX SCM LTD,Redacted,Not yet available,Not yet available,Not yet available,09/07/2014,170275,31,1092.63,Nil,Agency Staff,Revenue,Business Services,CAT02,Agency,SUBCAT0204,31230,Employment & Recruitment Agencies,,Not yet available
Wakefield MDC,E08000036,30/09/2014,CHILDYOU,Children's and Education Services,4,MATRIX SCM LTD,Redacted,Not yet available,Not yet available,Not yet available,27/08/2014,170282,9,1295,Nil,Agency Staff,Revenue,Business Services,CAT02,Agency,SUBCAT0204,31230,Employment & Recruitment Agencies,,Not yet available
Wakefield MDC,E08000036,30/09/2014,CHILDYOU,Children's and Education Services,4,MATRIX SCM LTD,Redacted,Not yet available,Not yet available,Not yet available,23/07/2014,170277,75,1055.24,Nil,Agency Staff,Revenue,Business Services,CAT02,Agency,SUBCAT0204,31230,Employment & Recruitment Agencies,,Not yet available
Wakefield MDC,E08000036,30/09/2014,CHILDYOU,Children's and Education Services,4,MATRIX SCM LTD,Redacted,Not yet available,Not yet available,Not yet available,17/09/2014,170285,82,1295,Nil,Agency Staff,Revenue,Business Services,CAT02,Agency,SUBCAT0204,31230,Employment & Recruitment Agencies,,Not yet available
Wakefield MDC,E08000036,30/09/2014,CHILDYOU,Children's and Education Services,4,MATRIX SCM LTD,Redacted,Not yet available,Not yet available,Not yet available,02/07/2014,170274,42,655.96,Nil,Agency Staff,Revenue,Business Services,CAT02,Agency,SUBCAT0204,31230,Employment & Recruitment Agencies,,Not yet available
Wakefield MDC,E08000036,30/09/2014,CHILDYOU,Children's and Education Services,4,MATRIX SCM LTD,Redacted,Not yet available,Not yet available,Not yet available,10/09/2014,170284,45,1055.24,Nil,Agency Staff,Revenue,Business Services,CAT02,Agency,SUBCAT0204,31230,Employment & Recruitment Agencies,,Not yet available
Wakefield MDC,E08000036,30/09/2014,CHILDYOU,Children's and Education Services,4,MATRIX SCM LTD,Redacted,Not yet available,Not yet available,Not yet available,10/09/2014,170284,10,855.6,Nil,Agency Staff,Revenue,Business Services,CAT02,Agency,SUBCAT0204,31230,Employment & Recruitment Agencies,,Not yet available
Wakefield MDC,E08000036,30/09/2014,CHILDYOU,Children's and Education Services,4,MATRIX SCM LTD,Redacted,Not yet available,Not yet available,Not yet available,09/07/2014,170275,17,1055.24,Nil,Agency Staff,Revenue,Business Services,CAT02,Agency,SUBCAT0204,31230,Employment & Recruitment Agencies,,Not yet available
Wakefield MDC,E08000036,30/09/2014,CHILDYOU,Children's and Education Services,4,MATRIX SCM LTD,Redacted,Not yet available,Not yet available,Not yet available,01/10/2014,170287,80,1698.5,Nil,Agency Staff,Revenue,Business Services,CAT02,Agency,SUBCAT0204,31230,Employment & Recruitment Agencies,,Not yet available
Wakefield MDC,E08000036,30/09/2014,CHILDYOU,Children's and Education Services,4,MATRIX SCM LTD,Redacted,Not yet available,Not yet available,Not yet available,03/09/2014,170283,41,855.6,Nil,Agency Staff,Revenue,Business Services,CAT02,Agency,SUBCAT0204,31230,Employment & Recruitment Agencies,,Not yet available
Wakefield MDC,E08000036,30/09/2014,CHILDYOU,Children's and Education Services,4,MATRIX SCM LTD,Redacted,Not yet available,Not yet available,Not yet available,06/08/2014,170279,41,1055.24,Nil,Agency Staff,Revenue,Business Services,CAT02,Agency,SUBCAT0204,31230,Employment & Recruitment Agencies,,Not yet available
Wakefield MDC,E08000036,30/09/2014,CHILDYOU,Children's and Education Services,4,MATRIX SCM LTD,Redacted,Not yet available,Not yet available,Not yet available,30/07/2014,170278,43,1055.24,Nil,Agency Staff,Revenue,Business Services,CAT02,Agency,SUBCAT0204,31230,Employment & Recruitment Agencies,,Not yet available
Wakefield MDC,E08000036,30/09/2014,CHILDYOU,Children's and Education Services,4,MATRIX SCM LTD,Redacted,Not yet available,Not yet available,Not yet available,01/10/2014,170287,107,1265.14,Nil,Agency Staff,Revenue,Business Services,CAT02,Agency,SUBCAT0204,31230,Employment & Recruitment Agencies,,Not yet available
Wakefield MDC,E08000036,30/09/2014,CHILDYOU,Children's and Education Services,4,MATRIX SCM LTD,Redacted,Not yet available,Not yet available,Not yet available,16/07/2014,170276,31,855.6,Nil,Agency Staff,Revenue,Business Services,CAT02,Agency,SUBCAT0204,31230,Employment & Recruitment Agencies,,Not yet available
Wakefield MDC,E08000036,30/09/2014,CHILDYOU,Children's and Education Services,4,MATRIX SCM LTD,Redacted,Not yet available,Not yet available,Not yet available,03/09/2014,170283,64,1306.62,Nil,Agency Staff,Revenue,Business Services,CAT02,Agency,SUBCAT0204,31230,Employment & Recruitment Agencies,,Not yet available
Wakefield MDC,E08000036,30/09/2014,CHILDYOU,Children's and Education Services,4,MATRIX SCM LTD,Redacted,Not yet available,Not yet available,Not yet available,09/07/2014,170275,58,1295,Nil,Agency Staff,Revenue,Business Services,CAT02,Agency,SUBCAT0204,31230,Employment & Recruitment Agencies,,Not yet available
Wakefield MDC,E08000036,30/09/2014,CHILDYOU,Children's and Education Services,4,MATRIX SCM LTD,Redacted,Not yet available,Not yet available,Not yet available,23/07/2014,170277,46,1092.63,Nil,Agency Staff,Revenue,Business Services,CAT02,Agency,SUBCAT0204,31230,Employment & Recruitment Agencies,,Not yet available
Wakefield MDC,E08000036,30/09/2014,CHILDYOU,Children's and Education Services,4,MATRIX SCM LTD,Redacted,Not yet available,Not yet available,Not yet available,13/08/2014,170280,100,1295,Nil,Agency Staff,Revenue,Business Services,CAT02,Agency,SUBCAT0204,31230,Employment & Recruitment Agencies,,Not yet available
Wakefield MDC,E08000036,30/09/2014,CHILDYOU,Children's and Education Services,4,MATRIX SCM LTD,Redacted,Not yet available,Not yet available,Not yet available,01/10/2014,170287,101,1092.98,Nil,Agency Staff,Revenue,Business Services,CAT02,Agency,SUBCAT0204,31230,Employment & Recruitment Agencies,,Not yet available
Wakefield MDC,E08000036,30/09/2014,CHILDYOU,Children's and Education Services,4,MATRIX SCM LTD,Redacted,Not yet available,Not yet available,Not yet available,23/07/2014,170277,10,1055.24,Nil,Agency Staff,Revenue,Business Services,CAT02,Agency,SUBCAT0204,31230,Employment & Recruitment Agencies,,Not yet available
Wakefield MDC,E08000036,30/09/2014,CHILDYOU,Children's and Education Services,4,MATRIX SCM LTD,Redacted,Not yet available,Not yet available,Not yet available,30/07/2014,170278,69,1055.24,Nil,Agency Staff,Revenue,Business Services,CAT02,Agency,SUBCAT0204,31230,Employment & Recruitment Agencies,,Not yet available
Wakefield MDC,E08000036,30/09/2014,CHILDYOU,Children's and Education Services,4,MATRIX SCM LTD,Redacted,Not yet available,Not yet available,Not yet available,23/07/2014,170277,28,1076.63,Nil,Agency Staff,Revenue,Business Services,CAT02,Agency,SUBCAT0204,31230,Employment & Recruitment Agencies,,Not yet available
Wakefield MDC,E08000036,30/09/2014,CHILDYOU,Children's and Education Services,4,MATRIX SCM LTD,Redacted,Not yet available,Not yet available,Not yet available,06/08/2014,170279,44,1092.63,Nil,Agency Staff,Revenue,Business Services,CAT02,Agency,SUBCAT0204,31230,Employment & Recruitment Agencies,,Not yet available
Wakefield MDC,E08000036,30/09/2014,CHILDYOU,Children's and Education Services,4,MATRIX SCM LTD,Redacted,Not yet available,Not yet available,Not yet available,02/07/2014,170274,24,1055.24,Nil,Agency Staff,Revenue,Business Services,CAT02,Agency,SUBCAT0204,31230,Employment & Recruitment Agencies,,Not yet available
Wakefield MDC,E08000036,30/09/2014,CHILDYOU,Children's and Education Services,4,MATRIX SCM LTD,Redacted,Not yet available,Not yet available,Not yet available,27/08/2014,170282,74,855.6,Nil,Agency Staff,Revenue,Business Services,CAT02,Agency,SUBCAT0204,31230,Employment & Recruitment Agencies,,Not yet available
Wakefield MDC,E08000036,30/09/2014,CHILDYOU,Children's and Education Services,4,MATRIX SCM LTD,Redacted,Not yet available,Not yet available,Not yet available,24/09/2014,170286,80,1055.24,Nil,Agency Staff,Revenue,Business Services,CAT02,Agency,SUBCAT0204,31230,Employment & Recruitment Agencies,,Not yet available
Wakefield MDC,E08000036,30/09/2014,CHILDYOU,Children's and Education Services,4,MATRIX SCM LTD,Redacted,Not yet available,Not yet available,Not yet available,27/08/2014,170282,51,1223.66,Nil,Agency Staff,Revenue,Business Services,CAT02,Agency,SUBCAT0204,31230,Employment & Recruitment Agencies,,Not yet available
Wakefield MDC,E08000036,30/09/2014,CHILDYOU,Children's and Education Services,4,MATRIX SCM LTD,Redacted,Not yet available,Not yet available,Not yet available,06/08/2014,170279,39,1084.79,Nil,Agency Staff,Revenue,Business Services,CAT02,Agency,SUBCAT0204,31230,Employment & Recruitment Agencies,,Not yet available
Wakefield MDC,E08000036,30/09/2014,CHILDYOU,Children's and Education Services,4,MATRIX SCM LTD,Redacted,Not yet available,Not yet available,Not yet available,02/07/2014,170274,15,1055.24,Nil,Agency Staff,Revenue,Business Services,CAT02,Agency,SUBCAT0204,31230,Employment & Recruitment Agencies,,Not yet available
Wakefield MDC,E08000036,30/09/2014,CHILDYOU,Children's and Education Services,4,MATRIX SCM LTD,Redacted,Not yet available,Not yet available,Not yet available,16/07/2014,170276,82,855.6,Nil,Agency Staff,Revenue,Business Services,CAT02,Agency,SUBCAT0204,31230,Employment & Recruitment Agencies,,Not yet available
Wakefield MDC,E08000036,30/09/2014,CHILDYOU,Children's and Education Services,4,MATRIX SCM LTD,Redacted,Not yet available,Not yet available,Not yet available,24/09/2014,170286,21,1092.63,Nil,Agency Staff,Revenue,Business Services,CAT02,Agency,SUBCAT0204,31230,Employment & Recruitment Agencies,,Not yet available
Wakefield MDC,E08000036,30/09/2014,CHILDYOU,Children's and Education Services,4,MATRIX SCM LTD,Redacted,Not yet available,Not yet available,Not yet available,09/07/2014,170275,42,1055.24,Nil,Agency Staff,Revenue,Business Services,CAT02,Agency,SUBCAT0204,31230,Employment & Recruitment Agencies,,Not yet available
Wakefield MDC,E08000036,30/09/2014,CHILDYOU,Children's and Education Services,4,MATRIX SCM LTD,Redacted,Not yet available,Not yet available,Not yet available,06/08/2014,170279,83,1295,Nil,Agency Staff,Revenue,Business Services,CAT02,Agency,SUBCAT0204,31230,Employment & Recruitment Agencies,,Not yet available
Wakefield MDC,E08000036,30/09/2014,CHILDYOU,Children's and Education Services,4,MATRIX SCM LTD,Redacted,Not yet available,Not yet available,Not yet available,16/07/2014,170276,60,1092.63,Nil,Agency Staff,Revenue,Business Services,CAT02,Agency,SUBCAT0204,31230,Employment & Recruitment Agencies,,Not yet available
Wakefield MDC,E08000036,30/09/2014,CHILDYOU,Children's and Education Services,4,MATRIX SCM LTD,Redacted,Not yet available,Not yet available,Not yet available,27/08/2014,170282,75,1055.24,Nil,Agency Staff,Revenue,Business Services,CAT02,Agency,SUBCAT0204,31230,Employment & Recruitment Agencies,,Not yet available
Wakefield MDC,E08000036,30/09/2014,CHILDYOU,Children's and Education Services,4,MATRIX SCM LTD,Redacted,Not yet available,Not yet available,Not yet available,30/07/2014,170278,54,1092.63,Nil,Agency Staff,Revenue,Business Services,CAT02,Agency,SUBCAT0204,31230,Employment & Recruitment Agencies,,Not yet available
Wakefield MDC,E08000036,30/09/2014,CHILDYOU,Children's and Education Services,4,MATRIX SCM LTD,Redacted,Not yet available,Not yet available,Not yet available,30/07/2014,170278,41,1040.98,Nil,Agency Staff,Revenue,Business Services,CAT02,Agency,SUBCAT0204,31230,Employment & Recruitment Agencies,,Not yet available
Wakefield MDC,E08000036,30/09/2014,CHILDYOU,Children's and Education Services,4,MATRIX SCM LTD,Redacted,Not yet available,Not yet available,Not yet available,02/07/2014,170274,31,1055.63,Nil,Agency Staff,Revenue,Business Services,CAT02,Agency,SUBCAT0204,31230,Employment & Recruitment Agencies,,Not yet available
Wakefield MDC,E08000036,30/09/2014,CHILDYOU,Children's and Education Services,4,MATRIX SCM LTD,Redacted,Not yet available,Not yet available,Not yet available,24/09/2014,170286,25,1092.98,Nil,Agency Staff,Revenue,Business Services,CAT02,Agency,SUBCAT0204,31230,Employment & Recruitment Agencies,,Not yet available
Wakefield MDC,E08000036,30/09/2014,CHILDYOU,Children's and Education Services,4,MATRIX SCM LTD,Redacted,Not yet available,Not yet available,Not yet available,09/07/2014,170275,21,1055.24,Nil,Agency Staff,Revenue,Business Services,CAT02,Agency,SUBCAT0204,31230,Employment & Recruitment Agencies,,Not yet available
Wakefield MDC,E08000036,30/09/2014,CHILDYOU,Children's and Education Services,4,MATRIX SCM LTD,Redacted,Not yet available,Not yet available,Not yet available,01/10/2014,170287,103,1092.63,Nil,Agency Staff,Revenue,Business Services,CAT02,Agency,SUBCAT0204,31230,Employment & Recruitment Agencies,,Not yet available
Wakefield MDC,E08000036,30/09/2014,CHILDYOU,Children's and Education Services,4,MATRIX SCM LTD,Redacted,Not yet available,Not yet available,Not yet available,30/07/2014,170278,77,1055.24,Nil,Agency Staff,Revenue,Business Services,CAT02,Agency,SUBCAT0204,31230,Employment & Recruitment Agencies,,Not yet available
Wakefield MDC,E08000036,30/09/2014,CHILDYOU,Children's and Education Services,4,MATRIX SCM LTD,Redacted,Not yet available,Not yet available,Not yet available,27/08/2014,170282,24,1534.76,Nil,Agency Staff,Revenue,Business Services,CAT02,Agency,SUBCAT0204,31230,Employment & Recruitment Agencies,,Not yet available
Wakefield MDC,E08000036,30/09/2014,CHILDYOU,Children's and Education Services,4,MATRIX SCM LTD,Redacted,Not yet available,Not yet available,Not yet available,17/09/2014,170285,62,1092.63,Nil,Agency Staff,Revenue,Business Services,CAT02,Agency,SUBCAT0204,31230,Employment & Recruitment Agencies,,Not yet available
Wakefield MDC,E08000036,30/09/2014,CHILDYOU,Children's and Education Services,4,MATRIX SCM LTD,Redacted,Not yet available,Not yet available,Not yet available,10/09/2014,170284,20,886.2,Nil,Agency Staff,Revenue,Business Services,CAT02,Agency,SUBCAT0204,31230,Employment & Recruitment Agencies,,Not yet available
Wakefield MDC,E08000036,30/09/2014,CHILDYOU,Children's and Education Services,4,MATRIX SCM LTD,Redacted,Not yet available,Not yet available,Not yet available,02/07/2014,170274,54,770.04,Nil,Agency Staff,Revenue,Business Services,CAT02,Agency,SUBCAT0204,31230,Employment & Recruitment Agencies,,Not yet available
Wakefield MDC,E08000036,30/09/2014,CHILDYOU,Children's and Education Services,4,MATRIX SCM LTD,Redacted,Not yet available,Not yet available,Not yet available,10/09/2014,170284,16,856.37,Nil,Agency Staff,Revenue,Business Services,CAT02,Agency,SUBCAT0204,31230,Employment & Recruitment Agencies,,Not yet available
Wakefield MDC,E08000036,30/09/2014,CHILDYOU,Children's and Education Services,4,MATRIX SCM LTD,Redacted,Not yet available,Not yet available,Not yet available,13/08/2014,170280,6,1092.63,Nil,Agency Staff,Revenue,Business Services,CAT02,Agency,SUBCAT0204,31230,Employment & Recruitment Agencies,,Not yet available
Wakefield MDC,E08000036,30/09/2014,CHILDYOU,Children's and Education Services,4,MATRIX SCM LTD,Redacted,Not yet available,Not yet available,Not yet available,03/09/2014,170283,33,841.61,Nil,Agency Staff,Revenue,Business Services,CAT02,Agency,SUBCAT0204,31230,Employment & Recruitment Agencies,,Not yet available
Wakefield MDC,E08000036,30/09/2014,CHILDYOU,Children's and Education Services,4,MATRIX SCM LTD,Redacted,Not yet available,Not yet available,Not yet available,16/07/2014,170276,84,1580.29,Nil,Agency Staff,Revenue,Business Services,CAT02,Agency,SUBCAT0204,31230,Employment & Recruitment Agencies,,Not yet available
Wakefield MDC,E08000036,30/09/2014,CHILDYOU,Children's and Education Services,4,MATRIX SCM LTD,Redacted,Not yet available,Not yet available,Not yet available,20/08/2014,170281,16,1092.63,Nil,Agency Staff,Revenue,Business Services,CAT02,Agency,SUBCAT0204,31230,Employment & Recruitment Agencies,,Not yet available
Wakefield MDC,E08000036,30/09/2014,CHILDYOU,Children's and Education Services,4,MATRIX SCM LTD,Redacted,Not yet available,Not yet available,Not yet available,27/08/2014,170282,30,1105.15,Nil,Agency Staff,Revenue,Business Services,CAT02,Agency,SUBCAT0204,31230,Employment & Recruitment Agencies,,Not yet available
Wakefield MDC,E08000036,30/09/2014,CHILDYOU,Children's and Education Services,4,MATRIX SCM LTD,Redacted,Not yet available,Not yet available,Not yet available,09/07/2014,170275,27,1580.29,Nil,Agency Staff,Revenue,Business Services,CAT02,Agency,SUBCAT0204,31230,Employment & Recruitment Agencies,,Not yet available
Wakefield MDC,E08000036,30/09/2014,CHILDYOU,Children's and Education Services,4,MATRIX SCM LTD,Redacted,Not yet available,Not yet available,Not yet available,17/09/2014,170285,47,1183.58,Nil,Agency Staff,Revenue,Business Services,CAT02,Agency,SUBCAT0204,31230,Employment & Recruitment Agencies,,Not yet available
Wakefield MDC,E08000036,30/09/2014,CHILDYOU,Children's and Education Services,4,MATRIX SCM LTD,Redacted,Not yet available,Not yet available,Not yet available,13/08/2014,170280,41,885.92,Nil,Agency Staff,Revenue,Business Services,CAT02,Agency,SUBCAT0204,31230,Employment & Recruitment Agencies,,Not yet available
Wakefield MDC,E08000036,30/09/2014,CHILDYOU,Children's and Education Services,4,MATRIX SCM LTD,Redacted,Not yet available,Not yet available,Not yet available,23/07/2014,170277,62,1092.63,Nil,Agency Staff,Revenue,Business Services,CAT02,Agency,SUBCAT0204,31230,Employment & Recruitment Agencies,,Not yet available
Wakefield MDC,E08000036,30/09/2014,CHILDYOU,Children's and Education Services,4,MATRIX SCM LTD,Redacted,Not yet available,Not yet available,Not yet available,02/07/2014,170274,51,1092.63,Nil,Agency Staff,Revenue,Business Services,CAT02,Agency,SUBCAT0204,31230,Employment & Recruitment Agencies,,Not yet available
Wakefield MDC,E08000036,30/09/2014,CHILDYOU,Children's and Education Services,4,MATRIX SCM LTD,Redacted,Not yet available,Not yet available,Not yet available,13/08/2014,170280,88,1092.63,Nil,Agency Staff,Revenue,Business Services,CAT02,Agency,SUBCAT0204,31230,Employment & Recruitment Agencies,,Not yet available
Wakefield MDC,E08000036,30/09/2014,CHILDYOU,Children's and Education Services,4,MATRIX SCM LTD,Redacted,Not yet available,Not yet available,Not yet available,13/08/2014,170280,47,649.67,Nil,Agency Staff,Revenue,Business Services,CAT02,Agency,SUBCAT0204,31230,Employment & Recruitment Agencies,,Not yet available
Wakefield MDC,E08000036,30/09/2014,CHILDYOU,Children's and Education Services,4,MATRIX SCM LTD,Redacted,Not yet available,Not yet available,Not yet available,09/07/2014,170275,38,1092.63,Nil,Agency Staff,Revenue,Business Services,CAT02,Agency,SUBCAT0204,31230,Employment & Recruitment Agencies,,Not yet available
Wakefield MDC,E08000036,30/09/2014,CHILDYOU,Children's and Education Services,4,MATRIX SCM LTD,Redacted,Not yet available,Not yet available,Not yet available,01/10/2014,170287,84,834.22,Nil,Agency Staff,Revenue,Business Services,CAT02,Agency,SUBCAT0204,31230,Employment & Recruitment Agencies,,Not yet available
Wakefield MDC,E08000036,30/09/2014,CHILDYOU,Children's and Education Services,4,MATRIX SCM LTD,Redacted,Not yet available,Not yet available,Not yet available,02/07/2014,170274,17,1580.29,Nil,Agency Staff,Revenue,Business Services,CAT02,Agency,SUBCAT0204,31230,Employment & Recruitment Agencies,,Not yet available
Wakefield MDC,E08000036,30/09/2014,CHILDYOU,Children's and Education Services,4,MATRIX SCM LTD,Redacted,Not yet available,Not yet available,Not yet available,30/07/2014,170278,67,1092.63,Nil,Agency Staff,Revenue,Business Services,CAT02,Agency,SUBCAT0204,31230,Employment & Recruitment Agencies,,Not yet available
Wakefield MDC,E08000036,30/09/2014,CHILDYOU,Children's and Education Services,4,MATRIX SCM LTD,Redacted,Not yet available,Not yet available,Not yet available,16/07/2014,170276,63,1092.63,Nil,Agency Staff,Revenue,Business Services,CAT02,Agency,SUBCAT0204,31230,Employment & Recruitment Agencies,,Not yet available
Wakefield MDC,E08000036,30/09/2014,CHILDYOU,Children's and Education Services,4,MATRIX SCM LTD,Redacted,Not yet available,Not yet available,Not yet available,24/09/2014,170286,31,1126.54,Nil,Agency Staff,Revenue,Business Services,CAT02,Agency,SUBCAT0204,31230,Employment & Recruitment Agencies,,Not yet available
Wakefield MDC,E08000036,30/09/2014,CHILDYOU,Children's and Education Services,4,MATRIX SCM LTD,Redacted,Not yet available,Not yet available,Not yet available,03/09/2014,170283,57,948.29,Nil,Agency Staff,Revenue,Business Services,CAT02,Agency,SUBCAT0204,31230,Employment & Recruitment Agencies,,Not yet available
Wakefield MDC,E08000036,30/09/2014,CHILDYOU,Children's and Education Services,4,MATRIX SCM LTD,Redacted,Not yet available,Not yet available,Not yet available,10/09/2014,170284,31,1204.97,Nil,Agency Staff,Revenue,Business Services,CAT02,Agency,SUBCAT0204,31230,Employment & Recruitment Agencies,,Not yet available
Wakefield MDC,E08000036,30/09/2014,CHILDYOU,Children's and Education Services,4,MATRIX SCM LTD,Redacted,Not yet available,Not yet available,Not yet available,23/07/2014,170277,30,1580.29,Nil,Agency Staff,Revenue,Business Services,CAT02,Agency,SUBCAT0204,31230,Employment & Recruitment Agencies,,Not yet available
Wakefield MDC,E08000036,30/09/2014,CHILDYOU,Children's and Education Services,4,MATRIX SCM LTD,Redacted,Not yet available,Not yet available,Not yet available,24/09/2014,170286,48,1534.76,Nil,Agency Staff,Revenue,Business Services,CAT02,Agency,SUBCAT0204,31230,Employment & Recruitment Agencies,,Not yet available
Wakefield MDC,E08000036,30/09/2014,CHILDYOU,Children's and Education Services,4,MATRIX SCM LTD,Redacted,Not yet available,Not yet available,Not yet available,27/08/2014,170282,28,1092.63,Nil,Agency Staff,Revenue,Business Services,CAT02,Agency,SUBCAT0204,31230,Employment & Recruitment Agencies,,Not yet available
Wakefield MDC,E08000036,30/09/2014,CHILDYOU,Children's and Education Services,4,MATRIX SCM LTD,Redacted,Not yet available,Not yet available,Not yet available,13/08/2014,170280,51,1055.24,Nil,Agency Staff,Revenue,Business Services,CAT02,Agency,SUBCAT0204,31230,Employment & Recruitment Agencies,,Not yet available
Wakefield MDC,E08000036,30/09/2014,CHILDYOU,Children's and Education Services,4,MATRIX SCM LTD,Redacted,Not yet available,Not yet available,Not yet available,02/07/2014,170274,48,885.92,Nil,Agency Staff,Revenue,Business Services,CAT02,Agency,SUBCAT0204,31230,Employment & Recruitment Agencies,,Not yet available
Wakefield MDC,E08000036,30/09/2014,CHILDYOU,Children's and Education Services,4,MATRIX SCM LTD,Redacted,Not yet available,Not yet available,Not yet available,20/08/2014,170281,59,1092.63,Nil,Agency Staff,Revenue,Business Services,CAT02,Agency,SUBCAT0204,31230,Employment & Recruitment Agencies,,Not yet available
Wakefield MDC,E08000036,30/09/2014,CHILDYOU,Children's and Education Services,4,MATRIX SCM LTD,Redacted,Not yet available,Not yet available,Not yet available,10/09/2014,170284,37,1087.8,Nil,Agency Staff,Revenue,Business Services,CAT02,Agency,SUBCAT0204,31230,Employment & Recruitment Agencies,,Not yet available
Wakefield MDC,E08000036,30/09/2014,CHILDYOU,Children's and Education Services,4,MATRIX SCM LTD,Redacted,Not yet available,Not yet available,Not yet available,06/08/2014,170279,56,1341.62,Nil,Agency Staff,Revenue,Business Services,CAT02,Agency,SUBCAT0204,31230,Employment & Recruitment Agencies,,Not yet available
Wakefield MDC,E08000036,30/09/2014,CHILDYOU,Children's and Education Services,4,MATRIX SCM LTD,Redacted,Not yet available,Not yet available,Not yet available,01/10/2014,170287,92,1092.63,Nil,Agency Staff,Revenue,Business Services,CAT02,Agency,SUBCAT0204,31230,Employment & Recruitment Agencies,,Not yet available
Wakefield MDC,E08000036,30/09/2014,CHILDYOU,Children's and Education Services,4,MATRIX SCM LTD,Redacted,Not yet available,Not yet available,Not yet available,30/07/2014,170278,94,1092.63,Nil,Agency Staff,Revenue,Business Services,CAT02,Agency,SUBCAT0204,31230,Employment & Recruitment Agencies,,Not yet available
Wakefield MDC,E08000036,30/09/2014,CHILDYOU,Children's and Education Services,4,MATRIX SCM LTD,Redacted,Not yet available,Not yet available,Not yet available,06/08/2014,170279,67,1092.63,Nil,Agency Staff,Revenue,Business Services,CAT02,Agency,SUBCAT0204,31230,Employment & Recruitment Agencies,,Not yet available
Wakefield MDC,E08000036,30/09/2014,CHILDYOU,Children's and Education Services,4,MATRIX SCM LTD,Redacted,Not yet available,Not yet available,Not yet available,06/08/2014,170279,81,1033.57,Nil,Agency Staff,Revenue,Business Services,CAT02,Agency,SUBCAT0204,31230,Employment & Recruitment Agencies,,Not yet available
Wakefield MDC,E08000036,30/09/2014,CHILDYOU,Children's and Education Services,4,MATRIX SCM LTD,Redacted,Not yet available,Not yet available,Not yet available,01/10/2014,170287,99,1534.76,Nil,Agency Staff,Revenue,Business Services,CAT02,Agency,SUBCAT0204,31230,Employment & Recruitment Agencies,,Not yet available
Wakefield MDC,E08000036,30/09/2014,CHILDYOU,Children's and Education Services,4,MATRIX SCM LTD,Redacted,Not yet available,Not yet available,Not yet available,01/10/2014,170287,113,1341.62,Nil,Agency Staff,Revenue,Business Services,CAT02,Agency,SUBCAT0204,31230,Employment & Recruitment Agencies,,Not yet available
Wakefield MDC,E08000036,30/09/2014,CHILDYOU,Children's and Education Services,4,MATRIX SCM LTD,Redacted,Not yet available,Not yet available,Not yet available,24/09/2014,170286,65,1341.62,Nil,Agency Staff,Revenue,Business Services,CAT02,Agency,SUBCAT0204,31230,Employment & Recruitment Agencies,,Not yet available
Wakefield MDC,E08000036,30/09/2014,CHILDYOU,Children's and Education Services,4,MATRIX SCM LTD,Redacted,Not yet available,Not yet available,Not yet available,09/07/2014,170275,6,1092.63,Nil,Agency Staff,Revenue,Business Services,CAT02,Agency,SUBCAT0204,31230,Employment & Recruitment Agencies,,Not yet available
Wakefield MDC,E08000036,30/09/2014,CHILDYOU,Children's and Education Services,4,MATRIX SCM LTD,Redacted,Not yet available,Not yet available,Not yet available,17/09/2014,170285,45,1341.62,Nil,Agency Staff,Revenue,Business Services,CAT02,Agency,SUBCAT0204,31230,Employment & Recruitment Agencies,,Not yet available
Wakefield MDC,E08000036,30/09/2014,CHILDYOU,Children's and Education Services,4,MATRIX SCM LTD,Redacted,Not yet available,Not yet available,Not yet available,16/07/2014,170276,77,871.15,Nil,Agency Staff,Revenue,Business Services,CAT02,Agency,SUBCAT0204,31230,Employment & Recruitment Agencies,,Not yet available
Wakefield MDC,E08000036,30/09/2014,CHILDYOU,Children's and Education Services,4,MATRIX SCM LTD,Redacted,Not yet available,Not yet available,Not yet available,17/09/2014,170285,66,649.67,Nil,Agency Staff,Revenue,Business Services,CAT02,Agency,SUBCAT0204,31230,Employment & Recruitment Agencies,,Not yet available
Wakefield MDC,E08000036,30/09/2014,CHILDYOU,Children's and Education Services,4,MATRIX SCM LTD,Redacted,Not yet available,Not yet available,Not yet available,09/07/2014,170275,55,1196.58,Nil,Agency Staff,Revenue,Business Services,CAT02,Agency,SUBCAT0204,31230,Employment & Recruitment Agencies,,Not yet available
Wakefield MDC,E08000036,30/09/2014,CHILDYOU,Children's and Education Services,4,MATRIX SCM LTD,Redacted,Not yet available,Not yet available,Not yet available,17/09/2014,170285,53,1092.63,Nil,Agency Staff,Revenue,Business Services,CAT02,Agency,SUBCAT0204,31230,Employment & Recruitment Agencies,,Not yet available
Wakefield MDC,E08000036,30/09/2014,CHILDYOU,Children's and Education Services,4,MATRIX SCM LTD,Redacted,Not yet available,Not yet available,Not yet available,13/08/2014,170280,92,1092.63,Nil,Agency Staff,Revenue,Business Services,CAT02,Agency,SUBCAT0204,31230,Employment & Recruitment Agencies,,Not yet available
Wakefield MDC,E08000036,30/09/2014,CHILDYOU,Children's and Education Services,4,MATRIX SCM LTD,Redacted,Not yet available,Not yet available,Not yet available,03/09/2014,170283,44,1087.8,Nil,Agency Staff,Revenue,Business Services,CAT02,Agency,SUBCAT0204,31230,Employment & Recruitment Agencies,,Not yet available
Wakefield MDC,E08000036,30/09/2014,CHILDYOU,Children's and Education Services,4,MATRIX SCM LTD,Redacted,Not yet available,Not yet available,Not yet available,01/10/2014,170287,123,1107.4,Nil,Agency Staff,Revenue,Business Services,CAT02,Agency,SUBCAT0204,31230,Employment & Recruitment Agencies,,Not yet available
Wakefield MDC,E08000036,30/09/2014,CHILDYOU,Children's and Education Services,4,MATRIX SCM LTD,Redacted,Not yet available,Not yet available,Not yet available,23/07/2014,170277,60,1107.4,Nil,Agency Staff,Revenue,Business Services,CAT02,Agency,SUBCAT0204,31230,Employment & Recruitment Agencies,,Not yet available
Wakefield MDC,E08000036,30/09/2014,CHILDYOU,Children's and Education Services,4,MATRIX SCM LTD,Redacted,Not yet available,Not yet available,Not yet available,03/09/2014,170283,73,885.92,Nil,Agency Staff,Revenue,Business Services,CAT02,Agency,SUBCAT0204,31230,Employment & Recruitment Agencies,,Not yet available
Wakefield MDC,E08000036,30/09/2014,CHILDYOU,Children's and Education Services,4,MATRIX SCM LTD,Redacted,Not yet available,Not yet available,Not yet available,16/07/2014,170276,46,979.02,Nil,Agency Staff,Revenue,Business Services,CAT02,Agency,SUBCAT0204,31230,Employment & Recruitment Agencies,,Not yet available
Wakefield MDC,E08000036,30/09/2014,CHILDYOU,Children's and Education Services,4,MATRIX SCM LTD,Redacted,Not yet available,Not yet available,Not yet available,20/08/2014,170281,22,1341.62,Nil,Agency Staff,Revenue,Business Services,CAT02,Agency,SUBCAT0204,31230,Employment & Recruitment Agencies,,Not yet available
Wakefield MDC,E08000036,30/09/2014,CHILDYOU,Children's and Education Services,4,MATRIX SCM LTD,Redacted,Not yet available,Not yet available,Not yet available,13/08/2014,170280,94,900.68,Nil,Agency Staff,Revenue,Business Services,CAT02,Agency,SUBCAT0204,31230,Employment & Recruitment Agencies,,Not yet available
Wakefield MDC,E08000036,30/09/2014,CHILDYOU,Children's and Education Services,4,MATRIX SCM LTD,Redacted,Not yet available,Not yet available,Not yet available,24/09/2014,170286,76,1092.63,Nil,Agency Staff,Revenue,Business Services,CAT02,Agency,SUBCAT0204,31230,Employment & Recruitment Agencies,,Not yet available
Wakefield MDC,E08000036,30/09/2014,CHILDYOU,Children's and Education Services,4,MATRIX SCM LTD,Redacted,Not yet available,Not yet available,Not yet available,10/09/2014,170284,61,1092.63,Nil,Agency Staff,Revenue,Business Services,CAT02,Agency,SUBCAT0204,31230,Employment & Recruitment Agencies,,Not yet available
Wakefield MDC,E08000036,30/09/2014,CHILDYOU,Children's and Education Services,4,MATRIX SCM LTD,Redacted,Not yet available,Not yet available,Not yet available,16/07/2014,170276,66,1092.63,Nil,Agency Staff,Revenue,Business Services,CAT02,Agency,SUBCAT0204,31230,Employment & Recruitment Agencies,,Not yet available
Wakefield MDC,E08000036,30/09/2014,CHILDYOU,Children's and Education Services,4,MATRIX SCM LTD,Redacted,Not yet available,Not yet available,Not yet available,10/09/2014,170284,70,1092.63,Nil,Agency Staff,Revenue,Business Services,CAT02,Agency,SUBCAT0204,31230,Employment & Recruitment Agencies,,Not yet available
Wakefield MDC,E08000036,30/09/2014,CHILDYOU,Children's and Education Services,4,MATRIX SCM LTD,Redacted,Not yet available,Not yet available,Not yet available,09/07/2014,170275,44,1107.4,Nil,Agency Staff,Revenue,Business Services,CAT02,Agency,SUBCAT0204,31230,Employment & Recruitment Agencies,,Not yet available
Wakefield MDC,E08000036,30/09/2014,CHILDYOU,Children's and Education Services,4,MATRIX SCM LTD,Redacted,Not yet available,Not yet available,Not yet available,17/09/2014,170285,84,900.68,Nil,Agency Staff,Revenue,Business Services,CAT02,Agency,SUBCAT0204,31230,Employment & Recruitment Agencies,,Not yet available
Wakefield MDC,E08000036,30/09/2014,CHILDYOU,Children's and Education Services,4,MATRIX SCM LTD,Redacted,Not yet available,Not yet available,Not yet available,24/09/2014,170286,58,1092.63,Nil,Agency Staff,Revenue,Business Services,CAT02,Agency,SUBCAT0204,31230,Employment & Recruitment Agencies,,Not yet available
Wakefield MDC,E08000036,30/09/2014,CHILDYOU,Children's and Education Services,4,MATRIX SCM LTD,Redacted,Not yet available,Not yet available,Not yet available,20/08/2014,170281,23,664.44,Nil,Agency Staff,Revenue,Business Services,CAT02,Agency,SUBCAT0204,31230,Employment & Recruitment Agencies,,Not yet available
Wakefield MDC,E08000036,30/09/2014,CHILDYOU,Children's and Education Services,4,MATRIX SCM LTD,Redacted,Not yet available,Not yet available,Not yet available,13/08/2014,170280,82,1092.63,Nil,Agency Staff,Revenue,Business Services,CAT02,Agency,SUBCAT0204,31230,Employment & Recruitment Agencies,,Not yet available
Wakefield MDC,E08000036,30/09/2014,CHILDYOU,Children's and Education Services,4,MATRIX SCM LTD,Redacted,Not yet available,Not yet available,Not yet available,27/08/2014,170282,11,974.49,Nil,Agency Staff,Revenue,Business Services,CAT02,Agency,SUBCAT0204,31230,Employment & Recruitment Agencies,,Not yet available
Wakefield MDC,E08000036,30/09/2014,CHILDYOU,Children's and Education Services,4,MATRIX SCM LTD,Redacted,Not yet available,Not yet available,Not yet available,03/09/2014,170283,76,974.48,Nil,Agency Staff,Revenue,Business Services,CAT02,Agency,SUBCAT0204,31230,Employment & Recruitment Agencies,,Not yet available
Wakefield MDC,E08000036,30/09/2014,CHILDYOU,Children's and Education Services,4,MATRIX SCM LTD,Redacted,Not yet available,Not yet available,Not yet available,01/10/2014,170287,125,871.15,Nil,Agency Staff,Revenue,Business Services,CAT02,Agency,SUBCAT0204,31230,Employment & Recruitment Agencies,,Not yet available
Wakefield MDC,E08000036,30/09/2014,CHILDYOU,Children's and Education Services,4,MATRIX SCM LTD,Redacted,Not yet available,Not yet available,Not yet available,13/08/2014,170280,102,1092.63,Nil,Agency Staff,Revenue,Business Services,CAT02,Agency,SUBCAT0204,31230,Employment & Recruitment Agencies,,Not yet available
Wakefield MDC,E08000036,30/09/2014,CHILDYOU,Children's and Education Services,4,MATRIX SCM LTD,Redacted,Not yet available,Not yet available,Not yet available,30/07/2014,170278,87,1341.62,Nil,Agency Staff,Revenue,Business Services,CAT02,Agency,SUBCAT0204,31230,Employment & Recruitment Agencies,,Not yet available
Wakefield MDC,E08000036,30/09/2014,CHILDYOU,Children's and Education Services,4,MATRIX SCM LTD,Redacted,Not yet available,Not yet available,Not yet available,27/08/2014,170282,23,1092.63,Nil,Agency Staff,Revenue,Business Services,CAT02,Agency,SUBCAT0204,31230,Employment & Recruitment Agencies,,Not yet available
Wakefield MDC,E08000036,30/09/2014,CHILDYOU,Children's and Education Services,4,MATRIX SCM LTD,Redacted,Not yet available,Not yet available,Not yet available,24/09/2014,170286,45,1092.63,Nil,Agency Staff,Revenue,Business Services,CAT02,Agency,SUBCAT0204,31230,Employment & Recruitment Agencies,,Not yet available
Wakefield MDC,E08000036,30/09/2014,CHILDYOU,Children's and Education Services,4,MATRIX SCM LTD,Redacted,Not yet available,Not yet available,Not yet available,20/08/2014,170281,39,1092.63,Nil,Agency Staff,Revenue,Business Services,CAT02,Agency,SUBCAT0204,31230,Employment & Recruitment Agencies,,Not yet available
Wakefield MDC,E08000036,30/09/2014,CHILDYOU,Children's and Education Services,4,MATRIX SCM LTD,Redacted,Not yet available,Not yet available,Not yet available,27/08/2014,170282,43,1269.1,Nil,Agency Staff,Revenue,Business Services,CAT02,Agency,SUBCAT0204,31230,Employment & Recruitment Agencies,,Not yet available
Wakefield MDC,E08000036,30/09/2014,CHILDYOU,Children's and Education Services,4,MATRIX SCM LTD,Redacted,Not yet available,Not yet available,Not yet available,30/07/2014,170278,75,1107.4,Nil,Agency Staff,Revenue,Business Services,CAT02,Agency,SUBCAT0204,31230,Employment & Recruitment Agencies,,Not yet available
Wakefield MDC,E08000036,30/09/2014,CHILDYOU,Children's and Education Services,4,MATRIX SCM LTD,Redacted,Not yet available,Not yet available,Not yet available,27/08/2014,170282,48,1018.79,Nil,Agency Staff,Revenue,Business Services,CAT02,Agency,SUBCAT0204,31230,Employment & Recruitment Agencies,,Not yet available
Wakefield MDC,E08000036,30/09/2014,CHILDYOU,Children's and Education Services,4,MATRIX SCM LTD,Redacted,Not yet available,Not yet available,Not yet available,24/09/2014,170286,72,1092.63,Nil,Agency Staff,Revenue,Business Services,CAT02,Agency,SUBCAT0204,31230,Employment & Recruitment Agencies,,Not yet available
Wakefield MDC,E08000036,30/09/2014,CHILDYOU,Children's and Education Services,4,MATRIX SCM LTD,Redacted,Not yet available,Not yet available,Not yet available,20/08/2014,170281,37,664.44,Nil,Agency Staff,Revenue,Business Services,CAT02,Agency,SUBCAT0204,31230,Employment & Recruitment Agencies,,Not yet available
Wakefield MDC,E08000036,30/09/2014,CHILDYOU,Children's and Education Services,4,MATRIX SCM LTD,Redacted,Not yet available,Not yet available,Not yet available,02/07/2014,170274,57,1341.62,Nil,Agency Staff,Revenue,Business Services,CAT02,Agency,SUBCAT0204,31230,Employment & Recruitment Agencies,,Not yet available
Wakefield MDC,E08000036,30/09/2014,CHILDYOU,Children's and Education Services,4,MATRIX SCM LTD,Redacted,Not yet available,Not yet available,Not yet available,27/08/2014,170282,45,649.67,Nil,Agency Staff,Revenue,Business Services,CAT02,Agency,SUBCAT0204,31230,Employment & Recruitment Agencies,,Not yet available
Wakefield MDC,E08000036,30/09/2014,CHILDYOU,Children's and Education Services,4,MATRIX SCM LTD,Redacted,Not yet available,Not yet available,Not yet available,23/07/2014,170277,34,1087.8,Nil,Agency Staff,Revenue,Business Services,CAT02,Agency,SUBCAT0204,31230,Employment & Recruitment Agencies,,Not yet available
Wakefield MDC,E08000036,30/09/2014,CHILDYOU,Children's and Education Services,4,MATRIX SCM LTD,Redacted,Not yet available,Not yet available,Not yet available,03/09/2014,170283,8,1092.63,Nil,Agency Staff,Revenue,Business Services,CAT02,Agency,SUBCAT0204,31230,Employment & Recruitment Agencies,,Not yet available
Wakefield MDC,E08000036,30/09/2014,CHILDYOU,Children's and Education Services,4,MATRIX SCM LTD,Redacted,Not yet available,Not yet available,Not yet available,24/09/2014,170286,69,1327.36,Nil,Agency Staff,Revenue,Business Services,CAT02,Agency,SUBCAT0204,31230,Employment & Recruitment Agencies,,Not yet available
Wakefield MDC,E08000036,30/09/2014,CHILDYOU,Children's and Education Services,4,MATRIX SCM LTD,Redacted,Not yet available,Not yet available,Not yet available,30/07/2014,170278,17,1092.63,Nil,Agency Staff,Revenue,Business Services,CAT02,Agency,SUBCAT0204,31230,Employment & Recruitment Agencies,,Not yet available
Wakefield MDC,E08000036,30/09/2014,CHILDYOU,Children's and Education Services,4,MATRIX SCM LTD,Redacted,Not yet available,Not yet available,Not yet available,13/08/2014,170280,77,1341.62,Nil,Agency Staff,Revenue,Business Services,CAT02,Agency,SUBCAT0204,31230,Employment & Recruitment Agencies,,Not yet available
Wakefield MDC,E08000036,30/09/2014,CHILDYOU,Children's and Education Services,4,MATRIX SCM LTD,Redacted,Not yet available,Not yet available,Not yet available,09/07/2014,170275,59,885.92,Nil,Agency Staff,Revenue,Business Services,CAT02,Agency,SUBCAT0204,31230,Employment & Recruitment Agencies,,Not yet available
Wakefield MDC,E08000036,30/09/2014,CHILDYOU,Children's and Education Services,4,MATRIX SCM LTD,Redacted,Not yet available,Not yet available,Not yet available,20/08/2014,170281,56,1092.63,Nil,Agency Staff,Revenue,Business Services,CAT02,Agency,SUBCAT0204,31230,Employment & Recruitment Agencies,,Not yet available
Wakefield MDC,E08000036,30/09/2014,CHILDYOU,Children's and Education Services,4,MATRIX SCM LTD,Redacted,Not yet available,Not yet available,Not yet available,01/10/2014,170287,115,1092.63,Nil,Agency Staff,Revenue,Business Services,CAT02,Agency,SUBCAT0204,31230,Employment & Recruitment Agencies,,Not yet available
Wakefield MDC,E08000036,30/09/2014,CHILDYOU,Children's and Education Services,4,MATRIX SCM LTD,Redacted,Not yet available,Not yet available,Not yet available,02/07/2014,170274,70,1143.68,Nil,Agency Staff,Revenue,Business Services,CAT02,Agency,SUBCAT0204,31230,Employment & Recruitment Agencies,,Not yet available
Wakefield MDC,E08000036,30/09/2014,CHILDYOU,Children's and Education Services,4,MATRIX SCM LTD,Redacted,Not yet available,Not yet available,Not yet available,27/08/2014,170282,21,834.23,Nil,Agency Staff,Revenue,Business Services,CAT02,Agency,SUBCAT0204,31230,Employment & Recruitment Agencies,,Not yet available
Wakefield MDC,E08000036,30/09/2014,CHILDYOU,Children's and Education Services,4,MATRIX SCM LTD,Redacted,Not yet available,Not yet available,Not yet available,10/09/2014,170284,42,1143.68,Nil,Agency Staff,Revenue,Business Services,CAT02,Agency,SUBCAT0204,31230,Employment & Recruitment Agencies,,Not yet available
Wakefield MDC,E08000036,30/09/2014,CHILDYOU,Children's and Education Services,4,MATRIX SCM LTD,Redacted,Not yet available,Not yet available,Not yet available,30/07/2014,170278,49,693.96,Nil,Agency Staff,Revenue,Business Services,CAT02,Agency,SUBCAT0204,31230,Employment & Recruitment Agencies,,Not yet available
Wakefield MDC,E08000036,30/09/2014,CHILDYOU,Children's and Education Services,4,MATRIX SCM LTD,Redacted,Not yet available,Not yet available,Not yet available,16/07/2014,170276,35,1092.63,Nil,Agency Staff,Revenue,Business Services,CAT02,Agency,SUBCAT0204,31230,Employment & Recruitment Agencies,,Not yet available
Wakefield MDC,E08000036,30/09/2014,CHILDYOU,Children's and Education Services,4,MATRIX SCM LTD,Redacted,Not yet available,Not yet available,Not yet available,13/08/2014,170280,70,1004.03,Nil,Agency Staff,Revenue,Business Services,CAT02,Agency,SUBCAT0204,31230,Employment & Recruitment Agencies,,Not yet available
Wakefield MDC,E08000036,30/09/2014,CHILDYOU,Children's and Education Services,4,MATRIX SCM LTD,Redacted,Not yet available,Not yet available,Not yet available,16/07/2014,170276,70,1143.68,Nil,Agency Staff,Revenue,Business Services,CAT02,Agency,SUBCAT0204,31230,Employment & Recruitment Agencies,,Not yet available
Wakefield MDC,E08000036,30/09/2014,CHILDYOU,Children's and Education Services,4,MATRIX SCM LTD,Redacted,Not yet available,Not yet available,Not yet available,13/08/2014,170280,65,1143.68,Nil,Agency Staff,Revenue,Business Services,CAT02,Agency,SUBCAT0204,31230,Employment & Recruitment Agencies,,Not yet available
Wakefield MDC,E08000036,30/09/2014,CHILDYOU,Children's and Education Services,4,MATRIX SCM LTD,Redacted,Not yet available,Not yet available,Not yet available,24/09/2014,170286,52,1143.68,Nil,Agency Staff,Revenue,Business Services,CAT02,Agency,SUBCAT0204,31230,Employment & Recruitment Agencies,,Not yet available
Wakefield MDC,E08000036,30/09/2014,CHILDYOU,Children's and Education Services,4,MATRIX SCM LTD,Redacted,Not yet available,Not yet available,Not yet available,09/07/2014,170275,13,1092.63,Nil,Agency Staff,Revenue,Business Services,CAT02,Agency,SUBCAT0204,31230,Employment & Recruitment Agencies,,Not yet available
Wakefield MDC,E08000036,30/09/2014,CHILDYOU,Children's and Education Services,4,MATRIX SCM LTD,Redacted,Not yet available,Not yet available,Not yet available,20/08/2014,170281,18,1092.63,Nil,Agency Staff,Revenue,Business Services,CAT02,Agency,SUBCAT0204,31230,Employment & Recruitment Agencies,,Not yet available
Wakefield MDC,E08000036,30/09/2014,CHILDYOU,Children's and Education Services,4,MATRIX SCM LTD,Redacted,Not yet available,Not yet available,Not yet available,02/07/2014,170274,13,738.26,Nil,Agency Staff,Revenue,Business Services,CAT02,Agency,SUBCAT0204,31230,Employment & Recruitment Agencies,,Not yet available
Wakefield MDC,E08000036,30/09/2014,CHILDYOU,Children's and Education Services,4,MATRIX SCM LTD,Redacted,Not yet available,Not yet available,Not yet available,27/08/2014,170282,70,1143.68,Nil,Agency Staff,Revenue,Business Services,CAT02,Agency,SUBCAT0204,31230,Employment & Recruitment Agencies,,Not yet available
Wakefield MDC,E08000036,30/09/2014,CHILDYOU,Children's and Education Services,4,MATRIX SCM LTD,Redacted,Not yet available,Not yet available,Not yet available,17/09/2014,170285,34,944.96,Nil,Agency Staff,Revenue,Business Services,CAT02,Agency,SUBCAT0204,31230,Employment & Recruitment Agencies,,Not yet available
Wakefield MDC,E08000036,30/09/2014,CHILDYOU,Children's and Education Services,4,MATRIX SCM LTD,Redacted,Not yet available,Not yet available,Not yet available,27/08/2014,170282,68,1143.68,Nil,Agency Staff,Revenue,Business Services,CAT02,Agency,SUBCAT0204,31230,Employment & Recruitment Agencies,,Not yet available
Wakefield MDC,E08000036,30/09/2014,CHILDYOU,Children's and Education Services,4,MATRIX SCM LTD,Redacted,Not yet available,Not yet available,Not yet available,10/09/2014,170284,18,1092.62,Nil,Agency Staff,Revenue,Business Services,CAT02,Agency,SUBCAT0204,31230,Employment & Recruitment Agencies,,Not yet available
Wakefield MDC,E08000036,30/09/2014,CHILDYOU,Children's and Education Services,4,MATRIX SCM LTD,Redacted,Not yet available,Not yet available,Not yet available,06/08/2014,170279,69,1143.68,Nil,Agency Staff,Revenue,Business Services,CAT02,Agency,SUBCAT0204,31230,Employment & Recruitment Agencies,,Not yet available
Wakefield MDC,E08000036,30/09/2014,CHILDYOU,Children's and Education Services,4,MATRIX SCM LTD,Redacted,Not yet available,Not yet available,Not yet available,17/09/2014,170285,79,1143.68,Nil,Agency Staff,Revenue,Business Services,CAT02,Agency,SUBCAT0204,31230,Employment & Recruitment Agencies,,Not yet available
Wakefield MDC,E08000036,30/09/2014,CHILDYOU,Children's and Education Services,4,MATRIX SCM LTD,Redacted,Not yet available,Not yet available,Not yet available,30/07/2014,170278,7,1092.63,Nil,Agency Staff,Revenue,Business Services,CAT02,Agency,SUBCAT0204,31230,Employment & Recruitment Agencies,,Not yet available
Wakefield MDC,E08000036,30/09/2014,CHILDYOU,Children's and Education Services,4,MATRIX SCM LTD,Redacted,Not yet available,Not yet available,Not yet available,09/07/2014,170275,53,1143.68,Nil,Agency Staff,Revenue,Business Services,CAT02,Agency,SUBCAT0204,31230,Employment & Recruitment Agencies,,Not yet available
Wakefield MDC,E08000036,30/09/2014,CHILDYOU,Children's and Education Services,4,MATRIX SCM LTD,Redacted,Not yet available,Not yet available,Not yet available,23/07/2014,170277,53,1143.68,Nil,Agency Staff,Revenue,Business Services,CAT02,Agency,SUBCAT0204,31230,Employment & Recruitment Agencies,,Not yet available
Wakefield MDC,E08000036,30/09/2014,CHILDYOU,Children's and Education Services,4,MATRIX SCM LTD,Redacted,Not yet available,Not yet available,Not yet available,01/10/2014,170287,61,723.49,Nil,Agency Staff,Revenue,Business Services,CAT02,Agency,SUBCAT0204,31230,Employment & Recruitment Agencies,,Not yet available
Wakefield MDC,E08000036,30/09/2014,CHILDYOU,Children's and Education Services,4,MATRIX SCM LTD,Redacted,Not yet available,Not yet available,Not yet available,02/07/2014,170274,68,1143.68,Nil,Agency Staff,Revenue,Business Services,CAT02,Agency,SUBCAT0204,31230,Employment & Recruitment Agencies,,Not yet available
Wakefield MDC,E08000036,30/09/2014,CHILDYOU,Children's and Education Services,4,MATRIX SCM LTD,Redacted,Not yet available,Not yet available,Not yet available,24/09/2014,170286,23,1092.62,Nil,Agency Staff,Revenue,Business Services,CAT02,Agency,SUBCAT0204,31230,Employment & Recruitment Agencies,,Not yet available
Wakefield MDC,E08000036,30/09/2014,CHILDYOU,Children's and Education Services,4,MATRIX SCM LTD,Redacted,Not yet available,Not yet available,Not yet available,03/09/2014,170283,46,708.73,Nil,Agency Staff,Revenue,Business Services,CAT02,Agency,SUBCAT0204,31230,Employment & Recruitment Agencies,,Not yet available
Wakefield MDC,E08000036,30/09/2014,CHILDYOU,Children's and Education Services,4,MATRIX SCM LTD,Redacted,Not yet available,Not yet available,Not yet available,03/09/2014,170283,89,1143.68,Nil,Agency Staff,Revenue,Business Services,CAT02,Agency,SUBCAT0204,31230,Employment & Recruitment Agencies,,Not yet available
Wakefield MDC,E08000036,30/09/2014,CHILDYOU,Children's and Education Services,4,MATRIX SCM LTD,Redacted,Not yet available,Not yet available,Not yet available,30/07/2014,170278,65,1143.68,Nil,Agency Staff,Revenue,Business Services,CAT02,Agency,SUBCAT0204,31230,Employment & Recruitment Agencies,,Not yet available
Wakefield MDC,E08000036,30/09/2014,CHILDYOU,Children's and Education Services,4,MATRIX SCM LTD,Redacted,Not yet available,Not yet available,Not yet available,20/08/2014,170281,47,2014.67,Nil,Agency Staff,Revenue,Business Services,CAT02,Agency,SUBCAT0204,31230,Employment & Recruitment Agencies,,Not yet available
Wakefield MDC,E08000036,30/09/2014,CHILDYOU,Children's and Education Services,4,MATRIX SCM LTD,Redacted,Not yet available,Not yet available,Not yet available,23/07/2014,170277,16,2014.67,Nil,Agency Staff,Revenue,Business Services,CAT02,Agency,SUBCAT0204,31230,Employment & Recruitment Agencies,,Not yet available
Wakefield MDC,E08000036,30/09/2014,CHILDYOU,Children's and Education Services,4,MATRIX SCM LTD,Redacted,Not yet available,Not yet available,Not yet available,30/07/2014,170278,92,2014.67,Nil,Agency Staff,Revenue,Business Services,CAT02,Agency,SUBCAT0204,31230,Employment & Recruitment Agencies,,Not yet available
Wakefield MDC,E08000036,30/09/2014,CHILDYOU,Children's and Education Services,4,MATRIX SCM LTD,Redacted,Not yet available,Not yet available,Not yet available,10/09/2014,170284,81,1524.62,Nil,Agency Staff,Revenue,Business Services,CAT02,Agency,SUBCAT0204,31230,Employment & Recruitment Agencies,,Not yet available
Wakefield MDC,E08000036,30/09/2014,CHILDYOU,Children's and Education Services,4,MATRIX SCM LTD,Redacted,Not yet available,Not yet available,Not yet available,13/08/2014,170280,99,2014.67,Nil,Agency Staff,Revenue,Business Services,CAT02,Agency,SUBCAT0204,31230,Employment & Recruitment Agencies,,Not yet available
Wakefield MDC,E08000036,30/09/2014,CHILDYOU,Children's and Education Services,4,MATRIX SCM LTD,Redacted,Not yet available,Not yet available,Not yet available,02/07/2014,170274,37,840.06,Nil,Agency Staff,Revenue,Business Services,CAT02,Agency,SUBCAT0204,31230,Employment & Recruitment Agencies,,Not yet available
Wakefield MDC,E08000036,30/09/2014,CHILDYOU,Children's and Education Services,4,MATRIX SCM LTD,Redacted,Not yet available,Not yet available,Not yet available,27/08/2014,170282,32,2014.67,Nil,Agency Staff,Revenue,Business Services,CAT02,Agency,SUBCAT0204,31230,Employment & Recruitment Agencies,,Not yet available
Wakefield MDC,E08000036,30/09/2014,CHILDYOU,Children's and Education Services,4,MATRIX SCM LTD,Redacted,Not yet available,Not yet available,Not yet available,03/09/2014,170283,35,2014.67,Nil,Agency Staff,Revenue,Business Services,CAT02,Agency,SUBCAT0204,31230,Employment & Recruitment Agencies,,Not yet available
Wakefield MDC,E08000036,30/09/2014,CHILDYOU,Children's and Education Services,4,MATRIX SCM LTD,Redacted,Not yet available,Not yet available,Not yet available,02/07/2014,170274,80,2014.67,Nil,Agency Staff,Revenue,Business Services,CAT02,Agency,SUBCAT0204,31230,Employment & Recruitment Agencies,,Not yet available
Wakefield MDC,E08000036,30/09/2014,CHILDYOU,Children's and Education Services,4,MATRIX SCM LTD,Redacted,Not yet available,Not yet available,Not yet available,09/07/2014,170275,69,2014.67,Nil,Agency Staff,Revenue,Business Services,CAT02,Agency,SUBCAT0204,31230,Employment & Recruitment Agencies,,Not yet available
Wakefield MDC,E08000036,30/09/2014,CHILDYOU,Children's and Education Services,4,MATRIX SCM LTD,Redacted,Not yet available,Not yet available,Not yet available,06/08/2014,170279,87,2014.67,Nil,Agency Staff,Revenue,Business Services,CAT02,Agency,SUBCAT0204,31230,Employment & Recruitment Agencies,,Not yet available
Wakefield MDC,E08000036,30/09/2014,CHILDYOU,Children's and Education Services,4,MATRIX SCM LTD,Redacted,Not yet available,Not yet available,Not yet available,01/10/2014,170287,130,2014.67,Nil,Agency Staff,Revenue,Business Services,CAT02,Agency,SUBCAT0204,31230,Employment & Recruitment Agencies,,Not yet available
Wakefield MDC,E08000036,30/09/2014,CHILDYOU,Children's and Education Services,4,MATRIX SCM LTD,Redacted,Not yet available,Not yet available,Not yet available,24/09/2014,170286,40,2014.67,Nil,Agency Staff,Revenue,Business Services,CAT02,Agency,SUBCAT0204,31230,Employment & Recruitment Agencies,,Not yet available
Wakefield MDC,E08000036,30/09/2014,ADULTS,Adult Social Care,7,MATRIX SCM LTD,Redacted,Not yet available,Not yet available,Not yet available,24/09/2014,170286,27,979.92,Nil,Agency Staff,Revenue,Business Services,CAT02,Agency,SUBCAT0204,31230,Employment & Recruitment Agencies,,Not yet available
Wakefield MDC,E08000036,30/09/2014,ADULTS,Adult Social Care,7,MATRIX SCM LTD,Redacted,Not yet available,Not yet available,Not yet available,06/08/2014,170279,37,939.09,Nil,Agency Staff,Revenue,Business Services,CAT02,Agency,SUBCAT0204,31230,Employment & Recruitment Agencies,,Not yet available
Wakefield MDC,E08000036,30/09/2014,ADULTS,Adult Social Care,7,MATRIX SCM LTD,Redacted,Not yet available,Not yet available,Not yet available,20/08/2014,170281,30,979.92,Nil,Agency Staff,Revenue,Business Services,CAT02,Agency,SUBCAT0204,31230,Employment & Recruitment Agencies,,Not yet available
Wakefield MDC,E08000036,30/09/2014,ADULTS,Adult Social Care,7,MATRIX SCM LTD,Redacted,Not yet available,Not yet available,Not yet available,03/09/2014,170283,42,1007.14,Nil,Agency Staff,Revenue,Business Services,CAT02,Agency,SUBCAT0204,31230,Employment & Recruitment Agencies,,Not yet available
Wakefield MDC,E08000036,30/09/2014,ADULTS,Adult Social Care,7,MATRIX SCM LTD,Redacted,Not yet available,Not yet available,Not yet available,17/09/2014,170285,43,789.38,Nil,Agency Staff,Revenue,Business Services,CAT02,Agency,SUBCAT0204,31230,Employment & Recruitment Agencies,,Not yet available
Wakefield MDC,E08000036,30/09/2014,ADULTS,Adult Social Care,7,MATRIX SCM LTD,Redacted,Not yet available,Not yet available,Not yet available,13/08/2014,170280,57,939.09,Nil,Agency Staff,Revenue,Business Services,CAT02,Agency,SUBCAT0204,31230,Employment & Recruitment Agencies,,Not yet available
Wakefield MDC,E08000036,30/09/2014,ADULTS,Adult Social Care,7,MATRIX SCM LTD,Redacted,Not yet available,Not yet available,Not yet available,27/08/2014,170282,26,816.6,Nil,Agency Staff,Revenue,Business Services,CAT02,Agency,SUBCAT0204,31230,Employment & Recruitment Agencies,,Not yet available
Wakefield MDC,E08000036,30/09/2014,ADULTS,Adult Social Care,7,MATRIX SCM LTD,Redacted,Not yet available,Not yet available,Not yet available,01/10/2014,170287,76,979.92,Nil,Agency Staff,Revenue,Business Services,CAT02,Agency,SUBCAT0204,31230,Employment & Recruitment Agencies,,Not yet available
Wakefield MDC,E08000036,30/09/2014,ADULTS,Adult Social Care,7,MATRIX SCM LTD,Redacted,Not yet available,Not yet available,Not yet available,30/07/2014,170278,16,1055.24,Nil,Agency Staff,Revenue,Business Services,CAT02,Agency,SUBCAT0204,31230,Employment & Recruitment Agencies,,Not yet available
Wakefield MDC,E08000036,30/09/2014,ADULTS,Adult Social Care,7,MATRIX SCM LTD,Redacted,Not yet available,Not yet available,Not yet available,01/10/2014,170287,69,855.6,Nil,Agency Staff,Revenue,Business Services,CAT02,Agency,SUBCAT0204,31230,Employment & Recruitment Agencies,,Not yet available
Wakefield MDC,E08000036,30/09/2014,ADULTS,Adult Social Care,7,MATRIX SCM LTD,Redacted,Not yet available,Not yet available,Not yet available,09/07/2014,170275,60,670.22,Nil,Agency Staff,Revenue,Business Services,CAT02,Agency,SUBCAT0204,31230,Employment & Recruitment Agencies,,Not yet available
Wakefield MDC,E08000036,30/09/2014,ADULTS,Adult Social Care,7,MATRIX SCM LTD,Redacted,Not yet available,Not yet available,Not yet available,16/07/2014,170276,76,1055.24,Nil,Agency Staff,Revenue,Business Services,CAT02,Agency,SUBCAT0204,31230,Employment & Recruitment Agencies,,Not yet available
Wakefield MDC,E08000036,30/09/2014,ADULTS,Adult Social Care,7,MATRIX SCM LTD,Redacted,Not yet available,Not yet available,Not yet available,17/09/2014,170285,59,1055.24,Nil,Agency Staff,Revenue,Business Services,CAT02,Agency,SUBCAT0204,31230,Employment & Recruitment Agencies,,Not yet available
Wakefield MDC,E08000036,30/09/2014,ADULTS,Adult Social Care,7,MATRIX SCM LTD,Redacted,Not yet available,Not yet available,Not yet available,01/10/2014,170287,35,1055.24,Nil,Agency Staff,Revenue,Business Services,CAT02,Agency,SUBCAT0204,31230,Employment & Recruitment Agencies,,Not yet available
Wakefield MDC,E08000036,30/09/2014,ADULTS,Adult Social Care,7,MATRIX SCM LTD,Redacted,Not yet available,Not yet available,Not yet available,02/07/2014,170274,66,1055.24,Nil,Agency Staff,Revenue,Business Services,CAT02,Agency,SUBCAT0204,31230,Employment & Recruitment Agencies,,Not yet available
Wakefield MDC,E08000036,30/09/2014,ADULTS,Adult Social Care,7,MATRIX SCM LTD,Redacted,Not yet available,Not yet available,Not yet available,06/08/2014,170279,36,841.34,Nil,Agency Staff,Revenue,Business Services,CAT02,Agency,SUBCAT0204,31230,Employment & Recruitment Agencies,,Not yet available
Wakefield MDC,E08000036,30/09/2014,ADULTS,Adult Social Care,7,MATRIX SCM LTD,Redacted,Not yet available,Not yet available,Not yet available,03/09/2014,170283,6,1055.24,Nil,Agency Staff,Revenue,Business Services,CAT02,Agency,SUBCAT0204,31230,Employment & Recruitment Agencies,,Not yet available
Wakefield MDC,E08000036,30/09/2014,ADULTS,Adult Social Care,7,MATRIX SCM LTD,Redacted,Not yet available,Not yet available,Not yet available,13/08/2014,170280,36,1055.24,Nil,Agency Staff,Revenue,Business Services,CAT02,Agency,SUBCAT0204,31230,Employment & Recruitment Agencies,,Not yet available
Wakefield MDC,E08000036,30/09/2014,ADULTS,Adult Social Care,7,MATRIX SCM LTD,Redacted,Not yet available,Not yet available,Not yet available,17/09/2014,170285,21,1055.24,Nil,Agency Staff,Revenue,Business Services,CAT02,Agency,SUBCAT0204,31230,Employment & Recruitment Agencies,,Not yet available
Wakefield MDC,E08000036,30/09/2014,ADULTS,Adult Social Care,7,MATRIX SCM LTD,Redacted,Not yet available,Not yet available,Not yet available,10/09/2014,170284,13,627.44,Nil,Agency Staff,Revenue,Business Services,CAT02,Agency,SUBCAT0204,31230,Employment & Recruitment Agencies,,Not yet available
Wakefield MDC,E08000036,30/09/2014,ADULTS,Adult Social Care,7,MATRIX SCM LTD,Redacted,Not yet available,Not yet available,Not yet available,20/08/2014,170281,34,1055.24,Nil,Agency Staff,Revenue,Business Services,CAT02,Agency,SUBCAT0204,31230,Employment & Recruitment Agencies,,Not yet available
Wakefield MDC,E08000036,30/09/2014,ADULTS,Adult Social Care,7,MATRIX SCM LTD,Redacted,Not yet available,Not yet available,Not yet available,09/07/2014,170275,71,1007.15,Nil,Agency Staff,Revenue,Business Services,CAT02,Agency,SUBCAT0204,31230,Employment & Recruitment Agencies,,Not yet available
Wakefield MDC,E08000036,30/09/2014,ADULTS,Adult Social Care,7,MATRIX SCM LTD,Redacted,Not yet available,Not yet available,Not yet available,01/10/2014,170287,94,1007.14,Nil,Agency Staff,Revenue,Business Services,CAT02,Agency,SUBCAT0204,31230,Employment & Recruitment Agencies,,Not yet available
Wakefield MDC,E08000036,30/09/2014,ADULTS,Adult Social Care,7,MATRIX SCM LTD,Redacted,Not yet available,Not yet available,Not yet available,20/08/2014,170281,11,809.8,Nil,Agency Staff,Revenue,Business Services,CAT02,Agency,SUBCAT0204,31230,Employment & Recruitment Agencies,,Not yet available
Wakefield MDC,E08000036,30/09/2014,ADULTS,Adult Social Care,7,MATRIX SCM LTD,Redacted,Not yet available,Not yet available,Not yet available,17/09/2014,170285,67,1007.14,Nil,Agency Staff,Revenue,Business Services,CAT02,Agency,SUBCAT0204,31230,Employment & Recruitment Agencies,,Not yet available
Wakefield MDC,E08000036,30/09/2014,ADULTS,Adult Social Care,7,MATRIX SCM LTD,Redacted,Not yet available,Not yet available,Not yet available,27/08/2014,170282,33,1007.16,Nil,Agency Staff,Revenue,Business Services,CAT02,Agency,SUBCAT0204,31230,Employment & Recruitment Agencies,,Not yet available
Wakefield MDC,E08000036,30/09/2014,ADULTS,Adult Social Care,7,MATRIX SCM LTD,Redacted,Not yet available,Not yet available,Not yet available,23/07/2014,170277,21,1007.14,Nil,Agency Staff,Revenue,Business Services,CAT02,Agency,SUBCAT0204,31230,Employment & Recruitment Agencies,,Not yet available
Wakefield MDC,E08000036,30/09/2014,ADULTS,Adult Social Care,7,MATRIX SCM LTD,Redacted,Not yet available,Not yet available,Not yet available,17/09/2014,170285,49,1007.14,Nil,Agency Staff,Revenue,Business Services,CAT02,Agency,SUBCAT0204,31230,Employment & Recruitment Agencies,,Not yet available
Wakefield MDC,E08000036,30/09/2014,ADULTS,Adult Social Care,7,MATRIX SCM LTD,Redacted,Not yet available,Not yet available,Not yet available,10/09/2014,170284,15,1007.14,Nil,Agency Staff,Revenue,Business Services,CAT02,Agency,SUBCAT0204,31230,Employment & Recruitment Agencies,,Not yet available
Wakefield MDC,E08000036,30/09/2014,ADULTS,Adult Social Care,7,MATRIX SCM LTD,Redacted,Not yet available,Not yet available,Not yet available,20/08/2014,170281,45,1007.14,Nil,Agency Staff,Revenue,Business Services,CAT02,Agency,SUBCAT0204,31230,Employment & Recruitment Agencies,,Not yet available
Wakefield MDC,E08000036,30/09/2014,ADULTS,Adult Social Care,7,MATRIX SCM LTD,Redacted,Not yet available,Not yet available,Not yet available,16/07/2014,170276,57,1007.16,Nil,Agency Staff,Revenue,Business Services,CAT02,Agency,SUBCAT0204,31230,Employment & Recruitment Agencies,,Not yet available
